Workbook

Sheet Main
B10: 2019-11-25
B12: Sheet No. | C12: Template Name | D12: Summary
B13: 1 | C13: Future Intra | D13: For Intraday trading in F&O segment
B14: 2 | C14: Cash Intra | D14: For Intraday trading in cash market segment
B15: 3 | C15: Mid-cap Intra | D15: For Intraday trading in Mid-cap stocks
B16: 4 | C16: Bulk Deals | D16: Reveals Bulk Deals carried on NSE & BSE
B17: 5 | C17: Call Tracker
K27: `

Sheet Future Intra
M5: Back to Main Page
A6: FOR INTRA DAY TRADING | L6: =Main!B10 -> 2019-11-25
A9: Sr.no | B9: Sector | C9: Scrip | D9: CLOSE RATE | E9: Pivot Point | F9: Supports | I9: Resistances
B10: Sector | D10: Point | E10: Point | F10: S1 | G10: S2 | H10: S3 | I10: R1 | J10: R2 | K10: R3 | L10: HIGH | M10: LOW | N10: OI | O10: % Change in OI
A11: 1 | B11: Index | C11: BANKNIFTY | D11: 31114.70 | E11: 31155.92 | F11: 30982.13 | G11: 30849.57 | H11: 30675.78 | I11: 31288.48 | J11: 31462.27 | K11: 31594.83 | L11: 31329.7 | M11: 31023.35 | N11: 1989500 | O11: -2.87%
A12: 2 | B12: Index | C12: NIFTY | D12: 11914.50 | E12: 11925.33 | F12: 11873.27 | G12: 11832.03 | H12: 11779.97 | I12: 11966.57 | J12: 12018.63 | K12: 12059.87 | L12: 11977.4 | M12: 11884.1 | N12: 15151200 | O12: -6.25%
A13: 3 | B13: Index | C13: NIFTYIT | D13: 15116.00 | E13: 15175.33 | F13: 14990.67 | G13: 14865.33 | H13: 14680.67 | I13: 15300.67 | J13: 15485.33 | K13: 15610.67 | L13: 15360 | M13: 15050 | N13: 11450 | O13: 31.61%
A14: 4 | B14: Cement | C14: ACC | D14: 1472.60 | E14: 1473.57 | F14: 1463.18 | G14: 1453.77 | H14: 1443.38 | I14: 1482.98 | J14: 1493.37 | K14: 1502.78 | L14: 1483.95 | M14: 1464.15 | N14: 2958400 | O14: -0.64%
A15: 5 | B15: Others | C15: ADANIENT | D15: 203.30 | E15: 203.28 | F15: 200.07 | G15: 196.83 | H15: 193.62 | I15: 206.52 | J15: 209.73 | K15: 212.97 | L15: 206.5 | M15: 200.05 | N15: 31304000 | O15: 1.35%
A16: 6 | B16: Others | C16: ADANIPORTS | D16: 372.00 | E16: 373.10 | F16: 369.90 | G16: 367.80 | H16: 364.60 | I16: 375.20 | J16: 378.40 | K16: 380.50 | L16: 376.3 | M16: 371 | N16: 22432500 | O16: 5.47%
A17: 7 | B17: Power | C17: ADANIPOWER | D17: 60.40 | E17: 60.73 | F17: 59.27 | G17: 58.13 | H17: 56.67 | I17: 61.87 | J17: 63.33 | K17: 64.47 | L17: 62.2 | M17: 59.6 | N17: 90030000 | O17: 5.21%
A18: 8 | B18: Automobile | C18: AMARAJABAT | D18: 742.60 | E18: 744.93 | F18: 734.32 | G18: 726.03 | H18: 715.42 | I18: 753.22 | J18: 763.83 | K18: 772.12 | L18: 755.55 | M18: 736.65 | N18: 1496100 | O18: -2.20%
A19: 9 | B19: Cement | C19: AMBUJACEM | D19: 200.60 | E19: 200.27 | F19: 198.33 | G19: 196.07 | H19: 194.13 | I19: 202.53 | J19: 204.47 | K19: 206.73 | L19: 202.2 | M19: 198 | N19: 18022500 | O19: -0.78%
A20: 10 | B20: Others | C20: APOLLOHOSP | D20: 1449.70 | E20: 1454.45 | F20: 1436.25 | G20: 1422.80 | H20: 1404.60 | I20: 1467.90 | J20: 1486.10 | K20: 1499.55 | L20: 1472.65 | M20: 1441 | N20: 1616500 | O20: -5.41%
A21: 11 | B21: Automobile | C21: APOLLOTYRE | D21: 167.35 | E21: 165.92 | F21: 163.83 | G21: 160.32 | H21: 158.23 | I21: 169.43 | J21: 171.52 | K21: 175.03 | L21: 168 | M21: 162.4 | N21: 13272000 | O21: 0.50%
A22: 12 | B22: Automobile | C22: ASHOKLEY | D22: 81.45 | E22: 81.60 | F22: 80.60 | G22: 79.75 | H22: 78.75 | I22: 82.45 | J22: 83.45 | K22: 84.30 | L22: 82.6 | M22: 80.75 | N22: 98356000 | O22: 0.35%
A23: 13 | B23: FMCG | C23: ASIANPAINT | D23: 1686.85 | E23: 1694.40 | F23: 1672.85 | G23: 1658.85 | H23: 1637.30 | I23: 1708.40 | J23: 1729.95 | K23: 1743.95 | L23: 1715.95 | M23: 1680.4 | N23: 9007200 | O23: 2.62%
A24: 14 | B24: Pharma | C24: AUROPHARMA | D24: 428.75 | E24: 433.70 | F24: 416.70 | G24: 404.65 | H24: 387.65 | I24: 445.75 | J24: 462.75 | K24: 474.80 | L24: 450.7 | M24: 421.65 | N24: 19155000 | O24: 2.71%
A25: 15 | B25: Banking | C25: AXISBANK | D25: 731.55 | E25: 733.20 | F25: 726.65 | G25: 721.75 | H25: 715.20 | I25: 738.10 | J25: 744.65 | K25: 749.55 | L25: 739.75 | M25: 728.3 | N25: 56163600 | O25: -0.27%
A26: 16 | B26: Automobile | C26: BAJAJ-AUTO | D26: 3161.25 | E26: 3163.93 | F26: 3139.32 | G26: 3117.38 | H26: 3092.77 | I26: 3185.87 | J26: 3210.48 | K26: 3232.42 | L26: 3188.55 | M26: 3142 | N26: 2230500 | O26: -1.91%
A27: 17 | B27: Finance | C27: BAJAJFINSV | D27: 9036.80 | E27: 9026.88 | F27: 8986.37 | G27: 8935.93 | H27: 8895.42 | I27: 9077.32 | J27: 9117.83 | K27: 9168.27 | L27: 9067.4 | M27: 8976.45 | N27: 1345875 | O27: -3.19%
A28: 18 | B28: Finance | C28: BAJFINANCE | D28: 4081.10 | E28: 4089.50 | F28: 4030.80 | G28: 3980.50 | H28: 3921.80 | I28: 4139.80 | J28: 4198.50 | K28: 4248.80 | L28: 4148.2 | M28: 4039.2 | N28: 7753750 | O28: -0.44%
A29: 19 | B29: Automobile | C29: BALKRISIND | D29: 842.85 | E29: 840.78 | F29: 836.67 | G29: 830.48 | H29: 826.37 | I29: 846.97 | J29: 851.08 | K29: 857.27 | L29: 844.9 | M29: 834.6 | N29: 1810400 | O29: -0.66%
A30: 20 | B30: Banking | C30: BANKBARODA | D30: 99.10 | E30: 99.12 | F30: 98.28 | G30: 97.47 | H30: 96.63 | I30: 99.93 | J30: 100.77 | K30: 101.58 | L30: 99.95 | M30: 98.3 | N30: 80879400 | O30: 2.47%
A31: 21 | B31: Banking | C31: BANKINDIA | D31: 73.25 | E31: 73.32 | F31: 72.28 | G31: 71.32 | H31: 70.28 | I31: 74.28 | J31: 75.32 | K31: 76.28 | L31: 74.35 | M31: 72.35 | N31: 14406000 | O31: -8.39%
A32: 22 | B32: FMCG | C32: BATAINDIA | D32: 1647.05 | E32: 1641.38 | F32: 1628.22 | G32: 1609.38 | H32: 1596.22 | I32: 1660.22 | J32: 1673.38 | K32: 1692.22 | L32: 1654.55 | M32: 1622.55 | N32: 2421100 | O32: 0.59%
A33: 23 | B33: Capital_Goods | C33: BEL | D33: 108.95 | E33: 109.00 | F33: 107.65 | G33: 106.35 | H33: 105.00 | I33: 110.30 | J33: 111.65 | K33: 112.95 | L33: 110.35 | M33: 107.7 | N33: 29172000 | O33: 2.83%
A34: 24 | B34: FMCG | C34: BERGEPAINT | D34: 470.95 | E34: 472.23 | F34: 466.97 | G34: 462.98 | H34: 457.72 | I34: 476.22 | J34: 481.48 | K34: 485.47 | L34: 477.5 | M34: 468.25 | N34: 9336800 | O34: 5.31%
A35: 25 | B35: Automobile | C35: BHARATFORG | D35: 448.45 | E35: 448.83 | F35: 444.77 | G35: 441.08 | H35: 437.02 | I35: 452.52 | J35: 456.58 | K35: 460.27 | L35: 452.9 | M35: 445.15 | N35: 8989400 | O35: 1.93%
A36: 26 | B36: Telecom | C36: BHARTIARTL | D36: 420.25 | E36: 422.83 | F36: 415.02 | G36: 409.78 | H36: 401.97 | I36: 428.07 | J36: 435.88 | K36: 441.12 | L36: 430.65 | M36: 417.6 | N36: 41021862 | O36: 1.90%
A37: 27 | B37: Capital_Goods | C37: BHEL | D37: 56.00 | E37: 55.53 | F37: 54.67 | G37: 53.33 | H37: 52.47 | I37: 56.87 | J37: 57.73 | K37: 59.07 | L37: 56.4 | M37: 54.2 | N37: 58484900 | O37: -2.98%
A38: 28 | B38: Pharma | C38: BIOCON | D38: 256.35 | E38: 256.03 | F38: 253.42 | G38: 250.48 | H38: 247.87 | I38: 258.97 | J38: 261.58 | K38: 264.52 | L38: 258.65 | M38: 253.1 | N38: 12271000 | O38: 2.96%
A39: 29 | B39: Automobile | C39: BOSCHLTD | D39: 16312.30 | E39: 16143.97 | F39: 15892.98 | G39: 15473.67 | H39: 15222.68 | I39: 16563.28 | J39: 16814.27 | K39: 17233.58 | L39: 16394.95 | M39: 15724.65 | N39: 150410 | O39: 0.98%
A40: 30 | B40: Oil_Gas | C40: BPCL | D40: 509.30 | E40: 510.62 | F40: 504.98 | G40: 500.67 | H40: 495.03 | I40: 514.93 | J40: 520.57 | K40: 524.88 | L40: 516.25 | M40: 506.3 | N40: 26033400 | O40: -1.92%
A41: 31 | B41: FMCG | C41: BRITANNIA | D41: 3029.20 | E41: 3042.12 | F41: 3009.23 | G41: 2989.27 | H41: 2956.38 | I41: 3062.08 | J41: 3094.97 | K41: 3114.93 | L41: 3075 | M41: 3022.15 | N41: 2044600 | O41: 0.15%
A42: 32 | B42: Pharma | C42: CADILAHC | D42: 251.20 | E42: 251.55 | F42: 246.35 | G42: 241.50 | H42: 236.30 | I42: 256.40 | J42: 261.60 | K42: 266.45 | L42: 256.75 | M42: 246.7 | N42: 9406600 | O42: -1.89%
A43: 33 | B43: Banking | C43: CANBK | D43: 221.55 | E43: 222.82 | F43: 219.23 | G43: 216.92 | H43: 213.33 | I43: 225.13 | J43: 228.72 | K43: 231.03 | L43: 226.4 | M43: 220.5 | N43: 14857200 | O43: -0.89%
A44: 34 | B44: Oil_Gas | C44: CASTROLIND | D44: 145.75 | E44: 148.17 | F44: 141.93 | G44: 138.12 | H44: 131.88 | I44: 151.98 | J44: 158.22 | K44: 162.03 | L44: 154.4 | M44: 144.35 | N44: 7550900 | O44: -3.05%
A45: 35 | B45: Textile | C45: CENTURYTEX | D45: 454.70 | E45: 455.80 | F45: 448.10 | G45: 441.50 | H45: 433.80 | I45: 462.40 | J45: 470.10 | K45: 476.70 | L45: 463.5 | M45: 449.2 | N45: 3311400 | O45: 3.88%
A46: 36 | B46: Power | C46: CESC | D46: 746.45 | E46: 742.15 | F46: 736.50 | G46: 726.55 | H46: 720.90 | I46: 752.10 | J46: 757.75 | K46: 767.70 | L46: 747.8 | M46: 732.2 | N46: 1300800 | O46: -0.49%
A47: 37 | B47: Finance | C47: CHOLAFIN | D47: 314.65 | E47: 315.40 | F47: 310.05 | G47: 305.45 | H47: 300.10 | I47: 320.00 | J47: 325.35 | K47: 329.95 | L47: 320.75 | M47: 310.8 | N47: 4445000 | O47: -4.15%
A48: 38 | B48: Pharma | C48: CIPLA | D48: 479.55 | E48: 478.75 | F48: 473.85 | G48: 468.15 | H48: 463.25 | I48: 484.45 | J48: 489.35 | K48: 495.05 | L48: 483.65 | M48: 473.05 | N48: 13061750 | O48: -0.57%
A49: 39 | B49: Others | C49: COALINDIA | D49: 198.85 | E49: 198.23 | F49: 197.07 | G49: 195.28 | H49: 194.12 | I49: 200.02 | J49: 201.18 | K49: 202.97 | L49: 199.4 | M49: 196.45 | N49: 23846200 | O49: 1.15%
A50: 40 | B50: FMCG | C50: COLPAL | D50: 1505.55 | E50: 1501.23 | F50: 1484.87 | G50: 1464.18 | H50: 1447.82 | I50: 1521.92 | J50: 1538.28 | K50: 1558.97 | L50: 1517.6 | M50: 1480.55 | N50: 2908500 | O50: 0.70%
A51: 41 | B51: Others | C51: CONCOR | D51: 558.85 | E51: 564.48 | F51: 549.92 | G51: 540.98 | H51: 526.42 | I51: 573.42 | J51: 587.98 | K51: 596.92 | L51: 579.05 | M51: 555.55 | N51: 7938477 | O51: -1.30%
A52: 42 | B52: Capital_Goods | C52: CUMMINSIND | D52: 567.40 | E52: 565.33 | F52: 561.67 | G52: 555.93 | H52: 552.27 | I52: 571.07 | J52: 574.73 | K52: 580.47 | L52: 569 | M52: 559.6 | N52: 1784500 | O52: 0.59%
A53: 43 | B53: FMCG | C53: DABUR | D53: 463.05 | E53: 461.63 | F53: 458.02 | G53: 452.98 | H53: 449.37 | I53: 466.67 | J53: 470.28 | K53: 475.32 | L53: 465.25 | M53: 456.6 | N53: 11926250 | O53: 4.69%
A54: 44 | B54: Media | C54: DISHTV | D54: 16.05 | E54: 16.12 | F54: 15.53 | G54: 15.02 | H54: 14.43 | I54: 16.63 | J54: 17.22 | K54: 17.73 | L54: 16.7 | M54: 15.6 | N54: 121186900 | O54: 4.82%
A55: 45 | B55: Pharma | C55: DIVISLAB | D55: 1735.65 | E55: 1735.72 | F55: 1720.33 | G55: 1705.02 | H55: 1689.63 | I55: 1751.03 | J55: 1766.42 | K55: 1781.73 | L55: 1751.1 | M55: 1720.4 | N55: 2652000 | O55: -0.05%
A56: 46 | B56: Realty | C56: DLF | D56: 217.95 | E56: 217.33 | F56: 215.12 | G56: 212.28 | H56: 210.07 | I56: 220.17 | J56: 222.38 | K56: 225.22 | L56: 219.55 | M56: 214.5 | N56: 37373700 | O56: 5.37%
A57: 47 | B57: Pharma | C57: DRREDDY | D57: 2868.55 | E57: 2871.17 | F57: 2839.03 | G57: 2809.52 | H57: 2777.38 | I57: 2900.68 | J57: 2932.82 | K57: 2962.33 | L57: 2903.3 | M57: 2841.65 | N57: 3414750 | O57: -2.89%
A58: 48 | B58: Automobile | C58: EICHERMOT | D58: 22745.55 | E58: 22417.55 | F58: 21910.10 | G58: 21074.65 | H58: 20567.20 | I58: 23253.00 | J58: 23760.45 | K58: 24595.90 | L58: 22925 | M58: 21582.1 | N58: 322775 | O58: 8.46%
A59: 49 | B59: Finance | C59: EQUITAS | D59: 90.90 | E59: 90.30 | F59: 89.00 | G59: 87.10 | H59: 85.80 | I59: 92.20 | J59: 93.50 | K59: 95.40 | L59: 91.6 | M59: 88.4 | N59: 12388100 | O59: 18.75%
A60: 50 | B60: Automobile | C60: ESCORTS | D60: 647.65 | E60: 646.30 | F60: 640.60 | G60: 633.55 | H60: 627.85 | I60: 653.35 | J60: 659.05 | K60: 666.10 | L60: 652 | M60: 639.25 | N60: 5395500 | O60: 3.81%
A61: 51 | B61: Automobile | C61: EXIDEIND | D61: 192.95 | E61: 191.93 | F61: 189.42 | G61: 185.88 | H61: 183.37 | I61: 195.47 | J61: 197.98 | K61: 201.52 | L61: 194.45 | M61: 188.4 | N61: 10314300 | O61: 3.60%
A62: 52 | B62: Banking | C62: FEDERALBNK | D62: 87.95 | E62: 87.97 | F62: 87.38 | G62: 86.82 | H62: 86.23 | I62: 88.53 | J62: 89.12 | K62: 89.68 | L62: 88.55 | M62: 87.4 | N62: 58555000 | O62: 1.00%
A63: 53 | B63: Oil_Gas | C63: GAIL | D63: 122.35 | E63: 122.17 | F63: 121.58 | G63: 120.82 | H63: 120.23 | I63: 122.93 | J63: 123.52 | K63: 124.28 | L63: 122.75 | M63: 121.4 | N63: 57980580 | O63: 2.75%
A64: 54 | B64: Pharma | C64: GLENMARK | D64: 343.55 | E64: 346.90 | F64: 339.15 | G64: 334.75 | H64: 327.00 | I64: 351.30 | J64: 359.05 | K64: 363.45 | L64: 354.65 | M64: 342.5 | N64: 7157600 | O64: 7.36%
A65: 55 | B65: Infrastructure | C65: GMRINFRA | D65: 20.65 | E65: 20.58 | F65: 20.32 | G65: 19.98 | H65: 19.72 | I65: 20.92 | J65: 21.18 | K65: 21.52 | L65: 20.85 | M65: 20.25 | N65: 150885000 | O65: 5.08%
A66: 56 | B66: FMCG | C66: GODREJCP | D66: 712.90 | E66: 715.97 | F66: 705.23 | G66: 697.57 | H66: 686.83 | I66: 723.63 | J66: 734.37 | K66: 742.03 | L66: 726.7 | M66: 708.3 | N66: 4395200 | O66: 2.40%
A67: 57 | B67: Cement | C67: GRASIM | D67: 794.75 | E67: 788.45 | F67: 778.90 | G67: 763.05 | H67: 753.50 | I67: 804.30 | J67: 813.85 | K67: 829.70 | L67: 798 | M67: 772.6 | N67: 21189000 | O67: 0.46%
A68: 58 | B68: Others | C68: HAVELLS | D68: 639.60 | E68: 643.73 | F68: 632.97 | G68: 626.33 | H68: 615.57 | I68: 650.37 | J68: 661.13 | K68: 667.77 | L68: 654.5 | M68: 637.1 | N68: 6311000 | O68: 4.09%
A69: 59 | B69: Technology | C69: HCLTECH | D69: 1113.55 | E69: 1118.08 | F69: 1103.37 | G69: 1093.18 | H69: 1078.47 | I69: 1128.27 | J69: 1142.98 | K69: 1153.17 | L69: 1132.8 | M69: 1107.9 | N69: 11682300 | O69: 1.66%
A70: 60 | B70: Finance | C70: HDFC | D70: 2236.70 | E70: 2225.90 | F70: 2213.05 | G70: 2189.40 | H70: 2176.55 | I70: 2249.55 | J70: 2262.40 | K70: 2286.05 | L70: 2238.75 | M70: 2202.25 | N70: 33733000 | O70: 1.01%
A71: 61 | B71: Banking | C71: HDFCBANK | D71: 1265.90 | E71: 1270.42 | F71: 1259.38 | G71: 1252.87 | H71: 1241.83 | I71: 1276.93 | J71: 1287.97 | K71: 1294.48 | L71: 1281.45 | M71: 1263.9 | N71: 22610000 | O71: -3.74%
A72: 62 | B72: Automobile | C72: HEROMOTOCO | D72: 2443.25 | E72: 2443.42 | F72: 2427.83 | G72: 2412.42 | H72: 2396.83 | I72: 2458.83 | J72: 2474.42 | K72: 2489.83 | L72: 2459 | M72: 2428 | N72: 4010200 | O72: 0.42%
A73: 63 | B73: Technology | C73: HEXAWARE | D73: 333.10 | E73: 333.95 | F73: 327.95 | G73: 322.80 | H73: 316.80 | I73: 339.10 | J73: 345.10 | K73: 350.25 | L73: 339.95 | M73: 328.8 | N73: 1584000 | O73: 4.35%
A74: 64 | B74: Metals | C74: HINDALCO | D74: 190.70 | E74: 189.92 | F74: 188.18 | G74: 185.67 | H74: 183.93 | I74: 192.43 | J74: 194.17 | K74: 196.68 | L74: 191.65 | M74: 187.4 | N74: 29400000 | O74: 2.45%
A75: 65 | B75: Oil_Gas | C75: HINDPETRO | D75: 290.15 | E75: 288.52 | F75: 285.13 | G75: 280.12 | H75: 276.73 | I75: 293.53 | J75: 296.92 | K75: 301.93 | L75: 291.9 | M75: 283.5 | N75: 23331000 | O75: -1.87%
A76: 66 | B76: FMCG | C76: HINDUNILVR | D76: 2029.50 | E76: 2032.60 | F76: 2010.35 | G76: 1991.20 | H76: 1968.95 | I76: 2051.75 | J76: 2074.00 | K76: 2093.15 | L76: 2054.85 | M76: 2013.45 | N76: 9280200 | O76: -0.42%
A77: 67 | B77: Finance | C77: IBULHSGFIN | D77: 235.95 | E77: 236.32 | F77: 228.13 | G77: 220.32 | H77: 212.13 | I77: 244.13 | J77: 252.32 | K77: 260.13 | L77: 244.5 | M77: 228.5 | N77: 34169600 | O77: 0.78%
A78: 68 | B78: Banking | C78: ICICIBANK | D78: 497.25 | E78: 496.88 | F78: 492.37 | G78: 487.48 | H78: 482.97 | I78: 501.77 | J78: 506.28 | K78: 511.17 | L78: 501.4 | M78: 492 | N78: 79378750 | O78: -4.34%
A79: 69 | B79: Finance | C79: ICICIPRULI | D79: 498.10 | E79: 498.03 | F79: 494.07 | G79: 490.03 | H79: 486.07 | I79: 502.07 | J79: 506.03 | K79: 510.07 | L79: 502 | M79: 494 | N79: 8263500 | O79: 4.99%
A80: 70 | B80: Telecom | C80: IDEA | D80: 6.55 | E80: 6.50 | F80: 6.10 | G80: 5.65 | H80: 5.25 | I80: 6.95 | J80: 7.35 | K80: 7.80 | L80: 6.9 | M80: 6.05 | N80: 660982000 | O80: 2.41%
A81: 71 | B81: Banking | C81: IDFCFIRSTB | D81: 42.95 | E81: 42.90 | F81: 42.60 | G81: 42.25 | H81: 41.95 | I81: 43.25 | J81: 43.55 | K81: 43.90 | L81: 43.2 | M81: 42.55 | N81: 270084000 | O81: 1.70%
A82: 72 | B82: Oil_Gas | C82: IGL | D82: 404.50 | E82: 405.05 | F82: 397.20 | G82: 389.90 | H82: 382.05 | I82: 412.35 | J82: 420.20 | K82: 427.50 | L82: 412.9 | M82: 397.75 | N82: 6069250 | O82: 5.70%
A83: 73 | B83: Others | C83: INDIGO | D83: 1394.40 | E83: 1387.48 | F83: 1364.97 | G83: 1335.53 | H83: 1313.02 | I83: 1416.92 | J83: 1439.43 | K83: 1468.87 | L83: 1410 | M83: 1358.05 | N83: 3388200 | O83: 1.30%
A84: 74 | B84: Banking | C84: INDUSINDBK | D84: 1445.25 | E84: 1447.15 | F84: 1434.30 | G84: 1423.35 | H84: 1410.50 | I84: 1458.10 | J84: 1470.95 | K84: 1481.90 | L84: 1460 | M84: 1436.2 | N84: 10596000 | O84: -0.83%
A85: 75 | B85: Telecom | C85: INFRATEL | D85: 232.05 | E85: 233.40 | F85: 225.80 | G85: 219.55 | H85: 211.95 | I85: 239.65 | J85: 247.25 | K85: 253.50 | L85: 241 | M85: 227.15 | N85: 15802000 | O85: 0.05%
A86: 76 | B86: Technology | C86: INFY | D86: 693.70 | E86: 697.37 | F86: 680.83 | G86: 667.97 | H86: 651.43 | I86: 710.23 | J86: 726.77 | K86: 739.63 | L86: 713.9 | M86: 684.5 | N86: 55617600 | O86: -2.19%
A87: 77 | B87: Oil_Gas | C87: IOC | D87: 129.95 | E87: 129.72 | F87: 128.83 | G87: 127.72 | H87: 126.83 | I87: 130.83 | J87: 131.72 | K87: 132.83 | L87: 130.6 | M87: 128.6 | N87: 39532000 | O87: 3.53%
A88: 78 | B88: FMCG | C88: ITC | D88: 247.80 | E88: 249.08 | F88: 245.62 | G88: 243.43 | H88: 239.97 | I88: 251.27 | J88: 254.73 | K88: 256.92 | L88: 252.55 | M88: 246.9 | N88: 110968800 | O88: 0.00%
A89: 79 | B89: Metals | C89: JINDALSTEL | D89: 144.45 | E89: 142.28 | F89: 138.67 | G89: 132.88 | H89: 129.27 | I89: 148.07 | J89: 151.68 | K89: 157.47 | L89: 145.9 | M89: 136.5 | N89: 43904800 | O89: 8.14%
A90: 80 | B90: Metals | C90: JSWSTEEL | D90: 251.55 | E90: 249.93 | F90: 246.07 | G90: 240.58 | H90: 236.72 | I90: 255.42 | J90: 259.28 | K90: 264.77 | L90: 253.8 | M90: 244.45 | N90: 50982900 | O90: 0.24%
A91: 81 | B91: Others | C91: JUBLFOOD | D91: 1564.90 | E91: 1569.57 | F91: 1546.33 | G91: 1527.77 | H91: 1504.53 | I91: 1588.13 | J91: 1611.37 | K91: 1629.93 | L91: 1592.8 | M91: 1551 | N91: 2446000 | O91: 3.84%
A92: 82 | B92: Others | C92: JUSTDIAL | D92: 550.25 | E92: 550.57 | F92: 542.23 | G92: 534.22 | H92: 525.88 | I92: 558.58 | J92: 566.92 | K92: 574.93 | L92: 558.9 | M92: 542.55 | N92: 3091200 | O92: 4.59%
A93: 83 | B93: Banking | C93: KOTAKBANK | D93: 1571.80 | E93: 1577.92 | F93: 1561.88 | G93: 1551.97 | H93: 1535.93 | I93: 1587.83 | J93: 1603.87 | K93: 1613.78 | L93: 1593.95 | M93: 1568 | N93: 8289200 | O93: -1.67%
A94: 84 | B94: Finance | C94: L&TFH | D94: 96.65 | E94: 95.93 | F94: 94.92 | G94: 93.18 | H94: 92.17 | I94: 97.67 | J94: 98.68 | K94: 100.42 | L94: 96.95 | M94: 94.2 | N94: 38039300 | O94: 3.26%
A95: 85 | B95: Finance | C95: LICHSGFIN | D95: 420.10 | E95: 418.17 | F95: 414.08 | G95: 408.07 | H95: 403.98 | I95: 424.18 | J95: 428.27 | K95: 434.28 | L95: 422.25 | M95: 412.15 | N95: 9628800 | O95: -0.28%
A96: 86 | B96: Capital_Goods | C96: LT | D96: 1377.40 | E96: 1382.05 | F96: 1364.85 | G96: 1352.30 | H96: 1335.10 | I96: 1394.60 | J96: 1411.80 | K96: 1424.35 | L96: 1399.25 | M96: 1369.5 | N96: 14013000 | O96: -0.61%
A97: 87 | B97: Pharma | C97: LUPIN | D97: 774.05 | E97: 774.68 | F97: 767.17 | G97: 760.28 | H97: 752.77 | I97: 781.57 | J97: 789.08 | K97: 795.97 | L97: 782.2 | M97: 767.8 | N97: 7959000 | O97: 0.69%
A98: 88 | B98: Automobile | C98: M&M | D98: 546.05 | E98: 547.00 | F98: 539.30 | G98: 532.55 | H98: 524.85 | I98: 553.75 | J98: 561.45 | K98: 568.20 | L98: 554.7 | M98: 540.25 | N98: 22437000 | O98: 1.09%
A99: 89 | B99: Finance | C99: M&MFIN | D99: 332.65 | E99: 330.25 | F99: 326.50 | G99: 320.35 | H99: 316.60 | I99: 336.40 | J99: 340.15 | K99: 346.30 | L99: 334 | M99: 324.1 | N99: 11948350 | O99: -1.52%
A100: 90 | B100: Finance | C100: MANAPPURAM | D100: 161.00 | E100: 160.93 | F100: 159.52 | G100: 158.03 | H100: 156.62 | I100: 162.42 | J100: 163.83 | K100: 165.32 | L100: 162.35 | M100: 159.45 | N100: 16476000 | O100: 2.27%
A101: 91 | B101: FMCG | C101: MARICO | D101: 357.70 | E101: 356.73 | F101: 354.57 | G101: 351.43 | H101: 349.27 | I101: 359.87 | J101: 362.03 | K101: 365.17 | L101: 358.9 | M101: 353.6 | N101: 11416600 | O101: -0.61%
A102: 92 | B102: Automobile | C102: MARUTI | D102: 7069.35 | E102: 7054.85 | F102: 7021.65 | G102: 6973.95 | H102: 6940.75 | I102: 7102.55 | J102: 7135.75 | K102: 7183.45 | L102: 7088.05 | M102: 7007.15 | N102: 3186975 | O102: 0.80%
A103: 93 | B103: FMCG | C103: MCDOWELL-N | D103: 611.85 | E103: 613.40 | F103: 607.80 | G103: 603.75 | H103: 598.15 | I103: 617.45 | J103: 623.05 | K103: 627.10 | L103: 619 | M103: 609.35 | N103: 10955000 | O103: 0.10%
A104: 94 | B104: Finance | C104: MFSL | D104: 507.30 | E104: 506.27 | F104: 499.78 | G104: 492.27 | H104: 485.78 | I104: 513.78 | J104: 520.27 | K104: 527.78 | L104: 512.75 | M104: 498.75 | N104: 7098300 | O104: 8.63%
A105: 95 | B105: Oil_Gas | C105: MGL | D105: 1019.00 | E105: 1024.67 | F105: 1006.18 | G105: 993.37 | H105: 974.88 | I105: 1037.48 | J105: 1055.97 | K105: 1068.78 | L105: 1043.15 | M105: 1011.85 | N105: 2271000 | O105: 0.13%
A106: 96 | B106: Technology | C106: MINDTREE | D106: 708.95 | E106: 702.47 | F106: 693.43 | G106: 677.92 | H106: 668.88 | I106: 717.98 | J106: 727.02 | K106: 742.53 | L106: 711.5 | M106: 686.95 | N106: 1392600 | O106: 5.90%
A107: 97 | B107: Automobile | C107: MOTHERSUMI | D107: 127.50 | E107: 127.00 | F107: 124.50 | G107: 121.50 | H107: 119.00 | I107: 130.00 | J107: 132.50 | K107: 135.50 | L107: 129.5 | M107: 124 | N107: 27042500 | O107: 1.54%
A108: 98 | B108: Automobile | C108: MRF | D108: 62889.20 | E108: 62891.17 | F108: 62648.03 | G108: 62406.87 | H108: 62163.73 | I108: 63132.33 | J108: 63375.47 | K108: 63616.63 | L108: 63134.3 | M108: 62650 | N108: 18820 | O108: 1.62%
A109: 99 | B109: Finance | C109: MUTHOOTFIN | D109: 685.80 | E109: 687.27 | F109: 681.73 | G109: 677.67 | H109: 672.13 | I109: 691.33 | J109: 696.87 | K109: 700.93 | L109: 692.8 | M109: 683.2 | N109: 3756000 | O109: 0.89%
A110: 100 | B110: Metals | C110: NATIONALUM | D110: 41.65 | E110: 41.35 | F110: 40.85 | G110: 40.05 | H110: 39.55 | I110: 42.15 | J110: 42.65 | K110: 43.45 | L110: 41.85 | M110: 40.55 | N110: 61530300 | O110: 3.64%
A111: 101 | B111: Infrastructure | C111: NBCC | D111: 36.90 | E111: 36.80 | F111: 36.35 | G111: 35.80 | H111: 35.35 | I111: 37.35 | J111: 37.80 | K111: 38.35 | L111: 37.25 | M111: 36.25 | N111: 44020800 | O111: 3.06%
A112: 102 | B112: Infrastructure | C112: NCC | D112: 60.40 | E112: 61.08 | F112: 59.32 | G112: 58.23 | H112: 56.47 | I112: 62.17 | J112: 63.93 | K112: 65.02 | L112: 62.85 | M112: 60 | N112: 43506000 | O112: -1.55%
A113: 103 | B113: FMCG | C113: NESTLEIND | D113: 14150.45 | E113: 14183.48 | F113: 14066.97 | G113: 13983.48 | H113: 13866.97 | I113: 14266.97 | J113: 14383.48 | K113: 14466.97 | L113: 14300 | M113: 14100 | N113: 464900 | O113: -1.75%
A114: 104 | B114: Technology | C114: NIITTECH | D114: 1484.95 | E114: 1488.55 | F114: 1470.40 | G114: 1455.85 | H114: 1437.70 | I114: 1503.10 | J114: 1521.25 | K114: 1535.80 | L114: 1506.7 | M114: 1474 | N114: 591000 | O114: 4.16%
A115: 105 | B115: Metals | C115: NMDC | D115: 100.60 | E115: 100.12 | F115: 99.13 | G115: 97.67 | H115: 96.68 | I115: 101.58 | J115: 102.57 | K115: 104.03 | L115: 101.1 | M115: 98.65 | N115: 22824000 | O115: 3.96%
A116: 106 | B116: Power | C116: NTPC | D116: 117.70 | E116: 117.88 | F116: 116.42 | G116: 115.13 | H116: 113.67 | I116: 119.17 | J116: 120.63 | K116: 121.92 | L116: 119.35 | M116: 116.6 | N116: 49728000 | O116: -6.26%
A117: 107 | B117: Oil_Gas | C117: OIL | D117: 154.25 | E117: 153.33 | F117: 150.37 | G117: 146.48 | H117: 143.52 | I117: 157.22 | J117: 160.18 | K117: 164.07 | L117: 156.3 | M117: 149.45 | N117: 9914883 | O117: 5.61%
A118: 108 | B118: Oil_Gas | C118: ONGC | D118: 133.85 | E118: 133.18 | F118: 131.67 | G118: 129.48 | H118: 127.97 | I118: 135.37 | J118: 136.88 | K118: 139.07 | L118: 134.7 | M118: 131 | N118: 25601400 | O118: 0.09%
A119: 109 | B119: Textile | C119: PAGEIND | D119: 21879.20 | E119: 22042.92 | F119: 21586.03 | G119: 21292.87 | H119: 20835.98 | I119: 22336.08 | J119: 22792.97 | K119: 23086.13 | L119: 22499.8 | M119: 21749.75 | N119: 169600 | O119: -0.43%
A120: 110 | B120: Pharma | C120: PEL | D120: 1773.20 | E120: 1765.85 | F120: 1744.25 | G120: 1715.30 | H120: 1693.70 | I120: 1794.80 | J120: 1816.40 | K120: 1845.35 | L120: 1787.45 | M120: 1736.9 | N120: 4608520 | O120: 0.72%
A121: 111 | B121: Oil_Gas | C121: PETRONET | D121: 265.15 | E121: 267.48 | F121: 261.97 | G121: 258.78 | H121: 253.27 | I121: 270.67 | J121: 276.18 | K121: 279.37 | L121: 273 | M121: 264.3 | N121: 20889000 | O121: 1.93%
A122: 112 | B122: Finance | C122: PFC | D122: 118.10 | E122: 117.07 | F122: 115.33 | G122: 112.57 | H122: 110.83 | I122: 119.83 | J122: 121.57 | K122: 124.33 | L122: 118.8 | M122: 114.3 | N122: 29499600 | O122: -0.85%
A123: 113 | B123: FMCG | C123: PIDILITIND | D123: 1297.25 | E123: 1300.43 | F123: 1285.02 | G123: 1272.78 | H123: 1257.37 | I123: 1312.67 | J123: 1328.08 | K123: 1340.32 | L123: 1315.85 | M123: 1288.2 | N123: 3550000 | O123: 3.63%
A124: 114 | B124: Banking | C124: PNB | D124: 63.70 | E124: 63.92 | F124: 63.03 | G124: 62.37 | H124: 61.48 | I124: 64.58 | J124: 65.47 | K124: 66.13 | L124: 64.8 | M124: 63.25 | N124: 119087700 | O124: 2.12%
A125: 115 | B125: Power | C125: POWERGRID | D125: 198.40 | E125: 198.58 | F125: 196.32 | G125: 194.23 | H125: 191.97 | I125: 200.67 | J125: 202.93 | K125: 205.02 | L125: 200.85 | M125: 196.5 | N125: 27452000 | O125: -5.83%
A126: 116 | B126: Media | C126: PVR | D126: 1790.95 | E126: 1798.68 | F126: 1774.37 | G126: 1757.78 | H126: 1733.47 | I126: 1815.27 | J126: 1839.58 | K126: 1856.17 | L126: 1823 | M126: 1782.1 | N126: 1221600 | O126: -1.17%
A127: 117 | B127: Cement | C127: RAMCOCEM | D127: 795.85 | E127: 792.57 | F127: 787.78 | G127: 779.72 | H127: 774.93 | I127: 800.63 | J127: 805.42 | K127: 813.48 | L127: 797.35 | M127: 784.5 | N127: 1043200 | O127: 6.02%
A128: 118 | B128: Banking | C128: RBLBANK | D128: 358.70 | E128: 351.10 | F128: 339.80 | G128: 320.90 | H128: 309.60 | I128: 370.00 | J128: 381.30 | K128: 400.20 | L128: 362.4 | M128: 332.2 | N128: 13121700 | O128: 4.72%
A129: 119 | B129: Power | C129: RECLTD | D129: 139.95 | E129: 139.97 | F129: 138.13 | G129: 136.32 | H129: 134.48 | I129: 141.78 | J129: 143.62 | K129: 145.43 | L129: 141.8 | M129: 138.15 | N129: 21210000 | O129: 0.43%
A130: 120 | B130: Oil_Gas | C130: RELIANCE | D130: 1545.30 | E130: 1550.65 | F130: 1532.75 | G130: 1520.20 | H130: 1502.30 | I130: 1563.20 | J130: 1581.10 | K130: 1593.65 | L130: 1568.55 | M130: 1538.1 | N130: 49204500 | O130: -1.25%
A131: 121 | B131: Metals | C131: SAIL | D131: 38.60 | E131: 38.02 | F131: 36.78 | G131: 34.97 | H131: 33.73 | I131: 39.83 | J131: 41.07 | K131: 42.88 | L131: 39.25 | M131: 36.2 | N131: 88720000 | O131: -2.01%
A132: 122 | B132: Banking | C132: SBIN | D132: 329.15 | E132: 330.37 | F132: 327.03 | G132: 324.92 | H132: 321.58 | I132: 332.48 | J132: 335.82 | K132: 337.93 | L132: 333.7 | M132: 328.25 | N132: 95097000 | O132: -1.56%
A133: 123 | B133: Cement | C133: SHREECEM | D133: 20326.40 | E133: 20387.93 | F133: 20200.97 | G133: 20075.53 | H133: 19888.57 | I133: 20513.37 | J133: 20700.33 | K133: 20825.77 | L133: 20574.9 | M133: 20262.5 | N133: 165700 | O133: -0.78%
A134: 124 | B134: Capital_Goods | C134: SIEMENS | D134: 1491.85 | E134: 1499.40 | F134: 1463.80 | G134: 1435.75 | H134: 1400.15 | I134: 1527.45 | J134: 1563.05 | K134: 1591.10 | L134: 1535 | M134: 1471.35 | N134: 2803350 | O134: 2.60%
A135: 125 | B135: Textile | C135: SRF | D135: 3134.30 | E135: 3136.65 | F135: 3095.70 | G135: 3057.10 | H135: 3016.15 | I135: 3175.25 | J135: 3216.20 | K135: 3254.80 | L135: 3177.6 | M135: 3098.05 | N135: 943000 | O135: 0.96%
A136: 126 | B136: Finance | C136: SRTRANSFIN | D136: 1141.95 | E136: 1136.88 | F136: 1128.07 | G136: 1114.18 | H136: 1105.37 | I136: 1150.77 | J136: 1159.58 | K136: 1173.47 | L136: 1145.7 | M136: 1123 | N136: 4186800 | O136: -0.30%
A137: 127 | B137: Pharma | C137: SUNPHARMA | D137: 451.60 | E137: 453.03 | F137: 443.72 | G137: 435.83 | H137: 426.52 | I137: 460.92 | J137: 470.23 | K137: 478.12 | L137: 462.35 | M137: 445.15 | N137: 64715050 | O137: -0.23%
A138: 128 | B138: Media | C138: SUNTV | D138: 484.70 | E138: 482.95 | F138: 477.90 | G138: 471.10 | H138: 466.05 | I138: 489.75 | J138: 494.80 | K138: 501.60 | L138: 488 | M138: 476.15 | N138: 3382000 | O138: -3.09%
A139: 129 | B139: Fertilisers | C139: TATACHEM | D139: 641.20 | E139: 640.08 | F139: 635.02 | G139: 628.83 | H139: 623.77 | I139: 646.27 | J139: 651.33 | K139: 657.52 | L139: 645.15 | M139: 633.9 | N139: 2250000 | O139: -2.42%
A140: 130 | B140: Technology | C140: TATAELXSI | D140: 788.90 | E140: 791.70 | F140: 780.50 | G140: 772.10 | H140: 760.90 | I140: 800.10 | J140: 811.30 | K140: 819.70 | L140: 802.9 | M140: 783.3 | N140: 1125000 | O140: 7.08%
A141: 131 | B141: FMCG | C141: TATAGLOBAL | D141: 300.40 | E141: 300.37 | F141: 297.28 | G141: 294.17 | H141: 291.08 | I141: 303.48 | J141: 306.57 | K141: 309.68 | L141: 303.45 | M141: 297.25 | N141: 13143600 | O141: 0.93%
A142: 132 | B142: Automobile | C142: TATAMOTORS | D142: 162.75 | E142: 162.90 | F142: 160.50 | G142: 158.25 | H142: 155.85 | I142: 165.15 | J142: 167.55 | K142: 169.80 | L142: 165.3 | M142: 160.65 | N142: 59881500 | O142: 1.80%
A143: 133 | B143: Automobile | C143: TATAMTRDVR | D143: 74.55 | E143: 74.65 | F143: 73.55 | G143: 72.55 | H143: 71.45 | I143: 75.65 | J143: 76.75 | K143: 77.75 | L143: 75.75 | M143: 73.65 | N143: 38795200 | O143: -0.93%
A144: 134 | B144: Power | C144: TATAPOWER | D144: 55.30 | E144: 55.30 | F144: 54.75 | G144: 54.20 | H144: 53.65 | I144: 55.85 | J144: 56.40 | K144: 56.95 | L144: 55.85 | M144: 54.75 | N144: 78093000 | O144: 0.86%
A145: 135 | B145: Metals | C145: TATASTEEL | D145: 400.55 | E145: 396.02 | F145: 388.38 | G145: 376.22 | H145: 368.58 | I145: 408.18 | J145: 415.82 | K145: 427.98 | L145: 403.65 | M145: 383.85 | N145: 22328049 | O145: -0.82%
A146: 136 | B146: Technology | C146: TCS | D146: 2070.80 | E146: 2081.22 | F146: 2052.78 | G146: 2034.77 | H146: 2006.33 | I146: 2099.23 | J146: 2127.67 | K146: 2145.68 | L146: 2109.65 | M146: 2063.2 | N146: 19856000 | O146: -0.49%
A147: 137 | B147: Technology | C147: TECHM | D147: 754.00 | E147: 754.73 | F147: 743.27 | G147: 732.53 | H147: 721.07 | I147: 765.47 | J147: 776.93 | K147: 787.67 | L147: 766.2 | M147: 744 | N147: 15294000 | O147: 0.09%
A148: 138 | B148: FMCG | C148: TITAN | D148: 1134.25 | E148: 1135.43 | F148: 1121.87 | G148: 1109.48 | H148: 1095.92 | I148: 1147.82 | J148: 1161.38 | K148: 1173.77 | L148: 1149 | M148: 1123.05 | N148: 11998500 | O148: -1.39%
A149: 139 | B149: Pharma | C149: TORNTPHARM | D149: 1715.30 | E149: 1736.42 | F149: 1686.93 | G149: 1658.57 | H149: 1609.08 | I149: 1764.78 | J149: 1814.27 | K149: 1842.63 | L149: 1785.9 | M149: 1708.05 | N149: 407000 | O149: 10.45%
A150: 140 | B150: Power | C150: TORNTPOWER | D150: 281.75 | E150: 282.75 | F150: 280.20 | G150: 278.65 | H150: 276.10 | I150: 284.30 | J150: 286.85 | K150: 288.40 | L150: 285.3 | M150: 281.2 | N150: 4872000 | O150: 3.70%
A151: 141 | B151: Automobile | C151: TVSMOTOR | D151: 442.80 | E151: 444.47 | F151: 438.78 | G151: 434.77 | H151: 429.08 | I151: 448.48 | J151: 454.17 | K151: 458.18 | L151: 450.15 | M151: 440.45 | N151: 9829650 | O151: 3.61%
A152: 142 | B152: FMCG | C152: UBL | D152: 1220.00 | E152: 1224.00 | F152: 1213.35 | G152: 1206.70 | H152: 1196.05 | I152: 1230.65 | J152: 1241.30 | K152: 1247.95 | L152: 1234.65 | M152: 1217.35 | N152: 1725500 | O152: -1.52%
A153: 143 | B153: Finance | C153: UJJIVAN | D153: 304.40 | E153: 301.23 | F153: 295.62 | G153: 286.83 | H153: 281.22 | I153: 310.02 | J153: 315.63 | K153: 324.42 | L153: 306.85 | M153: 292.45 | N153: 8843700 | O153: 4.20%
A154: 144 | B154: Cement | C154: ULTRACEMCO | D154: 4081.95 | E154: 4070.85 | F154: 4043.30 | G154: 4004.65 | H154: 3977.10 | I154: 4109.50 | J154: 4137.05 | K154: 4175.70 | L154: 4098.4 | M154: 4032.2 | N154: 2834000 | O154: -1.00%
A155: 145 | B155: Banking | C155: UNIONBANK | D155: 57.00 | E155: 57.28 | F155: 56.42 | G155: 55.83 | H155: 54.97 | I155: 57.87 | J155: 58.73 | K155: 59.32 | L155: 58.15 | M155: 56.7 | N155: 33460000 | O155: -0.27%
A156: 146 | B156: Fertilisers | C156: UPL | D156: 534.60 | E156: 536.92 | F156: 529.33 | G156: 524.07 | H156: 516.48 | I156: 542.18 | J156: 549.77 | K156: 555.03 | L156: 544.5 | M156: 531.65 | N156: 15836400 | O156: 0.59%
A157: 147 | B157: Metals | C157: VEDL | D157: 142.45 | E157: 141.40 | F157: 139.70 | G157: 136.95 | H157: 135.25 | I157: 144.15 | J157: 145.85 | K157: 148.60 | L157: 143.1 | M157: 138.65 | N157: 63006000 | O157: -1.56%
A158: 148 | B158: Capital_Goods | C158: VOLTAS | D158: 695.20 | E158: 697.17 | F158: 689.48 | G158: 683.77 | H158: 676.08 | I158: 702.88 | J158: 710.57 | K158: 716.28 | L158: 704.85 | M158: 691.45 | N158: 3121000 | O158: 6.99%
A159: 149 | B159: Technology | C159: WIPRO | D159: 242.85 | E159: 243.42 | F159: 241.53 | G159: 240.22 | H159: 238.33 | I159: 244.73 | J159: 246.62 | K159: 247.93 | L159: 245.3 | M159: 242.1 | N159: 25788800 | O159: -0.38%
A160: 150 | B160: Banking | C160: YESBANK | D160: 64.75 | E160: 64.93 | F160: 63.67 | G160: 62.58 | H160: 61.32 | I160: 66.02 | J160: 67.28 | K160: 68.37 | L160: 66.2 | M160: 63.85 | N160: 197472000 | O160: -0.59%
A161: 151 | B161: Media | C161: ZEEL | D161: 352.75 | E161: 348.10 | F161: 338.40 | G161: 324.05 | H161: 314.35 | I161: 362.45 | J161: 372.15 | K161: 386.50 | L161: 357.8 | M161: 333.75 | N161: 47259000 | O161: 9.81%
A178: Pivot Point: This is trigger point for intra day buy/sell based on the price range of the previous day
A179: As per the tool,the trader should take BUY position just above Pivot and keep the stop loss of pivot point and the first target would be Resistance 1(R1)
A180: If R1 is crossed then R2 becomes the next target with stop loss of at R1
A181: Similarly if price goes below pivot point then the trader should sell and keep a stop loss of pivot point and the first target would be S1
A182: If S1 is crossed then S2 becomes the next target with stop loss of at S1
A184: Disclaimer:
A185: This document has been prepared by the Retail Research Desk of Asit C Mehta
A186: Investment Intermediates Ltd. and is meant for use of the recipient only
A187: and is not for circulation. This document is not to be reported or
A188: copied or made available to others. It should not be considered to be
A189: taken as an offer to sell or a solicitation to buy any security. The
A190: information contained herein is from sources believed reliable. We do
A191: not represent that it is accurate or complete and it should not be
A192: relied upon as such. We may from time to time have positions in and buy
A193: and sell securities referred to herein

Sheet Cash Intra
M5: Back to Main Page
A6: FOR INTRA DAY TRADING | K6: =Main!B10 -> 2019-11-25
A8: Sr.no | B8: Scrip | C8: CLOSE RATE | D8: Pivot Point | E8: Supports | H8: Resistances
C9: Point | E9: S1 | F9: S2 | G9: S3 | H9: R1 | I9: R2 | J9: R3 | K9: HIGH | L9: LOW | M9: Total Trade Quanity in Lakhs
A10: 1 | B10: Nifty 50 | C10: 11914.4 | D10: 11922.00 | E10: 11875.90 | F10: 11837.40 | G10: 11791.30 | H10: 11960.50 | I10: 12006.60 | J10: 12045.10 | K10: 11968.1 | L10: 11883.5
A11: 2 | B11: Nifty Bank | C11: 31111.6 | D11: 31187.00 | E11: 30979.80 | F11: 30848.00 | G11: 30640.80 | H11: 31318.80 | I11: 31526.00 | J11: 31657.80 | K11: 31394.2 | L11: 31055.2
A12: 3 | B12: Nifty CPSE | C12: 1948.4 | D12: 1942.12 | E12: 1931.68 | F12: 1914.97 | G12: 1904.53 | H12: 1958.83 | I12: 1969.27 | J12: 1985.98 | K12: 1952.55 | L12: 1925.4
A13: 4 | B13: Nifty Infra | C13: 3301.3 | D13: 3300.57 | E13: 3289.03 | F13: 3276.77 | G13: 3265.23 | H13: 3312.83 | I13: 3324.37 | J13: 3336.63 | K13: 3312.1 | L13: 3288.3
A14: 5 | B14: Nifty IT | C14: 14995.9 | D14: 15049.10 | E14: 14878.15 | F14: 14760.40 | G14: 14589.45 | H14: 15166.85 | I14: 15337.80 | J14: 15455.55 | K14: 15220.05 | L14: 14931.35
A15: 6 | B15: Nifty PSE | C15: 3271.75 | D15: 3265.72 | E15: 3252.13 | F15: 3232.52 | G15: 3218.93 | H15: 3285.33 | I15: 3298.92 | J15: 3318.53 | K15: 3279.3 | L15: 3246.1
A16: 7 | B16: Nifty Midcap 50 | C16: 4618.85 | D16: 4609.85 | E16: 4598.20 | F16: 4577.55 | G16: 4565.90 | H16: 4630.50 | I16: 4642.15 | J16: 4662.80 | K16: 4621.5 | L16: 4589.2
A17: 8 | B17: ACC | C17: 1469.9 | D17: 1471.58 | E17: 1460.52 | F17: 1451.13 | G17: 1440.07 | H17: 1480.97 | I17: 1492.03 | J17: 1501.42 | K17: 1482.65 | L17: 1462.2 | M17: 5.01614
A18: 9 | B18: AUBANK | C18: 802.3 | D18: 806.77 | E18: 791.53 | F18: 780.77 | G18: 765.53 | H18: 817.53 | I18: 832.77 | J18: 843.53 | K18: 822 | L18: 796 | M18: 3.73463
A19: 10 | B19: ADANIPORTS | C19: 371.45 | D19: 372.48 | E19: 369.42 | F19: 367.38 | G19: 364.32 | H19: 374.52 | I19: 377.58 | J19: 379.62 | K19: 375.55 | L19: 370.45 | M19: 36.79373
A20: 11 | B20: ADANIPOWER | C20: 60.5 | D20: 60.83 | E20: 59.37 | F20: 58.23 | G20: 56.77 | H20: 61.97 | I20: 63.43 | J20: 64.57 | K20: 62.3 | L20: 59.7 | M20: 86.90224
A21: 12 | B21: ABCAPITAL | C21: 100.15 | D21: 97.98 | E21: 94.67 | F21: 89.18 | G21: 85.87 | H21: 103.47 | I21: 106.78 | J21: 112.27 | K21: 101.3 | L21: 92.5 | M21: 140.51512
A22: 13 | B22: ABFRL | C22: 219.45 | D22: 217.12 | E22: 209.33 | F22: 199.22 | G22: 191.43 | H22: 227.23 | I22: 235.02 | J22: 245.13 | K22: 224.9 | L22: 207 | M22: 7.69914
A23: 14 | B23: AJANTPHARM | C23: 1000.5 | D23: 1004.52 | E23: 988.03 | F23: 975.57 | G23: 959.08 | H23: 1016.98 | I23: 1033.47 | J23: 1045.93 | K23: 1021 | L23: 992.05 | M23: 0.42276
A24: 15 | B24: ALKEM | C24: 2078.8 | D24: 2084.20 | E24: 2050.60 | F24: 2022.40 | G24: 1988.80 | H24: 2112.40 | I24: 2146.00 | J24: 2174.20 | K24: 2117.8 | L24: 2056 | M24: 0.20939
A25: 16 | B25: ALBK | C25: 24.05 | D25: 24.10 | E25: 23.75 | F25: 23.45 | G25: 23.10 | H25: 24.40 | I25: 24.75 | J25: 25.05 | K25: 24.45 | L25: 23.8 | M25: 20.39847
A26: 17 | B26: AMARAJABAT | C26: 741.7 | D26: 744.77 | E26: 732.33 | F26: 722.97 | G26: 710.53 | H26: 754.13 | I26: 766.57 | J26: 775.93 | K26: 757.2 | L26: 735.4 | M26: 8.31747
A27: 18 | B27: AMBUJACEM | C27: 200.8 | D27: 200.37 | E27: 198.53 | F27: 196.27 | G27: 194.43 | H27: 202.63 | I27: 204.47 | J27: 206.73 | K27: 202.2 | L27: 198.1 | M27: 48.6107
A28: 19 | B28: APOLLOHOSP | C28: 1451.6 | D28: 1455.77 | E28: 1436.48 | F28: 1421.37 | G28: 1402.08 | H28: 1470.88 | I28: 1490.17 | J28: 1505.28 | K28: 1475.05 | L28: 1440.65 | M28: 8.82624
A29: 20 | B29: APOLLOTYRE | C29: 167.9 | D29: 166.27 | E29: 164.13 | F29: 160.37 | G29: 158.23 | H29: 170.03 | I29: 172.17 | J29: 175.93 | K29: 168.4 | L29: 162.5 | M29: 25.46788
A30: 21 | B30: ASHOKLEY | C30: 81.35 | D30: 81.60 | E30: 80.45 | F30: 79.55 | G30: 78.40 | H30: 82.50 | I30: 83.65 | J30: 84.55 | K30: 82.75 | L30: 80.7 | M30: 170.38464
A31: 22 | B31: ASIANPAINT | C31: 1682.75 | D31: 1690.90 | E31: 1667.85 | F31: 1652.95 | G31: 1629.90 | H31: 1705.80 | I31: 1728.85 | J31: 1743.75 | K31: 1713.95 | L31: 1676 | M31: 12.75334
A32: 23 | B32: AUROPHARMA | C32: 428.85 | D32: 433.35 | E32: 417.00 | F32: 405.15 | G32: 388.80 | H32: 445.20 | I32: 461.55 | J32: 473.40 | K32: 449.7 | L32: 421.5 | M32: 110.28958
A33: 24 | B33: DMART | C33: 1837.25 | D33: 1831.42 | E33: 1822.83 | F33: 1808.42 | G33: 1799.83 | H33: 1845.83 | I33: 1854.42 | J33: 1868.83 | K33: 1840 | L33: 1817 | M33: 2.27611
A34: 25 | B34: AXISBANK | C34: 732.1 | D34: 733.20 | E34: 726.40 | F34: 720.70 | G34: 713.90 | H34: 738.90 | I34: 745.70 | J34: 751.40 | K34: 740 | L34: 727.5 | M34: 48.89776
A35: 26 | B35: BAJAJ-AUTO | C35: 3152.35 | D35: 3157.28 | E35: 3128.57 | F35: 3104.78 | G35: 3076.07 | H35: 3181.07 | I35: 3209.78 | J35: 3233.57 | K35: 3186 | L35: 3133.5 | M35: 2.85777
A36: 27 | B36: BAJFINANCE | C36: 4078.3 | D36: 4087.70 | E36: 4031.60 | F36: 3984.90 | G36: 3928.80 | H36: 4134.40 | I36: 4190.50 | J36: 4237.20 | K36: 4143.8 | L36: 4041 | M36: 12.22615
A37: 28 | B37: BAJAJFINSV | C37: 9039.3 | D37: 9033.43 | E37: 8986.87 | F37: 8934.43 | G37: 8887.87 | H37: 9085.87 | I37: 9132.43 | J37: 9184.87 | K37: 9080 | L37: 8981 | M37: 1.55772
A38: 29 | B38: BAJAJHLDNG | C38: 3691.3 | D38: 3700.77 | E38: 3666.53 | F38: 3641.77 | G38: 3607.53 | H38: 3725.53 | I38: 3759.77 | J38: 3784.53 | K38: 3735 | L38: 3676 | M38: 0.09917
A39: 30 | B39: BALKRISIND | C39: 843.7 | D39: 842.35 | E39: 834.75 | F39: 825.80 | G39: 818.20 | H39: 851.30 | I39: 858.90 | J39: 867.85 | K39: 849.95 | L39: 833.4 | M39: 2.46911
A40: 31 | B40: BANDHANBNK | C40: 526.75 | D40: 529.42 | E40: 520.83 | F40: 514.92 | G40: 506.33 | H40: 535.33 | I40: 543.92 | J40: 549.83 | K40: 538 | L40: 523.5 | M40: 24.85274
A41: 32 | B41: BANKBARODA | C41: 99.1 | D41: 99.10 | E41: 98.40 | F41: 97.70 | G41: 97.00 | H41: 99.80 | I41: 100.50 | J41: 101.20 | K41: 99.8 | L41: 98.4 | M41: 191.22025
A42: 33 | B42: BANKINDIA | C42: 73.05 | D42: 73.15 | E42: 72.15 | F42: 71.25 | G42: 70.25 | H42: 74.05 | I42: 75.05 | J42: 75.95 | K42: 74.15 | L42: 72.25 | M42: 99.25433
A43: 34 | B43: BATAINDIA | C43: 1642.7 | D43: 1636.53 | E43: 1623.17 | F43: 1603.63 | G43: 1590.27 | H43: 1656.07 | I43: 1669.43 | J43: 1688.97 | K43: 1649.9 | L43: 1617 | M43: 6.68209
A44: 35 | B44: BERGEPAINT | C44: 476.9 | D44: 477.28 | E44: 471.62 | F44: 466.33 | G44: 460.67 | H44: 482.57 | I44: 488.23 | J44: 493.52 | K44: 482.95 | L44: 472 | M44: 15.47853
A45: 36 | B45: BEL | C45: 109.45 | D45: 109.42 | E45: 108.03 | F45: 106.62 | G45: 105.23 | H45: 110.83 | I45: 112.22 | J45: 113.63 | K45: 110.8 | L45: 108 | M45: 57.57149
A46: 37 | B46: BHARATFORG | C46: 450.6 | D46: 450.47 | E46: 447.43 | F46: 444.27 | G46: 441.23 | H46: 453.63 | I46: 456.67 | J46: 459.83 | K46: 453.5 | L46: 447.3 | M46: 12.24765
A47: 38 | B47: BHEL | C47: 56.1 | D47: 55.68 | E47: 54.87 | F47: 53.63 | G47: 52.82 | H47: 56.92 | I47: 57.73 | J47: 58.97 | K47: 56.5 | L47: 54.45 | M47: 149.97151
A48: 39 | B48: BPCL | C48: 509.4 | D48: 510.12 | E48: 504.78 | F48: 500.17 | G48: 494.83 | H48: 514.73 | I48: 520.07 | J48: 524.68 | K48: 515.45 | L48: 505.5 | M48: 118.12445
A49: 40 | B49: BHARTIARTL | C49: 420.65 | D49: 422.53 | E49: 415.12 | F49: 409.58 | G49: 402.17 | H49: 428.07 | I49: 435.48 | J49: 441.02 | K49: 429.95 | L49: 417 | M49: 167.75621
A50: 41 | B50: INFRATEL | C50: 232 | D50: 234.13 | E50: 225.27 | F50: 218.53 | G50: 209.67 | H50: 240.87 | I50: 249.73 | J50: 256.47 | K50: 243 | L50: 227.4 | M50: 181.60133
A51: 42 | B51: BIOCON | C51: 255.9 | D51: 255.55 | E51: 252.85 | F51: 249.80 | G51: 247.10 | H51: 258.60 | I51: 261.30 | J51: 264.35 | K51: 258.25 | L51: 252.5 | M51: 21.12123
A52: 43 | B52: BBTC | C52: 1077 | D52: 1084.52 | E52: 1064.68 | F52: 1052.37 | G52: 1032.53 | H52: 1096.83 | I52: 1116.67 | J52: 1128.98 | K52: 1104.35 | L52: 1072.2 | M52: 0.68784
A53: 44 | B53: BOSCHLTD | C53: 16337.35 | D53: 15982.87 | E53: 15565.73 | F53: 14794.12 | G53: 14376.98 | H53: 16754.48 | I53: 17171.62 | J53: 17943.23 | K53: 16400 | L53: 15211.25 | M53: 0.47256
A54: 45 | B54: BRITANNIA | C54: 3022.65 | D54: 3036.93 | E54: 3001.87 | F54: 2981.08 | G54: 2946.02 | H54: 3057.72 | I54: 3092.78 | J54: 3113.57 | K54: 3072 | L54: 3016.15 | M54: 3.49622
A55: 46 | B55: CESC | C55: 745.85 | D55: 741.27 | E55: 734.93 | F55: 724.02 | G55: 717.68 | H55: 752.18 | I55: 758.52 | J55: 769.43 | K55: 747.6 | L55: 730.35 | M55: 3.19349
A56: 47 | B56: CADILAHC | C56: 251.1 | D56: 251.67 | E56: 246.98 | F56: 242.87 | G56: 238.18 | H56: 255.78 | I56: 260.47 | J56: 264.58 | K56: 256.35 | L56: 247.55 | M56: 13.70223
A57: 48 | B57: CANBK | C57: 221.2 | D57: 222.50 | E57: 219.00 | F57: 216.80 | G57: 213.30 | H57: 224.70 | I57: 228.20 | J57: 230.40 | K57: 226 | L57: 220.3 | M57: 84.16415
A58: 49 | B58: CASTROLIND | C58: 145.45 | D58: 148.13 | E58: 141.72 | F58: 137.98 | G58: 131.57 | H58: 151.87 | I58: 158.28 | J58: 162.02 | K58: 154.55 | L58: 144.4 | M58: 39.34479
A59: 50 | B59: CHOLAFIN | C59: 314.35 | D59: 314.13 | E59: 310.27 | F59: 306.18 | G59: 302.32 | H59: 318.22 | I59: 322.08 | J59: 326.17 | K59: 318 | L59: 310.05 | M59: 11.9827
A60: 51 | B60: CIPLA | C60: 478.85 | D60: 478.85 | E60: 472.70 | F60: 466.55 | G60: 460.40 | H60: 485.00 | I60: 491.15 | J60: 497.30 | K60: 485 | L60: 472.7 | M60: 27.78328
A61: 52 | B61: CUB | C61: 214.6 | D61: 215.07 | E61: 212.63 | F61: 210.67 | G61: 208.23 | H61: 217.03 | I61: 219.47 | J61: 221.43 | K61: 217.5 | L61: 213.1 | M61: 6.96336
A62: 53 | B62: COALINDIA | C62: 199 | D62: 198.22 | E62: 197.08 | F62: 195.17 | G62: 194.03 | H62: 200.13 | I62: 201.27 | J62: 203.18 | K62: 199.35 | L62: 196.3 | M62: 43.35573
A63: 54 | B63: COLPAL | C63: 1504.5 | D63: 1500.72 | E63: 1483.83 | F63: 1463.17 | G63: 1446.28 | H63: 1521.38 | I63: 1538.27 | J63: 1558.93 | K63: 1517.6 | L63: 1480.05 | M63: 9.79025
A64: 55 | B64: CONCOR | C64: 558.15 | D64: 562.73 | E64: 549.67 | F64: 541.18 | G64: 528.12 | H64: 571.22 | I64: 584.28 | J64: 592.77 | K64: 575.8 | L64: 554.25 | M64: 15.69013
A65: 56 | B65: COROMANDEL | C65: 466.95 | D65: 464.63 | E65: 460.32 | F65: 453.68 | G65: 449.37 | H65: 471.27 | I65: 475.58 | J65: 482.22 | K65: 468.95 | L65: 458 | M65: 0.5067
A66: 57 | B66: CROMPTON | C66: 254.65 | D66: 254.53 | E66: 250.12 | F66: 245.58 | G66: 241.17 | H66: 259.07 | I66: 263.48 | J66: 268.02 | K66: 258.95 | L66: 250 | M66: 3.93639
A67: 58 | B67: CUMMINSIND | C67: 566.85 | D67: 565.35 | E67: 561.25 | F67: 555.65 | G67: 551.55 | H67: 570.95 | I67: 575.05 | J67: 580.65 | K67: 569.45 | L67: 559.75 | M67: 4.40576
A68: 59 | B68: DLF | C68: 217.25 | D68: 216.95 | E68: 214.55 | F68: 211.85 | G68: 209.45 | H68: 219.65 | I68: 222.05 | J68: 224.75 | K68: 219.35 | L68: 214.25 | M68: 74.59722
A69: 60 | B69: DABUR | C69: 463.8 | D69: 461.92 | E69: 458.93 | F69: 454.07 | G69: 451.08 | H69: 466.78 | I69: 469.77 | J69: 474.63 | K69: 464.9 | L69: 457.05 | M69: 11.17561
A70: 61 | B70: DALBHARAT | C70: 867.8 | D70: 869.38 | E70: 853.42 | F70: 839.03 | G70: 823.07 | H70: 883.77 | I70: 899.73 | J70: 914.12 | K70: 885.35 | L70: 855 | M70: 2.20658
A71: 62 | B71: DIVISLAB | C71: 1733.35 | D71: 1732.90 | E71: 1717.80 | F71: 1702.25 | G71: 1687.15 | H71: 1748.45 | I71: 1763.55 | J71: 1779.10 | K71: 1748 | L71: 1717.35 | M71: 3.76747
A72: 63 | B72: DRREDDY | C72: 2871.25 | D72: 2873.00 | E72: 2841.25 | F72: 2811.25 | G72: 2779.50 | H72: 2903.00 | I72: 2934.75 | J72: 2964.75 | K72: 2904.75 | L72: 2843 | M72: 5.49551
A73: 64 | B73: EDELWEISS | C73: 122.85 | D73: 122.90 | E73: 120.05 | F73: 117.25 | G73: 114.40 | H73: 125.70 | I73: 128.55 | J73: 131.35 | K73: 125.75 | L73: 120.1 | M73: 7.26085
A74: 65 | B74: EICHERMOT | C74: 22753.2 | D74: 22439.40 | E74: 21913.80 | F74: 21074.40 | G74: 20548.80 | H74: 23278.80 | I74: 23804.40 | J74: 24643.80 | K74: 22965 | L74: 21600 | M74: 2.51227
A75: 66 | B75: EMAMILTD | C75: 313.05 | D75: 313.82 | E75: 311.73 | F75: 310.42 | G75: 308.33 | H75: 315.13 | I75: 317.22 | J75: 318.53 | K75: 315.9 | L75: 312.5 | M75: 1.0942
A76: 67 | B76: ENDURANCE | C76: 1088.25 | D76: 1085.95 | E76: 1061.90 | F76: 1035.55 | G76: 1011.50 | H76: 1112.30 | I76: 1136.35 | J76: 1162.70 | K76: 1110 | L76: 1059.6 | M76: 0.19396
A77: 68 | B77: ENGINERSIN | C77: 103.7 | D77: 103.62 | E77: 102.58 | F77: 101.47 | G77: 100.43 | H77: 104.73 | I77: 105.77 | J77: 106.88 | K77: 104.65 | L77: 102.5 | M77: 6.82952
A78: 69 | B78: ESCORTS | C78: 648 | D78: 646.40 | E78: 640.80 | F78: 633.60 | G78: 628.00 | H78: 653.60 | I78: 659.20 | J78: 666.40 | K78: 652 | L78: 639.2 | M78: 15.85264
A79: 70 | B79: EXIDEIND | C79: 193.1 | D79: 191.72 | E79: 189.13 | F79: 185.17 | G79: 182.58 | H79: 195.68 | I79: 198.27 | J79: 202.23 | K79: 194.3 | L79: 187.75 | M79: 45.35172
A80: 71 | B80: FEDERALBNK | C80: 87.8 | D80: 87.90 | E80: 87.20 | F80: 86.60 | G80: 85.90 | H80: 88.50 | I80: 89.20 | J80: 89.80 | K80: 88.6 | L80: 87.3 | M80: 72.16267
A81: 72 | B81: FCONSUMER | C81: 22.45 | D81: 22.55 | E81: 22.20 | F81: 21.95 | G81: 21.60 | H81: 22.80 | I81: 23.15 | J81: 23.40 | K81: 22.9 | L81: 22.3 | M81: 6.90566
A82: 73 | B82: FRETAIL | C82: 332.55 | D82: 331.30 | E82: 328.35 | F82: 324.15 | G82: 321.20 | H82: 335.50 | I82: 338.45 | J82: 342.65 | K82: 334.25 | L82: 327.1 | M82: 2.62522
A83: 74 | B83: GAIL | C83: 122.35 | D83: 122.02 | E83: 121.38 | F83: 120.42 | G83: 119.78 | H83: 122.98 | I83: 123.62 | J83: 124.58 | K83: 122.65 | L83: 121.05 | M83: 68.50221
A84: 75 | B84: GMRINFRA | C84: 20.55 | D84: 20.50 | E84: 20.20 | F84: 19.85 | G84: 19.55 | H84: 20.85 | I84: 21.15 | J84: 21.50 | K84: 20.8 | L84: 20.15 | M84: 140.88927
A85: 76 | B85: GICRE | C85: 258.35 | D85: 262.82 | E85: 251.13 | F85: 243.92 | G85: 232.23 | H85: 270.03 | I85: 281.72 | J85: 288.93 | K85: 274.5 | L85: 255.6 | M85: 7.42228
A86: 77 | B86: GLENMARK | C86: 344.05 | D86: 347.08 | E86: 339.17 | F86: 334.28 | G86: 326.37 | H86: 351.97 | I86: 359.88 | J86: 364.77 | K86: 355 | L86: 342.2 | M86: 30.98682
A87: 78 | B87: GODREJAGRO | C87: 471.65 | D87: 471.25 | E87: 468.50 | F87: 465.35 | G87: 462.60 | H87: 474.40 | I87: 477.15 | J87: 480.30 | K87: 474 | L87: 468.1 | M87: 0.29332
A88: 79 | B88: GODREJCP | C88: 712.7 | D88: 716.80 | E88: 704.90 | F88: 697.10 | G88: 685.20 | H88: 724.60 | I88: 736.50 | J88: 744.30 | K88: 728.7 | L88: 709 | M88: 5.33497
A89: 80 | B89: GODREJIND | C89: 435.9 | D89: 437.10 | E89: 433.30 | F89: 430.70 | G89: 426.90 | H89: 439.70 | I89: 443.50 | J89: 446.10 | K89: 440.9 | L89: 434.5 | M89: 0.47518
A90: 81 | B90: GODREJPROP | C90: 892.35 | D90: 882.75 | E90: 870.10 | F90: 847.85 | G90: 835.20 | H90: 905.00 | I90: 917.65 | J90: 939.90 | K90: 895.4 | L90: 860.5 | M90: 3.9142
A91: 82 | B91: GRAPHITE | C91: 315.85 | D91: 314.28 | E91: 304.57 | F91: 293.28 | G91: 283.57 | H91: 325.57 | I91: 335.28 | J91: 346.57 | K91: 324 | L91: 303 | M91: 40.24497
A92: 83 | B92: GRASIM | C92: 793.2 | D92: 786.78 | E92: 776.67 | F92: 760.13 | G92: 750.02 | H92: 803.32 | I92: 813.43 | J92: 829.97 | K92: 796.9 | L92: 770.25 | M92: 14.57907
A93: 84 | B93: GSPL | C93: 215.45 | D93: 214.60 | E93: 211.60 | F93: 207.75 | G93: 204.75 | H93: 218.45 | I93: 221.45 | J93: 225.30 | K93: 217.6 | L93: 210.75 | M93: 2.03151
A94: 85 | B94: HEG | C94: 1031.2 | D94: 1037.02 | E94: 1007.13 | F94: 983.07 | G94: 953.18 | H94: 1061.08 | I94: 1090.97 | J94: 1115.03 | K94: 1066.9 | L94: 1012.95 | M94: 9.68402
A95: 86 | B95: HCLTECH | C95: 1114.75 | D95: 1119.55 | E95: 1104.15 | F95: 1093.55 | G95: 1078.15 | H95: 1130.15 | I95: 1145.55 | J95: 1156.15 | K95: 1134.95 | L95: 1108.95 | M95: 12.98964
A96: 87 | B96: HDFCAMC | C96: 3707.8 | D96: 3744.65 | E96: 3645.30 | F96: 3582.80 | G96: 3483.45 | H96: 3807.15 | I96: 3906.50 | J96: 3969.00 | K96: 3844 | L96: 3682.15 | M96: 9.30114
A97: 88 | B97: HDFCBANK | C97: 1264.75 | D97: 1270.13 | E97: 1256.62 | F97: 1248.48 | G97: 1234.97 | H97: 1278.27 | I97: 1291.78 | J97: 1299.92 | K97: 1283.65 | L97: 1262 | M97: 38.44005
A98: 89 | B98: HDFCLIFE | C98: 586.4 | D98: 587.18 | E98: 580.47 | F98: 574.53 | G98: 567.82 | H98: 593.12 | I98: 599.83 | J98: 605.77 | K98: 593.9 | L98: 581.25 | M98: 22.75245
A99: 90 | B99: HAVELLS | C99: 638.55 | D99: 642.62 | E99: 631.93 | F99: 625.32 | G99: 614.63 | H99: 649.23 | I99: 659.92 | J99: 666.53 | K99: 653.3 | L99: 636 | M99: 16.06769
A100: 91 | B100: HEROMOTOCO | C100: 2441.6 | D100: 2442.00 | E100: 2425.60 | F100: 2409.60 | G100: 2393.20 | H100: 2458.00 | I100: 2474.40 | J100: 2490.40 | K100: 2458.4 | L100: 2426 | M100: 4.71953
A101: 92 | B101: HEXAWARE | C101: 332.65 | D101: 333.78 | E101: 327.77 | F101: 322.88 | G101: 316.87 | H101: 338.67 | I101: 344.68 | J101: 349.57 | K101: 339.8 | L101: 328.9 | M101: 7.50872
A102: 93 | B102: HINDALCO | C102: 190.25 | D102: 189.53 | E102: 187.77 | F102: 185.28 | G102: 183.52 | H102: 192.02 | I102: 193.78 | J102: 196.27 | K102: 191.3 | L102: 187.05 | M102: 46.35776
A103: 94 | B103: HINDPETRO | C103: 290.35 | D103: 288.58 | E103: 285.57 | F103: 280.78 | G103: 277.77 | H103: 293.37 | I103: 296.38 | J103: 301.17 | K103: 291.6 | L103: 283.8 | M103: 35.3226
A104: 95 | B104: HINDUNILVR | C104: 2028.35 | D104: 2029.85 | E104: 2006.50 | F104: 1984.65 | G104: 1961.30 | H104: 2051.70 | I104: 2075.05 | J104: 2096.90 | K104: 2053.2 | L104: 2008 | M104: 8.35864
A105: 96 | B105: HINDZINC | C105: 212.55 | D105: 213.35 | E105: 209.20 | F105: 205.85 | G105: 201.70 | H105: 216.70 | I105: 220.85 | J105: 224.20 | K105: 217.5 | L105: 210 | M105: 7.6214
A106: 97 | B106: HUDCO | C106: 41.7 | D106: 41.85 | E106: 41.40 | F106: 41.10 | G106: 40.65 | H106: 42.15 | I106: 42.60 | J106: 42.90 | K106: 42.3 | L106: 41.55 | M106: 8.4585
A107: 98 | B107: HDFC | C107: 2237.3 | D107: 2225.53 | E107: 2211.07 | F107: 2184.83 | G107: 2170.37 | H107: 2251.77 | I107: 2266.23 | J107: 2292.47 | K107: 2240 | L107: 2199.3 | M107: 21.86207
A108: 99 | B108: ICICIBANK | C108: 496.8 | D108: 496.90 | E108: 492.05 | F108: 487.30 | G108: 482.45 | H108: 501.65 | I108: 506.50 | J108: 511.25 | K108: 501.75 | L108: 492.15 | M108: 184.62401
A109: 100 | B109: ICICIGI | C109: 1357.45 | D109: 1357.48 | E109: 1330.97 | F109: 1304.48 | G109: 1277.97 | H109: 1383.97 | I109: 1410.48 | J109: 1436.97 | K109: 1384 | L109: 1331 | M109: 6.69749
A110: 101 | B110: ICICIPRULI | C110: 497.6 | D110: 497.70 | E110: 493.50 | F110: 489.40 | G110: 485.20 | H110: 501.80 | I110: 506.00 | J110: 510.10 | K110: 501.9 | L110: 493.6 | M110: 24.42942
A111: 102 | B111: IDBI | C111: 38.7 | D111: 37.32 | E111: 34.53 | F111: 30.37 | G111: 27.58 | H111: 41.48 | I111: 44.27 | J111: 48.43 | K111: 40.1 | L111: 33.15 | M111: 205.31534
A112: 103 | B112: IDFCFIRSTB | C112: 43 | D112: 43.02 | E112: 42.78 | F112: 42.57 | G112: 42.33 | H112: 43.23 | I112: 43.47 | J112: 43.68 | K112: 43.25 | L112: 42.8 | M112: 118.42863
A113: 104 | B113: ITC | C113: 247.65 | D113: 248.98 | E113: 245.32 | F113: 242.98 | G113: 239.32 | H113: 251.32 | I113: 254.98 | J113: 257.32 | K113: 252.65 | L113: 246.65 | M113: 163.70384
A114: 105 | B114: IBULHSGFIN | C114: 237.35 | D114: 237.88 | E114: 230.87 | F114: 224.38 | G114: 217.37 | H114: 244.37 | I114: 251.38 | J114: 257.87 | K114: 244.9 | L114: 231.4 | M114: 585.0086
A115: 106 | B115: IBVENTURES | C115: 151.35 | D115: 152.87 | E115: 148.48 | F115: 145.62 | G115: 141.23 | H115: 155.73 | I115: 160.12 | J115: 162.98 | K115: 157.25 | L115: 150 | M115: 8.79001
A116: 107 | B116: INDIANB | C116: 119.15 | D116: 119.72 | E116: 118.08 | F116: 117.02 | G116: 115.38 | H116: 120.78 | I116: 122.42 | J116: 123.48 | K116: 121.35 | L116: 118.65 | M116: 9.47567
A117: 108 | B117: INDHOTEL | C117: 149.6 | D117: 150.32 | E117: 148.28 | F117: 146.97 | G117: 144.93 | H117: 151.63 | I117: 153.67 | J117: 154.98 | K117: 152.35 | L117: 149 | M117: 4.88918
A118: 109 | B118: IOC | C118: 129.8 | D118: 129.52 | E118: 128.63 | F118: 127.47 | G118: 126.58 | H118: 130.68 | I118: 131.57 | J118: 132.73 | K118: 130.4 | L118: 128.35 | M118: 67.29096
A119: 110 | B119: IGL | C119: 403.5 | D119: 404.72 | E119: 395.98 | F119: 388.47 | G119: 379.73 | H119: 412.23 | I119: 420.97 | J119: 428.48 | K119: 413.45 | L119: 397.2 | M119: 46.63366
A120: 111 | B120: INDUSINDBK | C120: 1446.15 | D120: 1447.98 | E120: 1435.17 | F120: 1424.18 | G120: 1411.37 | H120: 1458.97 | I120: 1471.78 | J120: 1482.77 | K120: 1460.8 | L120: 1437 | M120: 20.6228
A121: 112 | B121: NAUKRI | C121: 2605 | D121: 2601.18 | E121: 2572.42 | F121: 2539.83 | G121: 2511.07 | H121: 2633.77 | I121: 2662.53 | J121: 2695.12 | K121: 2629.95 | L121: 2568.6 | M121: 4.27477
A122: 113 | B122: INFY | C122: 693.2 | D122: 696.77 | E122: 681.53 | F122: 669.87 | G122: 654.63 | H122: 708.43 | I122: 723.67 | J122: 735.33 | K122: 712 | L122: 685.1 | M122: 144.15826
A123: 114 | B123: INDIGO | C123: 1391 | D123: 1384.38 | E123: 1363.87 | F123: 1336.73 | G123: 1316.22 | H123: 1411.52 | I123: 1432.03 | J123: 1459.17 | K123: 1404.9 | L123: 1357.25 | M123: 21.78554
A124: 115 | B124: IPCALAB | C124: 1105.9 | D124: 1109.85 | E124: 1090.00 | F124: 1074.10 | G124: 1054.25 | H124: 1125.75 | I124: 1145.60 | J124: 1161.50 | K124: 1129.7 | L124: 1093.95 | M124: 0.7487
A125: 116 | B125: JSWENERGY | C125: 70.1 | D125: 70.03 | E125: 69.17 | F125: 68.23 | G125: 67.37 | H125: 70.97 | I125: 71.83 | J125: 72.77 | K125: 70.9 | L125: 69.1 | M125: 3.97574
A126: 117 | B126: JSWSTEEL | C126: 251.25 | D126: 249.52 | E126: 246.03 | F126: 240.82 | G126: 237.33 | H126: 254.73 | I126: 258.22 | J126: 263.43 | K126: 253 | L126: 244.3 | M126: 49.27891
A127: 118 | B127: JINDALSTEL | C127: 144.2 | D127: 142.07 | E127: 138.43 | F127: 132.67 | G127: 129.03 | H127: 147.83 | I127: 151.47 | J127: 157.23 | K127: 145.7 | L127: 136.3 | M127: 244.39375
A128: 119 | B128: JUBLFOOD | C128: 1562.7 | D128: 1568.83 | E128: 1546.92 | F128: 1531.13 | G128: 1509.22 | H128: 1584.62 | I128: 1606.53 | J128: 1622.32 | K128: 1590.75 | L128: 1553.05 | M128: 6.17057
A129: 120 | B129: JUBILANT | C129: 517.25 | D129: 517.75 | E129: 511.50 | F129: 505.75 | G129: 499.50 | H129: 523.50 | I129: 529.75 | J129: 535.50 | K129: 524 | L129: 512 | M129: 2.13746
A130: 121 | B130: KOTAKBANK | C130: 1569.1 | D130: 1576.03 | E130: 1558.17 | F130: 1547.23 | G130: 1529.37 | H130: 1586.97 | I130: 1604.83 | J130: 1615.77 | K130: 1593.9 | L130: 1565.1 | M130: 18.62434
A131: 122 | B131: L&TFH | C131: 96.55 | D131: 95.93 | E131: 94.92 | F131: 93.28 | G131: 92.27 | H131: 97.57 | I131: 98.58 | J131: 100.22 | K131: 96.95 | L131: 94.3 | M131: 63.35855
A132: 123 | B132: LTTS | C132: 1468.45 | D132: 1468.10 | E132: 1446.40 | F132: 1424.35 | G132: 1402.65 | H132: 1490.15 | I132: 1511.85 | J132: 1533.90 | K132: 1489.8 | L132: 1446.05 | M132: 1.10942
A133: 124 | B133: LICHSGFIN | C133: 419.7 | D133: 418.28 | E133: 414.22 | F133: 408.73 | G133: 404.67 | H133: 423.77 | I133: 427.83 | J133: 433.32 | K133: 422.35 | L133: 412.8 | M133: 17.61519
A134: 125 | B134: LTI | C134: 1687.3 | D134: 1682.32 | E134: 1656.23 | F134: 1625.17 | G134: 1599.08 | H134: 1713.38 | I134: 1739.47 | J134: 1770.53 | K134: 1708.4 | L134: 1651.25 | M134: 0.38969
A135: 126 | B135: LT | C135: 1378.65 | D135: 1382.87 | E135: 1366.78 | F135: 1354.92 | G135: 1338.83 | H135: 1394.73 | I135: 1410.82 | J135: 1422.68 | K135: 1398.95 | L135: 1371 | M135: 23.63205
A136: 127 | B136: LUPIN | C136: 772.4 | D136: 773.85 | E136: 765.75 | F136: 759.10 | G136: 751.00 | H136: 780.50 | I136: 788.60 | J136: 795.25 | K136: 781.95 | L136: 767.2 | M136: 13.23663
A137: 128 | B137: MRF | C137: 62651.35 | D137: 62750.47 | E137: 62400.93 | F137: 62150.52 | G137: 61800.98 | H137: 63000.88 | I137: 63350.42 | J137: 63600.83 | K137: 63100 | L137: 62500.05 | M137: 0.03155
A138: 129 | B138: MGL | C138: 1018.5 | D138: 1024.23 | E138: 1003.47 | F138: 988.43 | G138: 967.67 | H138: 1039.27 | I138: 1060.03 | J138: 1075.07 | K138: 1045 | L138: 1009.2 | M138: 5.14048
A139: 130 | B139: M&MFIN | C139: 333 | D139: 330.55 | E139: 326.75 | F139: 320.50 | G139: 316.70 | H139: 336.80 | I139: 340.60 | J139: 346.85 | K139: 334.35 | L139: 324.3 | M139: 11.60548
A140: 131 | B140: M&M | C140: 546 | D140: 546.73 | E140: 538.47 | F140: 530.93 | G140: 522.67 | H140: 554.27 | I140: 562.53 | J140: 570.07 | K140: 555 | L140: 539.2 | M140: 27.98026
A141: 132 | B141: MANAPPURAM | C141: 160.55 | D141: 160.60 | E141: 158.80 | F141: 157.05 | G141: 155.25 | H141: 162.35 | I141: 164.15 | J141: 165.90 | K141: 162.4 | L141: 158.85 | M141: 28.22879
A142: 133 | B142: MRPL | C142: 47.8 | D142: 47.75 | E142: 47.40 | F142: 47.00 | G142: 46.65 | H142: 48.15 | I142: 48.50 | J142: 48.90 | K142: 48.1 | L142: 47.35 | M142: 1.35895
A143: 134 | B143: MARICO | C143: 357.8 | D143: 356.83 | E143: 354.67 | F143: 351.53 | G143: 349.37 | H143: 359.97 | I143: 362.13 | J143: 365.27 | K143: 359 | L143: 353.7 | M143: 8.13957
A144: 135 | B144: MARUTI | C144: 7060.45 | D144: 7045.97 | E144: 7014.48 | F144: 6968.52 | G144: 6937.03 | H144: 7091.93 | I144: 7123.42 | J144: 7169.38 | K144: 7077.45 | L144: 7000 | M144: 6.85503
A145: 136 | B145: MFSL | C145: 507.25 | D145: 506.03 | E145: 499.72 | F145: 492.18 | G145: 485.87 | H145: 513.57 | I145: 519.88 | J145: 527.42 | K145: 512.35 | L145: 498.5 | M145: 12.59741
A146: 137 | B146: MINDTREE | C146: 708.2 | D146: 701.78 | E146: 692.32 | F146: 676.43 | G146: 666.97 | H146: 717.67 | I146: 727.13 | J146: 743.02 | K146: 711.25 | L146: 685.9 | M146: 5.81247
A147: 138 | B147: MOTHERSUMI | C147: 127.25 | D147: 126.83 | E147: 124.42 | F147: 121.58 | G147: 119.17 | H147: 129.67 | I147: 132.08 | J147: 134.92 | K147: 129.25 | L147: 124 | M147: 124.03554
A148: 139 | B148: MPHASIS | C148: 857.8 | D148: 866.38 | E148: 841.77 | F148: 825.73 | G148: 801.12 | H148: 882.42 | I148: 907.03 | J148: 923.07 | K148: 891 | L148: 850.35 | M148: 4.74983
A149: 140 | B149: MUTHOOTFIN | C149: 685.2 | D149: 686.47 | E149: 680.78 | F149: 676.37 | G149: 670.68 | H149: 690.88 | I149: 696.57 | J149: 700.98 | K149: 692.15 | L149: 682.05 | M149: 6.77437
A150: 141 | B150: NATCOPHARM | C150: 556.2 | D150: 557.55 | E150: 553.60 | F150: 551.00 | G150: 547.05 | H150: 560.15 | I150: 564.10 | J150: 566.70 | K150: 561.5 | L150: 554.95 | M150: 0.41954
A151: 142 | B151: NBCC | C151: 36.8 | D151: 36.73 | E151: 36.27 | F151: 35.73 | G151: 35.27 | H151: 37.27 | I151: 37.73 | J151: 38.27 | K151: 37.2 | L151: 36.2 | M151: 127.50985
A152: 143 | B152: NHPC | C152: 23.5 | D152: 23.52 | E152: 23.33 | F152: 23.17 | G152: 22.98 | H152: 23.68 | I152: 23.87 | J152: 24.03 | K152: 23.7 | L152: 23.35 | M152: 12.26521
A153: 144 | B153: NMDC | C153: 100.25 | D153: 99.83 | E153: 98.87 | F153: 97.48 | G153: 96.52 | H153: 101.22 | I153: 102.18 | J153: 103.57 | K153: 100.8 | L153: 98.45 | M153: 25.03954
A154: 145 | B154: NTPC | C154: 117.8 | D154: 117.98 | E154: 116.77 | F154: 115.73 | G154: 114.52 | H154: 119.02 | I154: 120.23 | J154: 121.27 | K154: 119.2 | L154: 116.95 | M154: 139.34099
A155: 146 | B155: NATIONALUM | C155: 41.75 | D155: 41.47 | E155: 40.98 | F155: 40.22 | G155: 39.73 | H155: 42.23 | I155: 42.72 | J155: 43.48 | K155: 41.95 | L155: 40.7 | M155: 46.06087
A156: 147 | B156: NESTLEIND | C156: 14171.5 | D156: 14191.48 | E156: 14082.02 | F156: 13992.53 | G156: 13883.07 | H156: 14280.97 | I156: 14390.43 | J156: 14479.92 | K156: 14300.95 | L156: 14102 | M156: 0.43132
A157: 148 | B157: OBEROIRLTY | C157: 504.8 | D157: 504.45 | E157: 500.45 | F157: 496.10 | G157: 492.10 | H157: 508.80 | I157: 512.80 | J157: 517.15 | K157: 508.45 | L157: 500.1 | M157: 1.59179
A158: 149 | B158: ONGC | C158: 133.85 | D158: 133.10 | E158: 131.55 | F158: 129.25 | G158: 127.70 | H158: 135.40 | I158: 136.95 | J158: 139.25 | K158: 134.65 | L158: 130.8 | M158: 63.23556
A159: 150 | B159: OIL | C159: 153.9 | D159: 153.28 | E159: 150.67 | F159: 147.43 | G159: 144.82 | H159: 156.52 | I159: 159.13 | J159: 162.37 | K159: 155.9 | L159: 150.05 | M159: 9.59672
A160: 151 | B160: OFSS | C160: 2910.3 | D160: 2934.85 | E160: 2881.35 | F160: 2852.40 | G160: 2798.90 | H160: 2963.80 | I160: 3017.30 | J160: 3046.25 | K160: 2988.35 | L160: 2905.9 | M160: 0.16267
A161: 152 | B161: ORIENTBANK | C161: 57.35 | D161: 57.62 | E161: 56.33 | F161: 55.32 | G161: 54.03 | H161: 58.63 | I161: 59.92 | J161: 60.93 | K161: 58.9 | L161: 56.6 | M161: 12.30372
A162: 153 | B162: PIIND | C162: 1403.25 | D162: 1411.10 | E162: 1385.20 | F162: 1367.15 | G162: 1341.25 | H162: 1429.15 | I162: 1455.05 | J162: 1473.10 | K162: 1437 | L162: 1393.05 | M162: 0.46106
A163: 154 | B163: PNBHOUSING | C163: 557.55 | D163: 559.10 | E163: 549.40 | F163: 541.25 | G163: 531.55 | H163: 567.25 | I163: 576.95 | J163: 585.10 | K163: 568.8 | L163: 550.95 | M163: 3.07527
A164: 155 | B164: PAGEIND | C164: 21859.2 | D164: 22028.90 | E164: 21557.80 | F164: 21256.40 | G164: 20785.30 | H164: 22330.30 | I164: 22801.40 | J164: 23102.80 | K164: 22500 | L164: 21727.5 | M164: 0.27564
A165: 156 | B165: PETRONET | C165: 264.75 | D165: 267.20 | E165: 261.15 | F165: 257.55 | G165: 251.50 | H165: 270.80 | I165: 276.85 | J165: 280.45 | K165: 273.25 | L165: 263.6 | M165: 29.45996
A166: 157 | B166: PFIZER | C166: 4033.9 | D166: 4083.97 | E166: 3969.93 | F166: 3905.97 | G166: 3791.93 | H166: 4147.93 | I166: 4261.97 | J166: 4325.93 | K166: 4198 | L166: 4020 | M166: 0.31923
A167: 158 | B167: PIDILITIND | C167: 1297.9 | D167: 1300.93 | E167: 1285.42 | F167: 1272.93 | G167: 1257.42 | H167: 1313.42 | I167: 1328.93 | J167: 1341.42 | K167: 1316.45 | L167: 1288.45 | M167: 4.15673
A168: 159 | B168: PEL | C168: 1774.5 | D168: 1766.37 | E168: 1748.28 | F168: 1722.07 | G168: 1703.98 | H168: 1792.58 | I168: 1810.67 | J168: 1836.88 | K168: 1784.45 | L168: 1740.15 | M168: 9.16645
A169: 160 | B169: PFC | C169: 118.25 | D169: 117.15 | E169: 115.50 | F169: 112.75 | G169: 111.10 | H169: 119.90 | I169: 121.55 | J169: 124.30 | K169: 118.8 | L169: 114.4 | M169: 55.19005
A170: 161 | B170: POWERGRID | C170: 198.75 | D170: 198.65 | E170: 196.10 | F170: 193.45 | G170: 190.90 | H170: 201.30 | I170: 203.85 | J170: 206.50 | K170: 201.2 | L170: 196 | M170: 91.12398
A171: 162 | B171: PRESTIGE | C171: 289.35 | D171: 288.72 | E171: 284.28 | F171: 279.22 | G171: 274.78 | H171: 293.78 | I171: 298.22 | J171: 303.28 | K171: 293.15 | L171: 283.65 | M171: 6.7392
A172: 163 | B172: PGHH | C172: 10801.4 | D172: 10847.13 | E172: 10714.27 | F172: 10627.13 | G172: 10494.27 | H172: 10934.27 | I172: 11067.13 | J172: 11154.27 | K172: 10980 | L172: 10760 | M172: 0.03135
A173: 164 | B173: PNB | C173: 63.65 | D173: 63.85 | E173: 63.00 | F173: 62.35 | G173: 61.50 | H173: 64.50 | I173: 65.35 | J173: 66.00 | K173: 64.7 | L173: 63.2 | M173: 144.42645
A174: 165 | B174: QUESS | C174: 529.8 | D174: 528.27 | E174: 518.53 | F174: 507.27 | G174: 497.53 | H174: 539.53 | I174: 549.27 | J174: 560.53 | K174: 538 | L174: 517 | M174: 1.11417
A175: 166 | B175: RBLBANK | C175: 359.3 | D175: 351.60 | E175: 340.20 | F175: 321.10 | G175: 309.70 | H175: 370.70 | I175: 382.10 | J175: 401.20 | K175: 363 | L175: 332.5 | M175: 232.61684
A176: 167 | B176: RECLTD | C176: 139.7 | D176: 139.85 | E176: 138.00 | F176: 136.30 | G176: 134.45 | H176: 141.55 | I176: 143.40 | J176: 145.10 | K176: 141.7 | L176: 138.15 | M176: 34.90116
A177: 168 | B177: RAJESHEXPO | C177: 702.65 | D177: 702.58 | E177: 693.57 | F177: 684.48 | G177: 675.47 | H177: 711.67 | I177: 720.68 | J177: 729.77 | K177: 711.6 | L177: 693.5 | M177: 1.04861
A178: 169 | B178: RELIANCE | C178: 1546.5 | D178: 1551.20 | E178: 1532.90 | F178: 1519.30 | G178: 1501.00 | H178: 1564.80 | I178: 1583.10 | J178: 1596.70 | K178: 1569.5 | L178: 1537.6 | M178: 102.18978
A179: 170 | B179: RNAM | C179: 377.6 | D179: 380.00 | E179: 373.60 | F179: 369.60 | G179: 363.20 | H179: 384.00 | I179: 390.40 | J179: 394.40 | K179: 386.4 | L179: 376 | M179: 35.18005
A180: 171 | B180: SBILIFE | C180: 942.65 | D180: 939.80 | E180: 933.85 | F180: 925.05 | G180: 919.10 | H180: 948.60 | I180: 954.55 | J180: 963.35 | K180: 945.75 | L180: 931 | M180: 31.2598
A181: 172 | B181: SRF | C181: 3124.05 | D181: 3129.73 | E181: 3084.52 | F181: 3044.98 | G181: 2999.77 | H181: 3169.27 | I181: 3214.48 | J181: 3254.02 | K181: 3174.95 | L181: 3090.2 | M181: 3.29812
A182: 173 | B182: SHREECEM | C182: 20297.7 | D182: 20366.12 | E182: 20192.23 | F182: 20086.77 | G182: 19912.88 | H182: 20471.58 | I182: 20645.47 | J182: 20750.93 | K182: 20540 | L182: 20260.65 | M182: 0.17906
A183: 174 | B183: SRTRANSFIN | C183: 1141.2 | D183: 1136.18 | E183: 1125.52 | F183: 1109.83 | G183: 1099.17 | H183: 1151.87 | I183: 1162.53 | J183: 1178.22 | K183: 1146.85 | L183: 1120.5 | M183: 4.64664
A184: 175 | B184: SIEMENS | C184: 1489.55 | D184: 1501.28 | E184: 1458.57 | F184: 1427.58 | G184: 1384.87 | H184: 1532.27 | I184: 1574.98 | J184: 1605.97 | K184: 1544 | L184: 1470.3 | M184: 14.65111
A185: 176 | B185: SBIN | C185: 329.3 | D185: 330.45 | E185: 327.10 | F185: 324.90 | G185: 321.55 | H185: 332.65 | I185: 336.00 | J185: 338.20 | K185: 333.8 | L185: 328.25 | M185: 289.74967
A186: 177 | B186: SAIL | C186: 38.55 | D186: 38.00 | E186: 36.75 | F186: 34.95 | G186: 33.70 | H186: 39.80 | I186: 41.05 | J186: 42.85 | K186: 39.25 | L186: 36.2 | M186: 449.29987
A187: 178 | B187: STRTECH | C187: 124.45 | D187: 123.40 | E187: 121.40 | F187: 118.35 | G187: 116.35 | H187: 126.45 | I187: 128.45 | J187: 131.50 | K187: 125.4 | L187: 120.35 | M187: 15.50029
A188: 179 | B188: SUNPHARMA | C188: 452.1 | D188: 453.03 | E188: 444.17 | F188: 436.23 | G188: 427.37 | H188: 460.97 | I188: 469.83 | J188: 477.77 | K188: 461.9 | L188: 445.1 | M188: 121.14721
A189: 180 | B189: SUNTV | C189: 483.9 | D189: 482.00 | E189: 477.00 | F189: 470.10 | G189: 465.10 | H189: 488.90 | I189: 493.90 | J189: 500.80 | K189: 487 | L189: 475.1 | M189: 20.06469
A190: 181 | B190: SYNGENE | C190: 326.1 | D190: 324.78 | E190: 321.32 | F190: 316.53 | G190: 313.07 | H190: 329.57 | I190: 333.03 | J190: 337.82 | K190: 328.25 | L190: 320 | M190: 3.74161
A191: 182 | B191: TVSMOTOR | C191: 442.95 | D191: 446.03 | E191: 438.12 | F191: 433.28 | G191: 425.37 | H191: 450.87 | I191: 458.78 | J191: 463.62 | K191: 453.95 | L191: 441.2 | M191: 16.22778
A192: 183 | B192: TATACHEM | C192: 640.55 | D192: 639.53 | E192: 634.17 | F192: 627.78 | G192: 622.42 | H192: 645.92 | I192: 651.28 | J192: 657.67 | K192: 644.9 | L192: 633.15 | M192: 4.55715
A193: 184 | B193: TCS | C193: 2071.7 | D193: 2079.73 | E193: 2052.47 | F193: 2033.23 | G193: 2005.97 | H193: 2098.97 | I193: 2126.23 | J193: 2145.47 | K193: 2107 | L193: 2060.5 | M193: 37.42049
A194: 185 | B194: TATAGLOBAL | C194: 299.6 | D194: 299.77 | E194: 296.53 | F194: 293.47 | G194: 290.23 | H194: 302.83 | I194: 306.07 | J194: 309.13 | K194: 303 | L194: 296.7 | M194: 21.67799
A195: 186 | B195: TATAMTRDVR | C195: 74.45 | D195: 74.67 | E195: 73.43 | F195: 72.42 | G195: 71.18 | H195: 75.68 | I195: 76.92 | J195: 77.93 | K195: 75.9 | L195: 73.65 | M195: 30.76068
A196: 187 | B196: TATAMOTORS | C196: 162.35 | D196: 162.72 | E196: 160.18 | F196: 158.02 | G196: 155.48 | H196: 164.88 | I196: 167.42 | J196: 169.58 | K196: 165.25 | L196: 160.55 | M196: 212.00979
A197: 188 | B197: TATAPOWER | C197: 55.15 | D197: 55.20 | E197: 54.65 | F197: 54.15 | G197: 53.60 | H197: 55.70 | I197: 56.25 | J197: 56.75 | K197: 55.75 | L197: 54.7 | M197: 82.06981
A198: 189 | B198: TATASTEEL | C198: 400 | D198: 395.30 | E198: 387.80 | F198: 375.60 | G198: 368.10 | H198: 407.50 | I198: 415.00 | J198: 427.20 | K198: 402.8 | L198: 383.1 | M198: 172.71949
A199: 190 | B199: TECHM | C199: 754.2 | D199: 754.00 | E199: 743.00 | F199: 731.80 | G199: 720.80 | H199: 765.20 | I199: 776.20 | J199: 787.40 | K199: 765 | L199: 742.8 | M199: 18.19912
A200: 191 | B200: NIACL | C200: 150.9 | D200: 151.80 | E200: 148.60 | F200: 146.30 | G200: 143.10 | H200: 154.10 | I200: 157.30 | J200: 159.60 | K200: 155 | L200: 149.5 | M200: 2.61633
A201: 192 | B201: RAMCOCEM | C201: 793.05 | D201: 790.65 | E201: 784.75 | F201: 776.45 | G201: 770.55 | H201: 798.95 | I201: 804.85 | J201: 813.15 | K201: 796.55 | L201: 782.35 | M201: 1.4826
A202: 193 | B202: TITAN | C202: 1135.6 | D202: 1136.50 | E202: 1122.30 | F202: 1109.00 | G202: 1094.80 | H202: 1149.80 | I202: 1164.00 | J202: 1177.30 | K202: 1150.7 | L202: 1123.2 | M202: 23.20184
A203: 194 | B203: TORNTPHARM | C203: 1711.85 | D203: 1732.82 | E203: 1682.98 | F203: 1654.12 | G203: 1604.28 | H203: 1761.68 | I203: 1811.52 | J203: 1840.38 | K203: 1782.65 | L203: 1703.95 | M203: 2.78087
A204: 195 | B204: TORNTPOWER | C204: 280.9 | D204: 283.02 | E204: 278.13 | F204: 275.37 | G204: 270.48 | H204: 285.78 | I204: 290.67 | J204: 293.43 | K204: 287.9 | L204: 280.25 | M204: 9.75354
A205: 196 | B205: UPL | C205: 533.5 | D205: 535.50 | E205: 528.50 | F205: 523.50 | G205: 516.50 | H205: 540.50 | I205: 547.50 | J205: 552.50 | K205: 542.5 | L205: 530.5 | M205: 25.53689
... 30 more rows

Sheet MidCap Intra
L5: Back To Main Page
A6: FOR INTRA DAY TRADING | K6: =Main!B10 -> 2019-11-25
A9: Sr.no | B9: Scrip | C9: CLOSE RATE | D9: Pivot Point | E9: Supports | H9: Resistances
C10: Point | E10: S1 | F10: S2 | G10: S3 | H10: R1 | I10: R2 | J10: R3 | K10: HIGH | L10: LOW | M10: Total Trade Quanity in Lakhs
A11: 1 | B11: 3MINDIA | C11: 22415.3 | D11: 22525.02 | E11: 22250.03 | F11: 22084.77 | G11: 21809.78 | H11: 22690.28 | I11: 22965.27 | J11: 23130.53 | K11: 22800 | L11: 22359.75 | M11: 0.01335
A12: 2 | B12: ACC | C12: 1469.9 | D12: 1471.58 | E12: 1460.52 | F12: 1451.13 | G12: 1440.07 | H12: 1480.97 | I12: 1492.03 | J12: 1501.42 | K12: 1482.65 | L12: 1462.2 | M12: 5.01614
A13: 3 | B13: AIAENG | C13: 1635.6 | D13: 1631.87 | E13: 1619.73 | F13: 1603.87 | G13: 1591.73 | H13: 1647.73 | I13: 1659.87 | J13: 1675.73 | K13: 1644 | L13: 1616 | M13: 0.10024
A14: 4 | B14: APLAPOLLO | C14: 1555.2 | D14: 1558.07 | E14: 1541.13 | F14: 1527.07 | G14: 1510.13 | H14: 1572.13 | I14: 1589.07 | J14: 1603.13 | K14: 1575 | L14: 1544 | M14: 0.14278
A15: 5 | B15: AUBANK | C15: 802.3 | D15: 806.77 | E15: 791.53 | F15: 780.77 | G15: 765.53 | H15: 817.53 | I15: 832.77 | J15: 843.53 | K15: 822 | L15: 796 | M15: 3.73463
A16: 6 | B16: AAVAS | C16: 1723.25 | D16: 1684.68 | E16: 1639.57 | F16: 1555.88 | G16: 1510.77 | H16: 1768.37 | I16: 1813.48 | J16: 1897.17 | K16: 1729.8 | L16: 1601 | M16: 1.75115
A17: 7 | B17: ABBOTINDIA | C17: 12573.4 | D17: 12487.48 | E17: 12355.97 | F17: 12138.53 | G17: 12007.02 | H17: 12704.92 | I17: 12836.43 | J17: 13053.87 | K17: 12619 | L17: 12270.05 | M17: 0.07693
A18: 8 | B18: ADANIGAS | C18: 146.25 | D18: 146.53 | E18: 145.67 | F18: 145.08 | G18: 144.22 | H18: 147.12 | I18: 147.98 | J18: 148.57 | K18: 147.4 | L18: 145.95 | M18: 7.09471
A19: 9 | B19: ADANIGREEN | C19: 106.7 | D19: 102.90 | E19: 99.10 | F19: 91.50 | G19: 87.70 | H19: 110.50 | I19: 114.30 | J19: 121.90 | K19: 106.7 | L19: 95.3 | M19: 42.28833
A20: 10 | B20: ADANIPORTS | C20: 371.45 | D20: 372.48 | E20: 369.42 | F20: 367.38 | G20: 364.32 | H20: 374.52 | I20: 377.58 | J20: 379.62 | K20: 375.55 | L20: 370.45 | M20: 36.79373
A21: 11 | B21: ADANIPOWER | C21: 60.5 | D21: 60.83 | E21: 59.37 | F21: 58.23 | G21: 56.77 | H21: 61.97 | I21: 63.43 | J21: 64.57 | K21: 62.3 | L21: 59.7 | M21: 86.90224
A22: 12 | B22: ADANITRANS | C22: 263.35 | D22: 264.68 | E22: 259.67 | F22: 255.98 | G22: 250.97 | H22: 268.37 | I22: 273.38 | J22: 277.07 | K22: 269.7 | L22: 261 | M22: 1.66449
A23: 13 | B23: ABCAPITAL | C23: 100.15 | D23: 97.98 | E23: 94.67 | F23: 89.18 | G23: 85.87 | H23: 103.47 | I23: 106.78 | J23: 112.27 | K23: 101.3 | L23: 92.5 | M23: 140.51512
A24: 14 | B24: ABFRL | C24: 219.45 | D24: 217.12 | E24: 209.33 | F24: 199.22 | G24: 191.43 | H24: 227.23 | I24: 235.02 | J24: 245.13 | K24: 224.9 | L24: 207 | M24: 7.69914
A25: 15 | B25: ADVENZYMES | C25: 167.95 | D25: 169.30 | E25: 162.70 | F25: 157.45 | G25: 150.85 | H25: 174.55 | I25: 181.15 | J25: 186.40 | K25: 175.9 | L25: 164.05 | M25: 0.86392
A26: 16 | B26: AEGISCHEM | C26: 184.8 | D26: 186.62 | E26: 179.33 | F26: 173.87 | G26: 166.58 | H26: 192.08 | I26: 199.37 | J26: 204.83 | K26: 193.9 | L26: 181.15 | M26: 3.50811
A27: 17 | B27: AJANTPHARM | C27: 1000.5 | D27: 1004.52 | E27: 988.03 | F27: 975.57 | G27: 959.08 | H27: 1016.98 | I27: 1033.47 | J27: 1045.93 | K27: 1021 | L27: 992.05 | M27: 0.42276
A28: 18 | B28: AKZOINDIA | C28: 1929.95 | D28: 1938.32 | E28: 1911.63 | F28: 1893.32 | G28: 1866.63 | H28: 1956.63 | I28: 1983.32 | J28: 2001.63 | K28: 1965 | L28: 1920 | M28: 0.10049
A29: 19 | B29: APLLTD | C29: 545.4 | D29: 549.32 | E29: 538.63 | F29: 531.87 | G29: 521.18 | H29: 556.08 | I29: 566.77 | J29: 573.53 | K29: 560 | L29: 542.55 | M29: 0.97118
A30: 20 | B30: ALKEM | C30: 2078.8 | D30: 2084.20 | E30: 2050.60 | F30: 2022.40 | G30: 1988.80 | H30: 2112.40 | I30: 2146.00 | J30: 2174.20 | K30: 2117.8 | L30: 2056 | M30: 0.20939
A31: 21 | B31: ALBK | C31: 24.05 | D31: 24.10 | E31: 23.75 | F31: 23.45 | G31: 23.10 | H31: 24.40 | I31: 24.75 | J31: 25.05 | K31: 24.45 | L31: 23.8 | M31: 20.39847
A32: 22 | B32: ALLCARGO | C32: 94.6 | D32: 95.70 | E32: 93.00 | F32: 91.40 | G32: 88.70 | H32: 97.30 | I32: 100.00 | J32: 101.60 | K32: 98.4 | L32: 94.1 | M32: 0.9625
A33: 23 | B33: AMARAJABAT | C33: 741.7 | D33: 744.77 | E33: 732.33 | F33: 722.97 | G33: 710.53 | H33: 754.13 | I33: 766.57 | J33: 775.93 | K33: 757.2 | L33: 735.4 | M33: 8.31747
A34: 24 | B34: AMBER | C34: 984.95 | D34: 988.32 | E34: 976.78 | F34: 968.62 | G34: 957.08 | H34: 996.48 | I34: 1008.02 | J34: 1016.18 | K34: 999.85 | L34: 980.15 | M34: 0.20945
A35: 25 | B35: AMBUJACEM | C35: 200.8 | D35: 200.37 | E35: 198.53 | F35: 196.27 | G35: 194.43 | H35: 202.63 | I35: 204.47 | J35: 206.73 | K35: 202.2 | L35: 198.1 | M35: 48.6107
A36: 26 | B36: ANDHRABANK | C36: 18.8 | D36: 18.85 | E36: 18.50 | F36: 18.20 | G36: 17.85 | H36: 19.15 | I36: 19.50 | J36: 19.80 | K36: 19.2 | L36: 18.55 | M36: 8.34513
A37: 27 | B37: APOLLOHOSP | C37: 1451.6 | D37: 1455.77 | E37: 1436.48 | F37: 1421.37 | G37: 1402.08 | H37: 1470.88 | I37: 1490.17 | J37: 1505.28 | K37: 1475.05 | L37: 1440.65 | M37: 8.82624
A38: 28 | B38: APOLLOTYRE | C38: 167.9 | D38: 166.27 | E38: 164.13 | F38: 160.37 | G38: 158.23 | H38: 170.03 | I38: 172.17 | J38: 175.93 | K38: 168.4 | L38: 162.5 | M38: 25.46788
A39: 29 | B39: ARVINDFASN | C39: 361.9 | D39: 362.32 | E39: 357.43 | F39: 352.97 | G39: 348.08 | H39: 366.78 | I39: 371.67 | J39: 376.13 | K39: 367.2 | L39: 357.85 | M39: 0.61224
A40: 30 | B40: ASHOKLEY | C40: 81.35 | D40: 81.60 | E40: 80.45 | F40: 79.55 | G40: 78.40 | H40: 82.50 | I40: 83.65 | J40: 84.55 | K40: 82.75 | L40: 80.7 | M40: 170.38464
A41: 31 | B41: ASHOKA | C41: 93.2 | D41: 93.33 | E41: 92.27 | F41: 91.33 | G41: 90.27 | H41: 94.27 | I41: 95.33 | J41: 96.27 | K41: 94.4 | L41: 92.4 | M41: 6.07852
A42: 32 | B42: ASIANPAINT | C42: 1682.75 | D42: 1690.90 | E42: 1667.85 | F42: 1652.95 | G42: 1629.90 | H42: 1705.80 | I42: 1728.85 | J42: 1743.75 | K42: 1713.95 | L42: 1676 | M42: 12.75334
A43: 33 | B43: ASTERDM | C43: 144.95 | D43: 144.02 | E43: 141.23 | F43: 137.52 | G43: 134.73 | H43: 147.73 | I43: 150.52 | J43: 154.23 | K43: 146.8 | L43: 140.3 | M43: 1.03227
A44: 34 | B44: ASTRAZEN | C44: 2626.7 | D44: 2649.92 | E44: 2592.83 | F44: 2558.97 | G44: 2501.88 | H44: 2683.78 | I44: 2740.87 | J44: 2774.73 | K44: 2707 | L44: 2616.05 | M44: 0.13115
A45: 35 | B45: ASTRAL | C45: 1084.65 | D45: 1072.17 | E45: 1055.53 | F45: 1026.42 | G45: 1009.78 | H45: 1101.28 | I45: 1117.92 | J45: 1147.03 | K45: 1088.8 | L45: 1043.05 | M45: 0.65253
A46: 36 | B46: ATUL | C46: 4116.85 | D46: 4123.28 | E46: 4064.57 | F46: 4012.28 | G46: 3953.57 | H46: 4175.57 | I46: 4234.28 | J46: 4286.57 | K46: 4182 | L46: 4071 | M46: 0.08474
A47: 37 | B47: AUROPHARMA | C47: 428.85 | D47: 433.35 | E47: 417.00 | F47: 405.15 | G47: 388.80 | H47: 445.20 | I47: 461.55 | J47: 473.40 | K47: 449.7 | L47: 421.5 | M47: 110.28958
A48: 38 | B48: AVANTIFEED | C48: 528.45 | D48: 528.05 | E48: 521.40 | F48: 514.35 | G48: 507.70 | H48: 535.10 | I48: 541.75 | J48: 548.80 | K48: 534.7 | L48: 521 | M48: 3.24828
A49: 39 | B49: DMART | C49: 1837.25 | D49: 1831.42 | E49: 1822.83 | F49: 1808.42 | G49: 1799.83 | H49: 1845.83 | I49: 1854.42 | J49: 1868.83 | K49: 1840 | L49: 1817 | M49: 2.27611
A50: 40 | B50: AXISBANK | C50: 732.1 | D50: 733.20 | E50: 726.40 | F50: 720.70 | G50: 713.90 | H50: 738.90 | I50: 745.70 | J50: 751.40 | K50: 740 | L50: 727.5 | M50: 48.89776
A51: 41 | B51: BASF | C51: 951.2 | D51: 954.40 | E51: 943.80 | F51: 936.40 | G51: 925.80 | H51: 961.80 | I51: 972.40 | J51: 979.80 | K51: 965 | L51: 947 | M51: 0.111
A52: 42 | B52: BEML | C52: 940.4 | D52: 943.50 | E52: 932.10 | F52: 923.80 | G52: 912.40 | H52: 951.80 | I52: 963.20 | J52: 971.50 | K52: 954.9 | L52: 935.2 | M52: 3.19338
A53: 43 | B53: BSE | C53: 513.7 | D53: 509.90 | E53: 504.80 | F53: 495.90 | G53: 490.80 | H53: 518.80 | I53: 523.90 | J53: 532.80 | K53: 515 | L53: 501 | M53: 0.68306
A54: 44 | B54: BAJAJ-AUTO | C54: 3152.35 | D54: 3157.28 | E54: 3128.57 | F54: 3104.78 | G54: 3076.07 | H54: 3181.07 | I54: 3209.78 | J54: 3233.57 | K54: 3186 | L54: 3133.5 | M54: 2.85777
A55: 45 | B55: BAJAJCON | C55: 236.85 | D55: 237.02 | E55: 234.78 | F55: 232.72 | G55: 230.48 | H55: 239.08 | I55: 241.32 | J55: 243.38 | K55: 239.25 | L55: 234.95 | M55: 0.95744
A56: 46 | B56: BAJAJELEC | C56: 322.05 | D56: 319.25 | E56: 314.50 | F56: 306.95 | G56: 302.20 | H56: 326.80 | I56: 331.55 | J56: 339.10 | K56: 324 | L56: 311.7 | M56: 2.4653
A57: 47 | B57: BAJFINANCE | C57: 4078.3 | D57: 4087.70 | E57: 4031.60 | F57: 3984.90 | G57: 3928.80 | H57: 4134.40 | I57: 4190.50 | J57: 4237.20 | K57: 4143.8 | L57: 4041 | M57: 12.22615
A58: 48 | B58: BAJAJFINSV | C58: 9039.3 | D58: 9033.43 | E58: 8986.87 | F58: 8934.43 | G58: 8887.87 | H58: 9085.87 | I58: 9132.43 | J58: 9184.87 | K58: 9080 | L58: 8981 | M58: 1.55772
A59: 49 | B59: BAJAJHLDNG | C59: 3691.3 | D59: 3700.77 | E59: 3666.53 | F59: 3641.77 | G59: 3607.53 | H59: 3725.53 | I59: 3759.77 | J59: 3784.53 | K59: 3735 | L59: 3676 | M59: 0.09917
A60: 50 | B60: BALKRISIND | C60: 843.7 | D60: 842.35 | E60: 834.75 | F60: 825.80 | G60: 818.20 | H60: 851.30 | I60: 858.90 | J60: 867.85 | K60: 849.95 | L60: 833.4 | M60: 2.46911
A61: 51 | B61: BALMLAWRIE | C61: 194.85 | D61: 194.97 | E61: 193.93 | F61: 193.02 | G61: 191.98 | H61: 195.88 | I61: 196.92 | J61: 197.83 | K61: 196 | L61: 194.05 | M61: 0.4692
A62: 52 | B62: BALRAMCHIN | C62: 142.4 | D62: 143.45 | E62: 140.35 | F62: 138.30 | G62: 135.20 | H62: 145.50 | I62: 148.60 | J62: 150.65 | K62: 146.55 | L62: 141.4 | M62: 5.99846
A63: 53 | B63: BANDHANBNK | C63: 526.75 | D63: 529.42 | E63: 520.83 | F63: 514.92 | G63: 506.33 | H63: 535.33 | I63: 543.92 | J63: 549.83 | K63: 538 | L63: 523.5 | M63: 24.85274
A64: 54 | B64: BANKBARODA | C64: 99.1 | D64: 99.10 | E64: 98.40 | F64: 97.70 | G64: 97.00 | H64: 99.80 | I64: 100.50 | J64: 101.20 | K64: 99.8 | L64: 98.4 | M64: 191.22025
A65: 55 | B65: BANKINDIA | C65: 73.05 | D65: 73.15 | E65: 72.15 | F65: 71.25 | G65: 70.25 | H65: 74.05 | I65: 75.05 | J65: 75.95 | K65: 74.15 | L65: 72.25 | M65: 99.25433
A66: 56 | B66: MAHABANK | C66: 12.5 | D66: 12.50 | E66: 12.35 | F66: 12.20 | G66: 12.05 | H66: 12.65 | I66: 12.80 | J66: 12.95 | K66: 12.65 | L66: 12.35 | M66: 4.43951
A67: 57 | B67: BATAINDIA | C67: 1642.7 | D67: 1636.53 | E67: 1623.17 | F67: 1603.63 | G67: 1590.27 | H67: 1656.07 | I67: 1669.43 | J67: 1688.97 | K67: 1649.9 | L67: 1617 | M67: 6.68209
A68: 58 | B68: BAYERCROP | C68: 3697.15 | D68: 3719.88 | E68: 3645.52 | F68: 3593.88 | G68: 3519.52 | H68: 3771.52 | I68: 3845.88 | J68: 3897.52 | K68: 3794.25 | L68: 3668.25 | M68: 0.14635
A69: 59 | B69: BERGEPAINT | C69: 476.9 | D69: 477.28 | E69: 471.62 | F69: 466.33 | G69: 460.67 | H69: 482.57 | I69: 488.23 | J69: 493.52 | K69: 482.95 | L69: 472 | M69: 15.47853
A70: 60 | B70: BDL | C70: 349.45 | D70: 351.52 | E70: 343.23 | F70: 337.02 | G70: 328.73 | H70: 357.73 | I70: 366.02 | J70: 372.23 | K70: 359.8 | L70: 345.3 | M70: 1.02795
A71: 61 | B71: BEL | C71: 109.45 | D71: 109.42 | E71: 108.03 | F71: 106.62 | G71: 105.23 | H71: 110.83 | I71: 112.22 | J71: 113.63 | K71: 110.8 | L71: 108 | M71: 57.57149
A72: 62 | B72: BHARATFORG | C72: 450.6 | D72: 450.47 | E72: 447.43 | F72: 444.27 | G72: 441.23 | H72: 453.63 | I72: 456.67 | J72: 459.83 | K72: 453.5 | L72: 447.3 | M72: 12.24765
A73: 63 | B73: BHEL | C73: 56.1 | D73: 55.68 | E73: 54.87 | F73: 53.63 | G73: 52.82 | H73: 56.92 | I73: 57.73 | J73: 58.97 | K73: 56.5 | L73: 54.45 | M73: 149.97151
A74: 64 | B74: BPCL | C74: 509.4 | D74: 510.12 | E74: 504.78 | F74: 500.17 | G74: 494.83 | H74: 514.73 | I74: 520.07 | J74: 524.68 | K74: 515.45 | L74: 505.5 | M74: 118.12445
A75: 65 | B75: BHARTIARTL | C75: 420.65 | D75: 422.53 | E75: 415.12 | F75: 409.58 | G75: 402.17 | H75: 428.07 | I75: 435.48 | J75: 441.02 | K75: 429.95 | L75: 417 | M75: 167.75621
A76: 66 | B76: INFRATEL | C76: 232 | D76: 234.13 | E76: 225.27 | F76: 218.53 | G76: 209.67 | H76: 240.87 | I76: 249.73 | J76: 256.47 | K76: 243 | L76: 227.4 | M76: 181.60133
A77: 67 | B77: BIOCON | C77: 255.9 | D77: 255.55 | E77: 252.85 | F77: 249.80 | G77: 247.10 | H77: 258.60 | I77: 261.30 | J77: 264.35 | K77: 258.25 | L77: 252.5 | M77: 21.12123
A78: 68 | B78: BIRLACORPN | C78: 637.65 | D78: 636.85 | E78: 633.70 | F78: 629.75 | G78: 626.60 | H78: 640.80 | I78: 643.95 | J78: 647.90 | K78: 640 | L78: 632.9 | M78: 0.41784
A79: 69 | B79: BSOFT | C79: 71.65 | D79: 71.55 | E79: 69.90 | F79: 68.15 | G79: 66.50 | H79: 73.30 | I79: 74.95 | J79: 76.70 | K79: 73.2 | L79: 69.8 | M79: 4.24053
A80: 70 | B80: BLISSGVS | C80: 138.4 | D80: 138.47 | E80: 137.03 | F80: 135.67 | G80: 134.23 | H80: 139.83 | I80: 141.27 | J80: 142.63 | K80: 139.9 | L80: 137.1 | M80: 2.3651
A81: 71 | B81: BLUEDART | C81: 2114.05 | D81: 2120.40 | E81: 2094.65 | F81: 2075.25 | G81: 2049.50 | H81: 2139.80 | I81: 2165.55 | J81: 2184.95 | K81: 2146.15 | L81: 2101 | M81: 0.04212
A82: 72 | B82: BLUESTARCO | C82: 819.7 | D82: 811.48 | E82: 791.97 | F82: 764.23 | G82: 744.72 | H82: 839.22 | I82: 858.73 | J82: 886.47 | K82: 831 | L82: 783.75 | M82: 0.62277
A83: 73 | B83: BBTC | C83: 1077 | D83: 1084.52 | E83: 1064.68 | F83: 1052.37 | G83: 1032.53 | H83: 1096.83 | I83: 1116.67 | J83: 1128.98 | K83: 1104.35 | L83: 1072.2 | M83: 0.68784
A84: 74 | B84: BOMDYEING | C84: 75.75 | D84: 76.22 | E84: 74.83 | F84: 73.92 | G84: 72.53 | H84: 77.13 | I84: 78.52 | J84: 79.43 | K84: 77.6 | L84: 75.3 | M84: 10.18258
A85: 75 | B85: BOSCHLTD | C85: 16337.35 | D85: 15982.87 | E85: 15565.73 | F85: 14794.12 | G85: 14376.98 | H85: 16754.48 | I85: 17171.62 | J85: 17943.23 | K85: 16400 | L85: 15211.25 | M85: 0.47256
A86: 76 | B86: BRIGADE | C86: 200.3 | D86: 202.35 | E86: 196.00 | F86: 191.70 | G86: 185.35 | H86: 206.65 | I86: 213.00 | J86: 217.30 | K86: 208.7 | L86: 198.05 | M86: 0.49724
A87: 77 | B87: BRITANNIA | C87: 3022.65 | D87: 3036.93 | E87: 3001.87 | F87: 2981.08 | G87: 2946.02 | H87: 3057.72 | I87: 3092.78 | J87: 3113.57 | K87: 3072 | L87: 3016.15 | M87: 3.49622
A88: 78 | B88: CARERATING | C88: 478.15 | D88: 475.83 | E88: 470.92 | F88: 463.68 | G88: 458.77 | H88: 483.07 | I88: 487.98 | J88: 495.22 | K88: 480.75 | L88: 468.6 | M88: 2.79153
A89: 79 | B89: CCL | C89: 210.5 | D89: 211.38 | E89: 207.97 | F89: 205.43 | G89: 202.02 | H89: 213.92 | I89: 217.33 | J89: 219.87 | K89: 214.8 | L89: 208.85 | M89: 0.24182
A90: 80 | B90: CESC | C90: 745.85 | D90: 741.27 | E90: 734.93 | F90: 724.02 | G90: 717.68 | H90: 752.18 | I90: 758.52 | J90: 769.43 | K90: 747.6 | L90: 730.35 | M90: 3.19349
A91: 81 | B91: CGPOWER | C91: 14.1 | D91: 14.10 | E91: 13.75 | F91: 13.40 | G91: 13.05 | H91: 14.45 | I91: 14.80 | J91: 15.15 | K91: 14.45 | L91: 13.75 | M91: 9.02922
A92: 82 | B92: CRISIL | C92: 1515.5 | D92: 1515.17 | E92: 1505.33 | F92: 1495.17 | G92: 1485.33 | H92: 1525.33 | I92: 1535.17 | J92: 1545.33 | K92: 1525 | L92: 1505 | M92: 0.10407
A93: 83 | B93: CADILAHC | C93: 251.1 | D93: 251.67 | E93: 246.98 | F93: 242.87 | G93: 238.18 | H93: 255.78 | I93: 260.47 | J93: 264.58 | K93: 256.35 | L93: 247.55 | M93: 13.70223
A94: 84 | B94: CANFINHOME | C94: 392.8 | D94: 396.95 | E94: 386.20 | F94: 379.60 | G94: 368.85 | H94: 403.55 | I94: 414.30 | J94: 420.90 | K94: 407.7 | L94: 390.35 | M94: 4.47394
A95: 85 | B95: CANBK | C95: 221.2 | D95: 222.50 | E95: 219.00 | F95: 216.80 | G95: 213.30 | H95: 224.70 | I95: 228.20 | J95: 230.40 | K95: 226 | L95: 220.3 | M95: 84.16415
A96: 86 | B96: CAPLIPOINT | C96: 323.7 | D96: 323.87 | E96: 311.83 | F96: 299.97 | G96: 287.93 | H96: 335.73 | I96: 347.77 | J96: 359.63 | K96: 335.9 | L96: 312 | M96: 3.67758
A97: 87 | B97: CGCL | C97: 185.25 | D97: 187.47 | E97: 180.93 | F97: 176.62 | G97: 170.08 | H97: 191.78 | I97: 198.32 | J97: 202.63 | K97: 194 | L97: 183.15 | M97: 4.07118
A98: 88 | B98: CARBORUNIV | C98: 309.15 | D98: 308.05 | E98: 306.10 | F98: 303.05 | G98: 301.10 | H98: 311.10 | I98: 313.05 | J98: 316.10 | K98: 310 | L98: 305 | M98: 0.25622
A99: 89 | B99: CASTROLIND | C99: 145.45 | D99: 148.13 | E99: 141.72 | F99: 137.98 | G99: 131.57 | H99: 151.87 | I99: 158.28 | J99: 162.02 | K99: 154.55 | L99: 144.4 | M99: 39.34479
A100: 90 | B100: CEATLTD | C100: 943.05 | D100: 947.65 | E100: 935.40 | F100: 927.75 | G100: 915.50 | H100: 955.30 | I100: 967.55 | J100: 975.20 | K100: 959.9 | L100: 940 | M100: 0.60892
A101: 91 | B101: CENTRALBK | C101: 22.45 | D101: 22.18 | E101: 21.57 | F101: 20.68 | G101: 20.07 | H101: 23.07 | I101: 23.68 | J101: 24.57 | K101: 22.8 | L101: 21.3 | M101: 13.00933
A102: 92 | B102: CDSL | C102: 231.7 | D102: 231.90 | E102: 228.90 | F102: 226.10 | G102: 223.10 | H102: 234.70 | I102: 237.70 | J102: 240.50 | K102: 234.9 | L102: 229.1 | M102: 1.86921
A103: 93 | B103: CENTURYPLY | C103: 168.55 | D103: 167.95 | E103: 165.60 | F103: 162.65 | G103: 160.30 | H103: 170.90 | I103: 173.25 | J103: 176.20 | K103: 170.3 | L103: 165 | M103: 1.03382
A104: 94 | B104: CERA | C104: 2409.6 | D104: 2421.55 | E104: 2389.10 | F104: 2368.60 | G104: 2336.15 | H104: 2442.05 | I104: 2474.50 | J104: 2495.00 | K104: 2454 | L104: 2401.05 | M104: 0.03008
A105: 95 | B105: CHALET | C105: 366.65 | D105: 367.55 | E105: 363.10 | F105: 359.55 | G105: 355.10 | H105: 371.10 | I105: 375.55 | J105: 379.10 | K105: 372 | L105: 364 | M105: 0.00966
A106: 96 | B106: CHAMBLFERT | C106: 151.1 | D106: 151.72 | E106: 149.88 | F106: 148.67 | G106: 146.83 | H106: 152.93 | I106: 154.77 | J106: 155.98 | K106: 153.55 | L106: 150.5 | M106: 2.4787
A107: 97 | B107: CHENNPETRO | C107: 134.75 | D107: 136.18 | E107: 132.77 | F107: 130.78 | G107: 127.37 | H107: 138.17 | I107: 141.58 | J107: 143.57 | K107: 139.6 | L107: 134.2 | M107: 1.32494
A108: 98 | B108: CHOLAHLDNG | C108: 485.75 | D108: 482.23 | E108: 474.52 | F108: 463.28 | G108: 455.57 | H108: 493.47 | I108: 501.18 | J108: 512.42 | K108: 489.95 | L108: 471 | M108: 0.36771
A109: 99 | B109: CHOLAFIN | C109: 314.35 | D109: 314.13 | E109: 310.27 | F109: 306.18 | G109: 302.32 | H109: 318.22 | I109: 322.08 | J109: 326.17 | K109: 318 | L109: 310.05 | M109: 11.9827
A110: 100 | B110: CIPLA | C110: 478.85 | D110: 478.85 | E110: 472.70 | F110: 466.55 | G110: 460.40 | H110: 485.00 | I110: 491.15 | J110: 497.30 | K110: 485 | L110: 472.7 | M110: 27.78328
A111: 101 | B111: CUB | C111: 214.6 | D111: 215.07 | E111: 212.63 | F111: 210.67 | G111: 208.23 | H111: 217.03 | I111: 219.47 | J111: 221.43 | K111: 217.5 | L111: 213.1 | M111: 6.96336
A112: 102 | B112: COALINDIA | C112: 199 | D112: 198.22 | E112: 197.08 | F112: 195.17 | G112: 194.03 | H112: 200.13 | I112: 201.27 | J112: 203.18 | K112: 199.35 | L112: 196.3 | M112: 43.35573
A113: 103 | B113: COCHINSHIP | C113: 410.45 | D113: 411.52 | E113: 405.03 | F113: 399.62 | G113: 393.13 | H113: 416.93 | I113: 423.42 | J113: 428.83 | K113: 418 | L113: 406.1 | M113: 0.92413
A114: 104 | B114: COFFEEDAY | C114: 52.65 | D114: 54.43 | E114: 50.87 | F114: 49.08 | G114: 45.52 | H114: 56.22 | I114: 59.78 | J114: 61.57 | K114: 58 | L114: 52.65 | M114: 22.14285
A115: 105 | B115: COLPAL | C115: 1504.5 | D115: 1500.72 | E115: 1483.83 | F115: 1463.17 | G115: 1446.28 | H115: 1521.38 | I115: 1538.27 | J115: 1558.93 | K115: 1517.6 | L115: 1480.05 | M115: 9.79025
A116: 106 | B116: CONCOR | C116: 558.15 | D116: 562.73 | E116: 549.67 | F116: 541.18 | G116: 528.12 | H116: 571.22 | I116: 584.28 | J116: 592.77 | K116: 575.8 | L116: 554.25 | M116: 15.69013
A117: 107 | B117: COROMANDEL | C117: 466.95 | D117: 464.63 | E117: 460.32 | F117: 453.68 | G117: 449.37 | H117: 471.27 | I117: 475.58 | J117: 482.22 | K117: 468.95 | L117: 458 | M117: 0.5067
A118: 108 | B118: CORPBANK | C118: 23.35 | D118: 23.75 | E118: 22.70 | F118: 22.05 | G118: 21.00 | H118: 24.40 | I118: 25.45 | J118: 26.10 | K118: 24.8 | L118: 23.1 | M118: 22.61913
A119: 109 | B119: COX&KINGS | C119: 1.7 | D119: 1.70 | E119: 1.70 | F119: 1.70 | G119: 1.70 | H119: 1.70 | I119: 1.70 | J119: 1.70 | K119: 1.7 | L119: 1.7 | M119: 6.59972
A120: 110 | B120: CREDITACC | C120: 750.45 | D120: 758.72 | E120: 736.73 | F120: 723.02 | G120: 701.03 | H120: 772.43 | I120: 794.42 | J120: 808.13 | K120: 780.7 | L120: 745 | M120: 1.23605
A121: 111 | B121: CROMPTON | C121: 254.65 | D121: 254.53 | E121: 250.12 | F121: 245.58 | G121: 241.17 | H121: 259.07 | I121: 263.48 | J121: 268.02 | K121: 258.95 | L121: 250 | M121: 3.93639
A122: 112 | B122: CUMMINSIND | C122: 566.85 | D122: 565.35 | E122: 561.25 | F122: 555.65 | G122: 551.55 | H122: 570.95 | I122: 575.05 | J122: 580.65 | K122: 569.45 | L122: 559.75 | M122: 4.40576
A123: 113 | B123: CYIENT | C123: 392.85 | D123: 395.85 | E123: 388.55 | F123: 384.25 | G123: 376.95 | H123: 400.15 | I123: 407.45 | J123: 411.75 | K123: 403.15 | L123: 391.55 | M123: 0.76199
A124: 114 | B124: DBCORP | C124: 141.95 | D124: 142.15 | E124: 140.30 | F124: 138.65 | G124: 136.80 | H124: 143.80 | I124: 145.65 | J124: 147.30 | K124: 144 | L124: 140.5 | M124: 0.16779
A125: 115 | B125: DCBBANK | C125: 176.15 | D125: 177.25 | E125: 174.50 | F125: 172.85 | G125: 170.10 | H125: 178.90 | I125: 181.65 | J125: 183.30 | K125: 180 | L125: 175.6 | M125: 3.67393
A126: 116 | B126: DCMSHRIRAM | C126: 312.85 | D126: 313.43 | E126: 310.07 | F126: 307.28 | G126: 303.92 | H126: 316.22 | I126: 319.58 | J126: 322.37 | K126: 316.8 | L126: 310.65 | M126: 0.25134
A127: 117 | B127: DLF | C127: 217.25 | D127: 216.95 | E127: 214.55 | F127: 211.85 | G127: 209.45 | H127: 219.65 | I127: 222.05 | J127: 224.75 | K127: 219.35 | L127: 214.25 | M127: 74.59722
A128: 118 | B128: DABUR | C128: 463.8 | D128: 461.92 | E128: 458.93 | F128: 454.07 | G128: 451.08 | H128: 466.78 | I128: 469.77 | J128: 474.63 | K128: 464.9 | L128: 457.05 | M128: 11.17561
A129: 119 | B129: DALBHARAT | C129: 867.8 | D129: 869.38 | E129: 853.42 | F129: 839.03 | G129: 823.07 | H129: 883.77 | I129: 899.73 | J129: 914.12 | K129: 885.35 | L129: 855 | M129: 2.20658
A130: 120 | B130: DEEPAKNTR | C130: 345.95 | D130: 347.07 | E130: 342.88 | F130: 339.82 | G130: 335.63 | H130: 350.13 | I130: 354.32 | J130: 357.38 | K130: 351.25 | L130: 344 | M130: 4.84336
A131: 121 | B131: DELTACORP | C131: 197.25 | D131: 197.00 | E131: 194.50 | F131: 191.75 | G131: 189.25 | H131: 199.75 | I131: 202.25 | J131: 205.00 | K131: 199.5 | L131: 194.25 | M131: 8.10161
A132: 122 | B132: DEN | C132: 39.5 | D132: 38.85 | E132: 37.70 | F132: 35.90 | G132: 34.75 | H132: 40.65 | I132: 41.80 | J132: 43.60 | K132: 40 | L132: 37.05 | M132: 0.28683
A133: 123 | B133: DHFL | C133: 22.2 | D133: 22.20 | E133: 22.20 | F133: 22.20 | G133: 22.20 | H133: 22.20 | I133: 22.20 | J133: 22.20 | K133: 22.2 | L133: 22.2 | M133: 8.3098
A134: 124 | B134: DBL | C134: 410.45 | D134: 412.22 | E134: 405.43 | F134: 400.42 | G134: 393.63 | H134: 417.23 | I134: 424.02 | J134: 429.03 | K134: 419 | L134: 407.2 | M134: 1.4996
A135: 125 | B135: DISHTV | C135: 16 | D135: 16.07 | E135: 15.43 | F135: 14.87 | G135: 14.23 | H135: 16.63 | I135: 17.27 | J135: 17.83 | K135: 16.7 | L135: 15.5 | M135: 585.80939
A136: 126 | B136: DCAL | C136: 123.1 | D136: 122.37 | E136: 121.13 | F136: 119.17 | G136: 117.93 | H136: 124.33 | I136: 125.57 | J136: 127.53 | K136: 123.6 | L136: 120.4 | M136: 2.89379
A137: 127 | B137: DIVISLAB | C137: 1733.35 | D137: 1732.90 | E137: 1717.80 | F137: 1702.25 | G137: 1687.15 | H137: 1748.45 | I137: 1763.55 | J137: 1779.10 | K137: 1748 | L137: 1717.35 | M137: 3.76747
A138: 128 | B138: DIXON | C138: 3177 | D138: 3170.67 | E138: 3136.33 | F138: 3095.67 | G138: 3061.33 | H138: 3211.33 | I138: 3245.67 | J138: 3286.33 | K138: 3205 | L138: 3130 | M138: 0.66858
A139: 129 | B139: LALPATHLAB | C139: 1575.2 | D139: 1583.22 | E139: 1562.03 | F139: 1548.87 | G139: 1527.68 | H139: 1596.38 | I139: 1617.57 | J139: 1630.73 | K139: 1604.4 | L139: 1570.05 | M139: 0.65619
A140: 130 | B140: DRREDDY | C140: 2871.25 | D140: 2873.00 | E140: 2841.25 | F140: 2811.25 | G140: 2779.50 | H140: 2903.00 | I140: 2934.75 | J140: 2964.75 | K140: 2904.75 | L140: 2843 | M140: 5.49551
A141: 131 | B141: EIDPARRY | C141: 182.5 | D141: 183.98 | E141: 180.37 | F141: 178.23 | G141: 174.62 | H141: 186.12 | I141: 189.73 | J141: 191.87 | K141: 187.6 | L141: 181.85 | M141: 0.97888
A142: 132 | B142: EIHOTEL | C142: 149.6 | D142: 148.92 | E142: 146.93 | F142: 144.27 | G142: 142.28 | H142: 151.58 | I142: 153.57 | J142: 156.23 | K142: 150.9 | L142: 146.25 | M142: 1.73037
A143: 133 | B143: EDELWEISS | C143: 122.85 | D143: 122.90 | E143: 120.05 | F143: 117.25 | G143: 114.40 | H143: 125.70 | I143: 128.55 | J143: 131.35 | K143: 125.75 | L143: 120.1 | M143: 7.26085
A144: 134 | B144: EICHERMOT | C144: 22753.2 | D144: 22439.40 | E144: 21913.80 | F144: 21074.40 | G144: 20548.80 | H144: 23278.80 | I144: 23804.40 | J144: 24643.80 | K144: 22965 | L144: 21600 | M144: 2.51227
A145: 135 | B145: ELGIEQUIP | C145: 251.5 | D145: 252.37 | E145: 249.13 | F145: 246.77 | G145: 243.53 | H145: 254.73 | I145: 257.97 | J145: 260.33 | K145: 255.6 | L145: 250 | M145: 0.16343
A146: 136 | B146: EMAMILTD | C146: 313.05 | D146: 313.82 | E146: 311.73 | F146: 310.42 | G146: 308.33 | H146: 315.13 | I146: 317.22 | J146: 318.53 | K146: 315.9 | L146: 312.5 | M146: 1.0942
A147: 137 | B147: ENDURANCE | C147: 1088.25 | D147: 1085.95 | E147: 1061.90 | F147: 1035.55 | G147: 1011.50 | H147: 1112.30 | I147: 1136.35 | J147: 1162.70 | K147: 1110 | L147: 1059.6 | M147: 0.19396
A148: 138 | B148: ENGINERSIN | C148: 103.7 | D148: 103.62 | E148: 102.58 | F148: 101.47 | G148: 100.43 | H148: 104.73 | I148: 105.77 | J148: 106.88 | K148: 104.65 | L148: 102.5 | M148: 6.82952
A149: 139 | B149: EQUITAS | C149: 90.6 | D149: 90.03 | E149: 88.77 | F149: 86.93 | G149: 85.67 | H149: 91.87 | I149: 93.13 | J149: 94.97 | K149: 91.3 | L149: 88.2 | M149: 51.01493
A150: 140 | B150: ERIS | C150: 414.55 | D150: 414.40 | E150: 407.95 | F150: 401.35 | G150: 394.90 | H150: 421.00 | I150: 427.45 | J150: 434.05 | K150: 420.85 | L150: 407.8 | M150: 1.78183
A151: 141 | B151: ESCORTS | C151: 648 | D151: 646.40 | E151: 640.80 | F151: 633.60 | G151: 628.00 | H151: 653.60 | I151: 659.20 | J151: 666.40 | K151: 652 | L151: 639.2 | M151: 15.85264
A152: 142 | B152: ESSELPACK | C152: 155.05 | D152: 156.88 | E152: 149.87 | F152: 144.68 | G152: 137.67 | H152: 162.07 | I152: 169.08 | J152: 174.27 | K152: 163.9 | L152: 151.7 | M152: 7.92522
A153: 143 | B153: EXIDEIND | C153: 193.1 | D153: 191.72 | E153: 189.13 | F153: 185.17 | G153: 182.58 | H153: 195.68 | I153: 198.27 | J153: 202.23 | K153: 194.3 | L153: 187.75 | M153: 45.35172
A154: 144 | B154: FDC | C154: 194.9 | D154: 193.75 | E154: 189.60 | F154: 184.30 | G154: 180.15 | H154: 199.05 | I154: 203.20 | J154: 208.50 | K154: 197.9 | L154: 188.45 | M154: 9.41735
A155: 145 | B155: FEDERALBNK | C155: 87.8 | D155: 87.90 | E155: 87.20 | F155: 86.60 | G155: 85.90 | H155: 88.50 | I155: 89.20 | J155: 89.80 | K155: 88.6 | L155: 87.3 | M155: 72.16267
A156: 146 | B156: FMGOETZE | C156: 582.85 | D156: 583.43 | E156: 581.72 | F156: 580.58 | G156: 578.87 | H156: 584.57 | I156: 586.28 | J156: 587.42 | K156: 585.15 | L156: 582.3 | M156: 0.04887
A157: 147 | B157: FINEORG | C157: 1977.35 | D157: 2000.43 | E157: 1928.92 | F157: 1880.48 | G157: 1808.97 | H157: 2048.87 | I157: 2120.38 | J157: 2168.82 | K157: 2071.95 | L157: 1952 | M157: 0.10673
A158: 148 | B158: FINCABLES | C158: 366.15 | D158: 367.65 | E158: 355.60 | F158: 345.05 | G158: 333.00 | H158: 378.20 | I158: 390.25 | J158: 400.80 | K158: 379.7 | L158: 357.1 | M158: 2.23237
A159: 149 | B159: FINPIPE | C159: 565.7 | D159: 569.40 | E159: 561.30 | F159: 556.90 | G159: 548.80 | H159: 573.80 | I159: 581.90 | J159: 586.30 | K159: 577.5 | L159: 565 | M159: 0.23889
A160: 150 | B160: FSL | C160: 39.65 | D160: 39.87 | E160: 39.18 | F160: 38.72 | G160: 38.03 | H160: 40.33 | I160: 41.02 | J160: 41.48 | K160: 40.55 | L160: 39.4 | M160: 15.11595
A161: 151 | B161: FORTIS | C161: 145.55 | D161: 144.23 | E161: 141.67 | F161: 137.78 | G161: 135.22 | H161: 148.12 | I161: 150.68 | J161: 154.57 | K161: 146.8 | L161: 140.35 | M161: 20.60263
A162: 152 | B162: FCONSUMER | C162: 22.45 | D162: 22.55 | E162: 22.20 | F162: 21.95 | G162: 21.60 | H162: 22.80 | I162: 23.15 | J162: 23.40 | K162: 22.9 | L162: 22.3 | M162: 6.90566
A163: 153 | B163: FLFL | C163: 422.65 | D163: 418.33 | E163: 410.82 | F163: 398.98 | G163: 391.47 | H163: 430.17 | I163: 437.68 | J163: 449.52 | K163: 425.85 | L163: 406.5 | M163: 0.59806
A164: 154 | B164: FRETAIL | C164: 332.55 | D164: 331.30 | E164: 328.35 | F164: 324.15 | G164: 321.20 | H164: 335.50 | I164: 338.45 | J164: 342.65 | K164: 334.25 | L164: 327.1 | M164: 2.62522
A165: 155 | B165: GAIL | C165: 122.35 | D165: 122.02 | E165: 121.38 | F165: 120.42 | G165: 119.78 | H165: 122.98 | I165: 123.62 | J165: 124.58 | K165: 122.65 | L165: 121.05 | M165: 68.50221
A166: 156 | B166: GEPIL | C166: 695.1 | D166: 694.12 | E166: 684.38 | F166: 673.67 | G166: 663.93 | H166: 704.83 | I166: 714.57 | J166: 725.28 | K166: 703.85 | L166: 683.4 | M166: 0.11595
A167: 157 | B167: GET&D | C167: 170.05 | D167: 170.07 | E167: 167.63 | F167: 165.22 | G167: 162.78 | H167: 172.48 | I167: 174.92 | J167: 177.33 | K167: 172.5 | L167: 167.65 | M167: 0.10793
A168: 158 | B168: GHCL | C168: 208.45 | D168: 207.23 | E168: 205.47 | F168: 202.48 | G168: 200.72 | H168: 210.22 | I168: 211.98 | J168: 214.97 | K168: 209 | L168: 204.25 | M168: 0.49688
A169: 159 | B169: GMRINFRA | C169: 20.55 | D169: 20.50 | E169: 20.20 | F169: 19.85 | G169: 19.55 | H169: 20.85 | I169: 21.15 | J169: 21.50 | K169: 20.8 | L169: 20.15 | M169: 140.88927
A170: 160 | B170: GALAXYSURF | C170: 1532.4 | D170: 1533.43 | E170: 1518.97 | F170: 1505.53 | G170: 1491.07 | H170: 1546.87 | I170: 1561.33 | J170: 1574.77 | K170: 1547.9 | L170: 1520 | M170: 0.03378
A171: 161 | B171: GARFIBRES | C171: 1161.35 | D171: 1170.25 | E171: 1146.10 | F171: 1130.85 | G171: 1106.70 | H171: 1185.50 | I171: 1209.65 | J171: 1224.90 | K171: 1194.4 | L171: 1155 | M171: 0.04314
A172: 162 | B172: GAYAPROJ | C172: 62.6 | D172: 64.20 | E172: 61.00 | F172: 59.40 | G172: 56.20 | H172: 65.80 | I172: 69.00 | J172: 70.60 | K172: 67.4 | L172: 62.6 | M172: 5.44618
A173: 163 | B173: GICRE | C173: 258.35 | D173: 262.82 | E173: 251.13 | F173: 243.92 | G173: 232.23 | H173: 270.03 | I173: 281.72 | J173: 288.93 | K173: 274.5 | L173: 255.6 | M173: 7.42228
A174: 164 | B174: GILLETTE | C174: 6900.2 | D174: 6923.95 | E174: 6867.90 | F174: 6835.60 | G174: 6779.55 | H174: 6956.25 | I174: 7012.30 | J174: 7044.60 | K174: 6980 | L174: 6891.65 | M174: 0.04487
A175: 165 | B175: GLAXO | C175: 1640.95 | D175: 1643.88 | E175: 1625.27 | F175: 1609.58 | G175: 1590.97 | H175: 1659.57 | I175: 1678.18 | J175: 1693.87 | K175: 1662.5 | L175: 1628.2 | M175: 0.24186
A176: 166 | B176: GLENMARK | C176: 344.05 | D176: 347.08 | E176: 339.17 | F176: 334.28 | G176: 326.37 | H176: 351.97 | I176: 359.88 | J176: 364.77 | K176: 355 | L176: 342.2 | M176: 30.98682
A177: 167 | B177: GODFRYPHLP | C177: 1151.45 | D177: 1151.83 | E177: 1131.62 | F177: 1111.78 | G177: 1091.57 | H177: 1171.67 | I177: 1191.88 | J177: 1211.72 | K177: 1172.05 | L177: 1132 | M177: 0.90683
A178: 168 | B178: GODREJAGRO | C178: 471.65 | D178: 471.25 | E178: 468.50 | F178: 465.35 | G178: 462.60 | H178: 474.40 | I178: 477.15 | J178: 480.30 | K178: 474 | L178: 468.1 | M178: 0.29332
A179: 169 | B179: GODREJCP | C179: 712.7 | D179: 716.80 | E179: 704.90 | F179: 697.10 | G179: 685.20 | H179: 724.60 | I179: 736.50 | J179: 744.30 | K179: 728.7 | L179: 709 | M179: 5.33497
A180: 170 | B180: GODREJIND | C180: 435.9 | D180: 437.10 | E180: 433.30 | F180: 430.70 | G180: 426.90 | H180: 439.70 | I180: 443.50 | J180: 446.10 | K180: 440.9 | L180: 434.5 | M180: 0.47518
A181: 171 | B181: GODREJPROP | C181: 892.35 | D181: 882.75 | E181: 870.10 | F181: 847.85 | G181: 835.20 | H181: 905.00 | I181: 917.65 | J181: 939.90 | K181: 895.4 | L181: 860.5 | M181: 3.9142
A182: 172 | B182: GRANULES | C182: 130.85 | D182: 130.58 | E182: 129.37 | F182: 127.88 | G182: 126.67 | H182: 132.07 | I182: 133.28 | J182: 134.77 | K182: 131.8 | L182: 129.1 | M182: 14.26134
A183: 173 | B183: GRAPHITE | C183: 315.85 | D183: 314.28 | E183: 304.57 | F183: 293.28 | G183: 283.57 | H183: 325.57 | I183: 335.28 | J183: 346.57 | K183: 324 | L183: 303 | M183: 40.24497
A184: 174 | B184: GRASIM | C184: 793.2 | D184: 786.78 | E184: 776.67 | F184: 760.13 | G184: 750.02 | H184: 803.32 | I184: 813.43 | J184: 829.97 | K184: 796.9 | L184: 770.25 | M184: 14.57907
A185: 175 | B185: GESHIP | C185: 298.7 | D185: 297.40 | E185: 294.80 | F185: 290.90 | G185: 288.30 | H185: 301.30 | I185: 303.90 | J185: 307.80 | K185: 300 | L185: 293.5 | M185: 1.09721
A186: 176 | B186: GREAVESCOT | C186: 137.15 | D186: 135.78 | E186: 133.67 | F186: 130.18 | G186: 128.07 | H186: 139.27 | I186: 141.38 | J186: 144.87 | K186: 137.9 | L186: 132.3 | M186: 1.29068
A187: 177 | B187: GRINDWELL | C187: 585.95 | D187: 588.95 | E187: 580.15 | F187: 574.35 | G187: 565.55 | H187: 594.75 | I187: 603.55 | J187: 609.35 | K187: 597.75 | L187: 583.15 | M187: 0.16109
A188: 178 | B188: GUJALKALI | C188: 401.75 | D188: 403.58 | E188: 398.17 | F188: 394.58 | G188: 389.17 | H188: 407.17 | I188: 412.58 | J188: 416.17 | K188: 409 | L188: 400 | M188: 0.26202
A189: 179 | B189: GUJGASLTD | C189: 194.6 | D189: 195.33 | E189: 192.87 | F189: 191.13 | G189: 188.67 | H189: 197.07 | I189: 199.53 | J189: 201.27 | K189: 197.8 | L189: 193.6 | M189: 2.93035
A190: 180 | B190: GMDCLTD | C190: 58.25 | D190: 58.22 | E190: 57.73 | F190: 57.22 | G190: 56.73 | H190: 58.73 | I190: 59.22 | J190: 59.73 | K190: 58.7 | L190: 57.7 | M190: 0.76305
A191: 181 | B191: GNFC | C191: 188.95 | D191: 190.02 | E191: 187.43 | F191: 185.92 | G191: 183.33 | H191: 191.53 | I191: 194.12 | J191: 195.63 | K191: 192.6 | L191: 188.5 | M191: 1.8656
A192: 182 | B192: GPPL | C192: 85.05 | D192: 85.12 | E192: 84.73 | F192: 84.42 | G192: 84.03 | H192: 85.43 | I192: 85.82 | J192: 86.13 | K192: 85.5 | L192: 84.8 | M192: 0.4715
A193: 183 | B193: GSFC | C193: 70.75 | D193: 71.03 | E193: 70.27 | F193: 69.78 | G193: 69.02 | H193: 71.52 | I193: 72.28 | J193: 72.77 | K193: 71.8 | L193: 70.55 | M193: 3.39287
A194: 184 | B194: GSPL | C194: 215.45 | D194: 214.60 | E194: 211.60 | F194: 207.75 | G194: 204.75 | H194: 218.45 | I194: 221.45 | J194: 225.30 | K194: 217.6 | L194: 210.75 | M194: 2.03151
A195: 185 | B195: GULFOILLUB | C195: 846.35 | D195: 852.15 | E195: 834.30 | F195: 822.25 | G195: 804.40 | H195: 864.20 | I195: 882.05 | J195: 894.10 | K195: 870 | L195: 840.1 | M195: 0.09192
A196: 186 | B196: HEG | C196: 1031.2 | D196: 1037.02 | E196: 1007.13 | F196: 983.07 | G196: 953.18 | H196: 1061.08 | I196: 1090.97 | J196: 1115.03 | K196: 1066.9 | L196: 1012.95 | M196: 9.68402
A197: 187 | B197: HCLTECH | C197: 1114.75 | D197: 1119.55 | E197: 1104.15 | F197: 1093.55 | G197: 1078.15 | H197: 1130.15 | I197: 1145.55 | J197: 1156.15 | K197: 1134.95 | L197: 1108.95 | M197: 12.98964
A198: 188 | B198: HDFCAMC | C198: 3707.8 | D198: 3744.65 | E198: 3645.30 | F198: 3582.80 | G198: 3483.45 | H198: 3807.15 | I198: 3906.50 | J198: 3969.00 | K198: 3844 | L198: 3682.15 | M198: 9.30114
A199: 189 | B199: HDFCBANK | C199: 1264.75 | D199: 1270.13 | E199: 1256.62 | F199: 1248.48 | G199: 1234.97 | H199: 1278.27 | I199: 1291.78 | J199: 1299.92 | K199: 1283.65 | L199: 1262 | M199: 38.44005
A200: 190 | B200: HDFCLIFE | C200: 586.4 | D200: 587.18 | E200: 580.47 | F200: 574.53 | G200: 567.82 | H200: 593.12 | I200: 599.83 | J200: 605.77 | K200: 593.9 | L200: 581.25 | M200: 22.75245
A201: 191 | B201: HATHWAY | C201: 19.8 | D201: 19.97 | E201: 19.58 | F201: 19.37 | G201: 18.98 | H201: 20.18 | I201: 20.57 | J201: 20.78 | K201: 20.35 | L201: 19.75 | M201: 1.90574
A202: 192 | B202: HATSUN | C202: 579.85 | D202: 579.43 | E202: 575.42 | F202: 570.98 | G202: 566.97 | H202: 583.87 | I202: 587.88 | J202: 592.32 | K202: 583.45 | L202: 575 | M202: 0.0577
A203: 193 | B203: HAVELLS | C203: 638.55 | D203: 642.62 | E203: 631.93 | F203: 625.32 | G203: 614.63 | H203: 649.23 | I203: 659.92 | J203: 666.53 | K203: 653.3 | L203: 636 | M203: 16.06769
A204: 194 | B204: HEIDELBERG | C204: 185.8 | D204: 186.25 | E204: 184.30 | F204: 182.80 | G204: 180.85 | H204: 187.75 | I204: 189.70 | J204: 191.20 | K204: 188.2 | L204: 184.75 | M204: 1.40878
A205: 195 | B205: HERITGFOOD | C205: 316.85 | D205: 316.33 | E205: 308.67 | F205: 300.48 | G205: 292.82 | H205: 324.52 | I205: 332.18 | J205: 340.37 | K205: 324 | L205: 308.15 | M205: 2.60837
A206: 196 | B206: HEROMOTOCO | C206: 2441.6 | D206: 2442.00 | E206: 2425.60 | F206: 2409.60 | G206: 2393.20 | H206: 2458.00 | I206: 2474.40 | J206: 2490.40 | K206: 2458.4 | L206: 2426 | M206: 4.71953
... 320 more rows

Sheet Bulk Deals
E6: Back To Main Page
A7: Subject : | B7: BULK DEAL | D7: =Main!B10 -> 2019-11-25
A9: Date | B9: Scrip code | C9: Scrip Name | D9: Client Name | E9: Buy / Sell | F9: Quantity Traded | G9: Trade Price / Wt.Avg.trade price | H9: Exchange
A10: 2019-11-22 | B10: 542579 | C10: AGOL | D10: NEWEDGE VINIMAY PRIVATE LIMITED | E10: BUY | F10: 120,000 | G10: 30.70 | H10: BSE
A11: 2019-11-22 | B11: 542579 | C11: AGOL | D11: AJAY KUMAR AGARWAL HUF | E11: SELL | F11: 150,000 | G11: 30.70 | H11: BSE
A12: 2019-11-22 | B12: 541401 | C12: ARIHANTINS | D12: ARUN DASHRATHBHAI PRAJAPATI | E12: BUY | F12: 120,000 | G12: 6.25 | H12: BSE
A13: 2019-11-22 | B13: 541401 | C13: ARIHANTINS | D13: MANISHABEN KALPESHBHAI MALVI | E13: BUY | F13: 208,000 | G13: 6.26 | H13: BSE
A14: 2019-11-22 | B14: 541401 | C14: ARIHANTINS | D14: MANISHABEN KALPESHBHAI MALVI | E14: SELL | F14: 112,000 | G14: 6.28 | H14: BSE
A15: 2019-11-22 | B15: 541401 | C15: ARIHANTINS | D15: MADHUBEN VINODBHAI KAMDAR | E15: SELL | F15: 204,000 | G15: 6.25 | H15: BSE
A16: 2019-11-22 | B16: 541401 | C16: ARIHANTINS | D16: ASHISH HASAMUKHLAL SHAH | E16: BUY | F16: 56,000 | G16: 6.29 | H16: BSE
A17: 2019-11-22 | B17: 508918 | C17: GREYCELLS | D17: LTS INVESTMENT FUND LTD | E17: SELL | F17: 105,252 | G17: 28.20 | H17: BSE
A18: 2019-11-22 | B18: 508918 | C18: GREYCELLS | D18: KRISMA INVESTMENTS PRIVATE LIMITED | E18: BUY | F18: 105,300 | G18: 28.20 | H18: BSE
A19: 2019-11-22 | B19: 540938 | C19: GUJHYSPIN | D19: KEDAR DILIP KOTHARI | E19: BUY | F19: 160,000 | G19: 4.94 | H19: BSE
A20: 2019-11-22 | B20: 536709 | C20: INDRENEW | D20: HARIT SHAH | E20: SELL | F20: 20,499 | G20: 8.12 | H20: BSE
A21: 2019-11-22 | B21: 538765 | C21: JSHL | D21: VIVEK DWIVEDI | E21: BUY | F21: 40,000 | G21: 9.89 | H21: BSE
A22: 2019-11-22 | B22: 538765 | C22: JSHL | D22: VIVEK DWIVEDI | E22: SELL | F22: 80,000 | G22: 9.61 | H22: BSE
A23: 2019-11-22 | B23: 502933 | C23: KATRSPG | D23: RAHUL VIJAY KATARE | E23: SELL | F23: 55,787 | G23: 14.87 | H23: BSE
A24: 2019-11-22 | B24: 502933 | C24: KATRSPG | D24: NIKITA HARISH MAHESHWARI | E24: BUY | F24: 15,000 | G24: 14.87 | H24: BSE
A25: 2019-11-22 | B25: 502933 | C25: KATRSPG | D25: MADHAV SAMPATLAL SARDA | E25: BUY | F25: 25,000 | G25: 14.87 | H25: BSE
A26: 2019-11-22 | B26: 539599 | C26: KEL | D26: ARUN SINGHAL | E26: BUY | F26: 70,882 | G26: 17.44 | H26: BSE
A27: 2019-11-22 | B27: 539599 | C27: KEL | D27: VEPAR SOLUTIONS PRIVATE LIMITED | E27: BUY | F27: 52,783 | G27: 17.45 | H27: BSE
A28: 2019-11-22 | B28: 539599 | C28: KEL | D28: VEPAR SOLUTIONS PRIVATE LIMITED | E28: SELL | F28: 52,783 | G28: 17.5 | H28: BSE
A29: 2019-11-22 | B29: 537669 | C29: LPNAVAL | D29: NNM SECURITIES PVT LTD | E29: SELL | F29: 51,000 | G29: 51.29 | H29: BSE
A30: 2019-11-22 | B30: 537669 | C30: LPNAVAL | D30: AJAY KUMAR AGARWAL HUF | E30: BUY | F30: 48,000 | G30: 51 | H30: BSE
A31: 2019-11-22 | B31: 539126 | C31: MEP | D31: SOHIL CHAND | E31: BUY | F31: 1,100,000 | G31: 39.47 | H31: BSE
A32: 2019-11-22 | B32: 540809 | C32: MRCEXIM | D32: ESPS FINSERVE PRIVATE LIMITED | E32: BUY | F32: 88,000 | G32: 5.97 | H32: BSE
A33: 2019-11-22 | B33: 540809 | C33: MRCEXIM | D33: DAYA S VALA | E33: SELL | F33: 120,000 | G33: 5.97 | H33: BSE
A34: 2019-11-22 | B34: 540243 | C34: NEWLIGHT | D34: ARUN KOCHAR | E34: BUY | F34: 14,000 | G34: 33.86 | H34: BSE
A35: 2019-11-22 | B35: 540243 | C35: NEWLIGHT | D35: MANISH NITIN THAKUR | E35: SELL | F35: 13,000 | G35: 33.88 | H35: BSE
A36: 2019-11-22 | B36: 512217 | C36: PRISMMEDI | D36: BHAVESH H SHAH | E36: BUY | F36: 41,119 | G36: 25.68 | H36: BSE
A37: 2019-11-22 | B37: 512217 | C37: PRISMMEDI | D37: BHAVESH H SHAH | E37: SELL | F37: 41,119 | G37: 25.06 | H37: BSE
A38: 2019-11-22 | B38: 523025 | C38: SAFARIND | D38: ASHISH KACHOLIA | E38: BUY | F38: 218,000 | G38: 550 | H38: BSE
A39: 2019-11-22 | B39: 523025 | C39: SAFARIND | D39: SAIF INDIA VI FII HOLDINGS LIMITED | E39: BUY | F39: 578,992 | G39: 540 | H39: BSE
A40: 2019-11-22 | B40: 523025 | C40: SAFARIND | D40: TANO INDIA PRIVATE EQUITY FUND II | E40: SELL | F40: 1,070,000 | G40: 544.07 | H40: BSE
A41: 2019-11-22 | B41: 542725 | C41: SBC | D41: SANDEEP KUMAR SRIVASTAVA | E41: SELL | F41: 54,000 | G41: 26.65 | H41: BSE
A42: 2019-11-22 | B42: 519566 | C42: SIMRAN | D42: PRAMILA GUPTA | E42: SELL | F42: 24,000 | G42: 41.09 | H42: BSE
A43: 2019-11-22 | B43: 539026 | C43: SSPNFIN | D43: RAJWANT PARMANAND SINGH | E43: BUY | F43: 12,000 | G43: 89.85 | H43: BSE
A44: 2019-11-22 | B44: 539026 | C44: SSPNFIN | D44: RAJWANT PARMANAND SINGH | E44: SELL | F44: 12,000 | G44: 92.18 | H44: BSE
A45: 2019-11-22 | B45: 539026 | C45: SSPNFIN | D45: DEVJEET CHAKRABORTY | E45: SELL | F45: 14,000 | G45: 91.86 | H45: BSE
A46: 2019-11-22 | B46: 526775 | C46: VALIANT | D46: GAURAV MOHAN SOOD | E46: BUY | F46: 56,540 | G46: 20.89 | H46: BSE
A47: 2019-11-22 | B47: 526775 | C47: VALIANT | D47: MOHINI SINGH | E47: SELL | F47: 100,000 | G47: 21 | H47: BSE
A48: 2019-11-22 | B48: AGROPHOS | C48: Agro Phos India Limited | D48: ANUPAM NARAIN GUPTA | E48: BUY | F48: 139,029 | G48: 127.83 | H48: NSE
A49: 2019-11-22 | B49: BCP | C49: B.C. Power Controls Ltd | D49: TANISHA GOEL | E49: BUY | F49: 351,860 | G49: 9.66 | H49: NSE
A50: 2019-11-22 | B50: BCP | C50: B.C. Power Controls Ltd | D50: THAKAR JITAL ASHISH | E50: BUY | F50: 9,220 | G50: 9.57 | H50: NSE
A51: 2019-11-22 | B51: DGCONTENT | C51: Digicontent Limited | D51: UNIQUE COMTRADE PRIVATE LIMITED | E51: BUY | F51: 600,000 | G51: 3.05 | H51: NSE
A52: 2019-11-22 | B52: DISHTV | C52: Dish TV India Limited | D52: TOWER RESEARCH CAPITAL MARKETS INDIA PRIVATE LIMITED | E52: BUY | F52: 10,216,056 | G52: 16.17 | H52: NSE
A53: 2019-11-22 | B53: IBULHSGFIN | C53: Indiabulls Hsg Fin Ltd | D53: TOWER RESEARCH CAPITAL MARKETS INDIA PRIVATE LIMITED | E53: BUY | F53: 3,679,374 | G53: 239.02 | H53: NSE
A54: 2019-11-22 | B54: IBULHSGFIN | C54: Indiabulls Hsg Fin Ltd | D54: SHADOWFAX TRADERS RAMESH CHAND JAIN | E54: BUY | F54: 2,995,364 | G54: 238.9 | H54: NSE
A55: 2019-11-22 | B55: IBULHSGFIN | C55: Indiabulls Hsg Fin Ltd | D55: SURJECTIVE RESEARCH CAPITAL LLP | E55: BUY | F55: 3,019,126 | G55: 239.16 | H55: NSE
A56: 2019-11-22 | B56: NAHARSPING | C56: Nahar Spinning Mills Ltd. | D56: NAHAR CAPITAL AND FINANCIAL SERVICES LIMITED | E56: BUY | F56: 200,025 | G56: 43.25 | H56: NSE
A57: 2019-11-22 | B57: NCC | C57: NCC Limited | D57: TOWER RESEARCH CAPITAL MARKETS INDIA PRIVATE LIMITED | E57: BUY | F57: 4,249,678 | G57: 61.31 | H57: NSE
A58: 2019-11-22 | B58: AGROPHOS | C58: Agro Phos India Limited | D58: ANUPAM NARAIN GUPTA | E58: SELL | F58: 73,000 | G58: 127.2 | H58: NSE
A59: 2019-11-22 | B59: BCP | C59: B.C. Power Controls Ltd | D59: THAKAR JITAL ASHISH | E59: SELL | F59: 351,857 | G59: 9.66 | H59: NSE
A60: 2019-11-22 | B60: DISHTV | C60: Dish TV India Limited | D60: TOWER RESEARCH CAPITAL MARKETS INDIA PRIVATE LIMITED | E60: SELL | F60: 10,216,056 | G60: 16.16 | H60: NSE
A61: 2019-11-22 | B61: IBULHSGFIN | C61: Indiabulls Hsg Fin Ltd | D61: TOWER RESEARCH CAPITAL MARKETS INDIA PRIVATE LIMITED | E61: SELL | F61: 3,714,772 | G61: 239.12 | H61: NSE
A62: 2019-11-22 | B62: IBULHSGFIN | C62: Indiabulls Hsg Fin Ltd | D62: SURJECTIVE RESEARCH CAPITAL LLP | E62: SELL | F62: 3,020,655 | G62: 239.23 | H62: NSE
A63: 2019-11-22 | B63: IBULHSGFIN | C63: Indiabulls Hsg Fin Ltd | D63: SHADOWFAX TRADERS RAMESH CHAND JAIN | E63: SELL | F63: 2,995,364 | G63: 239.01 | H63: NSE
A64: 2019-11-22 | B64: NAHARSPING | C64: Nahar Spinning Mills Ltd. | D64: LILAVATI ASHOK SHAH | E64: SELL | F64: 201744 | G64: 43.25 | H64: NSE
A65: 2019-11-22 | B65: NCC | C65: NCC Limited | D65: TOWER RESEARCH CAPITAL MARKETS INDIA PRIVATE LIMITED | E65: SELL | F65: 4345798 | G65: 61.27 | H65: NSE
A66: 2019-11-22 | B66: RELCAPITAL | C66: Reliance Capital Limited | D66: YES BANK LTD | E66: SELL | F66: 1321166 | G66: 16.39 | H66: NSE
A67: 2019-11-22 | B67: SATIN | C67: Satin Credit Net Ltd | D67: GOLDMAN SACHS SINGAPORE PTE | E67: SELL | F67: 266363 | G67: 218.62 | H67: NSE

Sheet Call Tracker (Equity & F&O)
M5: Back To Main Page
A6: Retail Research Technical Calls & Fundamental Performance Report for the month of November-2019
M7: =Main!B10 -> 2019-11-25
B8: Positional Call
A9: Sr.no | B9: Date | D9: Company | E9: Rec | F9: Rec Price | G9: Stop Loss*** | H9: Call Closed At | I9: Target | J9: Remark | K9: Profit / Loss per Share | L9: Gain / Loss % | M9: Status | N9: Closed Date | O9: NSE Closed Price
A10: 1 | B10: 2019-09-26 | D10: HDFC | E10: Buy | F10: 2070 | G10: 1940 | H10: 2165 | I10: 2250-2300 | J10: Profit of Rs.95/- | K10: =H10-F10 -> 95 | L10: =K10/F10 -> 4.59% | M10: Successful | N10: 2019-11-01 | R10: H
A11: 2 | B11: 2019-10-01 | D11: UPL | E11: Buy{} | F11: 595 | G11: 564 | H11: 599.5 | I11: 650-660 | J11: Profit of Rs.4.50/- | K11: 4.5 | L11: 0.76% | M11: Neutral | N11: 2019-11-07 | R11: R
A12: 3 | B12: 2019-10-07 | D12: PIDILITIND | E12: Buy{} | F12: 1367.5 | G12: 1297 | H12: 1413.5 | I12: 1500-1520 | J12: Part Profit of Rs.46/- | K12: =H12-F12 -> 46 | L12: =K12/F12 -> 3.36% | M12: Successful | N12: 2019-10-31 | O12: =VLOOKUP(D12,Sheet2!A51:M1690,6,0) -> 1297.9 | R12: R
A13: 4 | B13: 2019-10-22 | D13: HEIDELBERG | E13: Buy | F13: 188.5 | G13: 178 | H13: 199 | I13: 205-210 | J13: Profit of Rs.10.50/- | K13: 10.5 | L13: 5.57% | M13: Successful | N13: 2019-11-05 | R13: H
A14: 5 | B14: 2019-10-27 | D14: AMBUJACEM | E14: Buy{} | F14: 197 | G14: 185.4 | H14: 203.5 | I14: 216-220 | J14: Part Profit of Rs.6.5/- | K14: =H14-F14 -> 6.5 | L14: =K14/F14 -> 3.30% | M14: Successful | N14: 2019-10-30 | O14: =VLOOKUP(D14,Sheet2!A60:M1699,6,0) -> 200.8 | R14: R
A15: 6 | B15: 2019-11-04 | D15: UBL | E15: Buy{} | F15: 1240 | G15: 1178 | H15: 1292.5 | I15: 1340-1360 | J15: Profit of Rs.52.5/- | K15: =H15-F15 -> 52.5 | L15: =K15/F15 -> 4.23% | M15: Successful | N15: 2019-11-08 | R15: H
A16: 7 | B16: 2019-11-05 | D16: TATAMOTORS | E16: Sell | F16: 173 | G16: 183.3 | H16: 163 | I16: 158-155 | J16: Profit of Rs.10/- | K16: =F16-H16 -> 10 | L16: 5.78% | M16: Successful | N16: 2019-11-21 | R16: R
A17: 8 | B17: 2019-11-06 | D17: BANDHANBNK | E17: Buy | F17: 572.5 | G17: 538 | H17: 547 | I17: 630-650 | J17: Loss of Rs.25.5/- | K17: -25.5 | L17: =K17/F17 -> -4.45% | M17: Unsuccessful | N17: 2019-11-11 | R17: H
A18: 9 | B18: 2019-11-07 | D18: PRESTIGE | E18: Buy | F18: 312 | G18: 288 | H18: 288.5 | I18: 340-360 | J18: Loss of Rs.23.5/- | K18: =H18-F18 -> -23.5 | L18: =K18/F18 -> -7.53% | M18: Unsuccessful | N18: 2019-11-15 | R18: H
A19: 10 | B19: 2019-11-07 | D19: JINDALSTEL | E19: Sell | F19: 138 | G19: 148.3 | H19: 143 | I19: 120-117 | J19: Loss of Rs.5/- | K19: =F19-H19 -> -5 | L19: =K19/F19 -> -3.62% | M19: Unsuccessful | N19: 2019-11-07 | R19: R
A20: 11 | B20: 2019-11-08 | D20: CIPLA | E20: Sell{} | F20: 465 | G20: 491.3 | H20: 440 | I20: 425-418 | J20: Profit of Rs.25/- | K20: =F20-H20 -> 25 | L20: 5.38% | M20: Successful | N20: 2019-11-15 | R20: R
A21: 12 | B21: 2019-11-11 | D21: TVSMOTOR | E21: Buy | F21: 441 | G21: 417 | H21: 455.5 | I21: 480-490 | J21: Part Profit of Rs.14.5/- | K21: =H21-F21 -> 14.5 | L21: 3.29% | M21: Successful | N21: 2019-11-13 | O21: =VLOOKUP(D21,Sheet2!A67:M1706,6,0) -> 442.95 | R21: H
A22: 13 | B22: 2019-11-11 | D22: POWERGRID | E22: Buy | F22: 191-193 | G22: 183 | I22: 208-212 | J22: Open | O22: =VLOOKUP(D22,Sheet2!A68:M1707,6,0) -> 198.75 | R22: R
A23: 14 | B23: 2019-11-13 | D23: DLF | E23: Sell | F23: 210 | G23: 222.2 | H23: 203.5 | I23: 189-185 | J23: Part Profit of Rs.6.5/- | K23: =F23-H23 -> 6.5 | L23: =K23/F23 -> 3.10% | M23: Successful | N23: 2019-11-13 | O23: =VLOOKUP(D23,Sheet2!A69:M1708,6,0) -> 217.25 | R23: R
A24: 15 | B24: 2019-11-14 | D24: TORNTPHARM | E24: Buy | F24: 1755-1775 | G24: 1640 | I24: 1950-2000 | J24: Open | O24: =VLOOKUP(D24,Sheet2!A70:M1709,6,0) -> 1711.85 | R24: H
A25: 16 | B25: 2019-11-14 | D25: HEIDELBERG | E25: Buy | F25: 186.5 | G25: 174 | H25: 194.5 | I25: 205-210 | J25: Part Profit of Rs.8/- | K25: =H25-F25 -> 8 | L25: =K25/F25 -> 4.29% | M25: Successful | N25: 2019-11-20 | O25: =VLOOKUP(D25,Sheet2!A71:M1710,6,0) -> 185.8 | R25: H
A26: 17 | B26: 2019-11-14 | D26: JMFINANCIL | E26: Sell | F26: 89.5 | G26: 98.8 | H26: 98.5 | I26: 74-71 | J26: Loss of Rs.9/- | K26: =F26-H26 -> -9 | L26: -10.06% | M26: Unsuccessful | N26: 2019-11-22 | R26: R
A27: 18 | B27: 2019-11-18 | D27: CUB | E27: Buy | F27: 211 | G27: 198.7 | H27: 217.5 | I27: 230-235 | J27: Part Profit of Rs.6.50/- | K27: =H27-F27 -> 6.5 | L27: =K27/F27 -> 3.08% | M27: Successful | N27: 2019-11-22 | O27: =VLOOKUP(D27,Sheet2!A73:M1712,6,0) -> 214.6 | R27: R
A28: 19 | B28: 2019-11-18 | D28: BAJAJ-AUTO | E28: Sell | F28: 3180-3200 | G28: 3356.7 | I28: 2900-2850 | J28: Open | O28: =VLOOKUP(D28,Sheet2!A74:M1713,6,0) -> 3152.35 | R28: R
A29: 20 | B29: 2019-11-18 | D29: THERMAX | E29: Buy | F29: 1025-1035 | G29: 977 | I29: 1120-1140 | J29: Open | O29: =VLOOKUP(D29,Sheet2!A75:M1714,6,0) -> 1007.2 | R29: H
A30: 21 | B30: 2019-11-20 | D30: BRITANNIA | E30: Buy | F30: 3075-3100 | G30: 2930 | I30: 3380-3420 | J30: Open | O30: =VLOOKUP(D30,Sheet2!A76:M1715,6,0) -> 3022.65 | R30: H
A31: 22 | B31: 2019-11-21 | D31: HINDUNILVR | E31: Buy | F31: 2010-2030 | G31: 1917 | I31: 2200-2250 | J31: Open | O31: =VLOOKUP(D31,Sheet2!A77:M1716,6,0) -> 2028.35 | R31: H
A32: 23 | B32: 2019-11-22 | D32: GODFRYPHLP | E32: Buy | F32: 1155-1165 | G32: 1108 | I32: 1250-1280 | J32: Open | O32: =VLOOKUP(D32,Sheet2!A78:M1717,6,0) -> 1151.45 | R32: R
A33: 24 | B33: 2019-11-22 | D33: GODREJPROP | E33: Buy | F33: 880-890 | G33: 837.7 | I33: 965-985 | J33: Open | O33: =VLOOKUP(D33,Sheet2!A79:M1718,6,0) -> 892.35 | R33: R
A36: CLBS = Closing Basis ***
A37: Dividend adjusted <> | F37: Reinitiated $
A38: Part book {} | F38: Revised stoploss #
B40: Momentum Call
A41: Sr.no | B41: Date | D41: Company | E41: Rec | F41: Rec Price | G41: Stop Loss | H41: Call Closed At | I41: Target | J41: Remark | K41: Profit / Loss per Share/Lot | L41: Gain / Loss % | M41: Gain / Loss per Lot | N41: Lot | O41: Status | P41: Closed Date
A42: 1 | B42: 2019-10-29 | D42: INDUSINDBK | E42: Buy | F42: 1319 | G42: 1278 | H42: 1347.5 | I42: 1370-1390 | J42: Profit of Rs.28.5/- | K42: =H42-F42 -> 28.5 | L42: =K42/F42 -> 2.16% | O42: Successful | P42: 2019-11-01 | R42: H
A43: 2 | B43: 2019-10-30 | D43: POWERGRID | E43: Buy | F43: 199.5 | G43: 194.5 | H43: 194.5 | I43: 210 | J43: Loss of Rs.5/- | K43: -5 | L43: -2.51% | O43: Unsuccessful | P43: 2019-11-07 | R43: H
A44: 3 | B44: 2019-10-31 | D44: MFSL NOV FUT | E44: Buy | F44: 407 | G44: 396 | H44: 414 | I44: 425 | J44: Profit of Rs.7/- | K44: 7 | M44: =N44*K44 -> 8400 | N44: 1200 | O44: Successful | P44: 2019-11-04 | R44: N
A45: 4 | B45: 2019-10-31 | D45: HDFCBANK NOV FUT | E45: Buy | F45: 1239 | G45: 1215 | H45: 1251 | I45: 1280 | J45: Profit of Rs.12/- | K45: 12 | M45: =N45*K45 -> 6000 | N45: 500 | O45: Successful | P45: 2019-11-06 | R45: N
A46: 5 | B46: 2019-11-01 | D46: TORNTPOWER NOV FUT | E46: Sell | F46: 285 | G46: 289 | H46: 282 | I46: 276 | J46: Profit of Rs.3/- | K46: =F46-H46 -> 3 | M46: =N46*K46 -> 9000 | N46: 3000 | O46: Successful | P46: 2019-11-01 | R46: N
A47: 6 | B47: 2019-11-01 | D47: SBIN | E47: Sell | F47: 314 | G47: 322 | H47: 323 | I47: 300-395 | J47: Loss of Rs.9/- | K47: =F47-H47 -> -9 | L47: =K47/F47 -> -2.87% | O47: Unsuccessful | P47: 2019-11-07 | R47: R
A48: 7 | B48: 2019-11-04 | D48: AXISBANK NOV FUT | E48: Sell | F48: 749 | G48: 758.3 | H48: 742.5 | I48: 733 | J48: Profit of Rs.6.50/- | K48: =F48-H48 -> 6.5 | M48: =N48*K48 -> 7800 | N48: 1200 | O48: Successful | P48: 2019-11-04 | R48: R
A49: 8 | B49: 2019-11-04 | D49: COLPAL NOV FUT | E49: Buy | F49: 1527.5 | G49: 1510 | H49: 1539 | I49: 1560 | J49: Profit of Rs.11.50/- | K49: =H49-F49 -> 11.5 | M49: =N49*K49 -> 8050 | N49: 700 | O49: Successful | P49: 2019-11-04 | R49: N
A50: 9 | B50: 2019-11-04 | D50: LUPIN | E50: Buy | F50: 762.5 | G50: 747 | H50: 781 | I50: 790-800 | J50: Profit of Rs.18.50/- | K50: 18.5 | L50: =K50/F50 -> 2.43% | O50: Successful | P50: 2019-11-06 | R50: H
A51: 10 | B51: 2019-11-04 | D51: MARUTI | E51: Sell | F51: 7515 | G51: 7777.7 | H51: 7335 | I51: 7100-7000 | J51: Profit of Rs.180/- | K51: =F51-H51 -> 180 | L51: 2.40% | O51: Successful | P51: 2019-11-05 | R51: R
A52: 11 | B52: 2019-11-04 | D52: BANKBARODA | E52: Sell | F52: 101.5 | G52: 105 | H52: 99.6 | I52: 97-95 | J52: Profit of Rs.1.90/- | K52: =F52-H52 -> 1.9 | L52: 1.87% | O52: Successful | P52: 2019-11-06 | R52: H
A53: 12 | B53: 2019-11-04 | D53: COALINDIA | E53: Sell | F53: 211 | G53: 216.3 | H53: 207.25 | I53: 200-198 | J53: Profit of Rs.3.75/- | K53: =F53-H53 -> 3.75 | L53: =K53/F53 -> 1.78% | O53: Successful | P53: 2019-11-11 | R53: R
A54: 13 | B54: 2019-11-05 | D54: TCS | E54: Buy | F54: 2170 | G54: 2097 | H54: 2205 | I54: 2300-2330 | J54: Profit of Rs.35/- | K54: =H54-F54 -> 35 | L54: =K54/F54 -> 1.61% | O54: Successful | P54: 2019-11-05 | R54: R
A55: 14 | B55: 2019-11-05 | D55: COLPAL NOV FUT | E55: Buy | F55: 1527 | G55: 1509 | H55: 1540 | I55: 1560 | J55: Profit of Rs.13/- | K55: 13 | M55: =N55*K55 -> 9100 | N55: 700 | O55: Successful | P55: 2019-11-06 | R55: N
A56: 15 | B56: 2019-11-05 | D56: HDFCLIFE | E56: Buy | F56: 588.5 | G56: 569 | H56: 571.5 | I56: 620-630 | J56: Loss of Rs.17/- | K56: -17 | L56: =K56/F56 -> -2.89% | O56: Unsuccessful | P56: 2019-11-08 | R56: H
A57: 16 | B57: 2019-11-05 | D57: ICICIBANK NOV FUT | E57: Sell | F57: 470 | G57: 480.2 | H57: 480.2 | I57: 450 | J57: Loss of Rs.10.20/- | K57: =F57-H57 -> -10.2 | M57: =N57*K57 -> -14025 | N57: 1375 | O57: Unsuccessful | P57: 2019-11-06 | R57: R
A58: 17 | B58: 2019-11-06 | D58: HINDALCO | E58: Sell | F58: 202.35 | G58: 208.3 | H58: 199 | I58: 193-190 | J58: Profit of Rs.3.35/- | K58: =F58-H58 -> 3.35 | L58: =K58/F58 -> 1.66% | O58: Successful | P58: 2019-11-06 | R58: R
A59: 18 | B59: 2019-11-06 | D59: KOTAKBANK NOV FUT | E59: Buy | F59: 1568 | G59: 1544 | H59: 1588 | I59: 1600-1620 | J59: Profit of Rs.20/- | K59: =H59-F59 -> 20 | M59: =N59*K59 -> 8000 | N59: 400 | O59: Successful | P59: 2019-11-06 | R59: R
A60: 19 | B60: 2019-11-07 | D60: MGL NOV FUT | E60: Sell | F60: 979.5 | G60: 959 | H60: 960 | I60: 1020 | J60: Loss of Rs.19.50/- | K60: -19.5 | M60: =N60*K60 -> -11700 | N60: 600 | O60: Unsuccessful | P60: 2019-11-07 | R60: N
A61: 20 | B61: 2019-11-07 | D61: HINDALCO | E61: Sell | F61: 202.5 | G61: 208.3 | H61: 197.25 | I61: 193-190 | J61: Profit of Rs.5.25/- | K61: =F61-H61 -> 5.25 | L61: =K61/F61 -> 2.59% | O61: Successful | P61: 2019-11-13 | R61: R
A62: 21 | B62: 2019-11-07 | D62: AXISBANK NOV FUT | E62: Buy | F62: 739 | G62: 729 | H62: 729 | I62: 760 | J62: Loss of Rs.10/- | K62: =H62-F62 -> -10 | M62: =N62*K62 -> -12000 | N62: 1200 | O62: Unsuccessful | P62: 2019-11-08 | R62: N
A63: 22 | B63: 2019-11-08 | D63: HINDPETRO | E63: Buy | F63: 304.5 | G63: 296.3 | H63: 296.3 | I63: 317-320 | J63: Loss of Rs.8.2/- | K63: =H63-F63 -> -8.2 | L63: =K63/F63 -> -2.69% | O63: Unsuccessful | P63: 2019-11-08 | R63: R
A64: 23 | B64: 2019-11-08 | D64: COLPAL NOV FUT | E64: Buy | F64: 1578 | G64: 1560 | H64: 1591 | I64: 1600 | J64: Profit of Rs.13/- | K64: 13 | M64: =N64*K64 -> 9100 | N64: 700 | O64: Successful | P64: 2019-11-08 | R64: N
A65: 24 | B65: 2019-11-08 | D65: AXISBANK | E65: Buy | F65: 733 | G65: 715 | H65: 712.5 | I65: 760-765 | J65: Loss of Rs.20.50/- | K65: -20.5 | L65: =K65/F65 -> -2.80% | O65: Unsuccessful | P65: 2019-11-13 | R65: H
A66: 25 | B66: 2019-11-08 | D66: HINDUNILVR | E66: Buy | F66: 2085 | G66: 2035 | H66: 2025 | I66: 2160-2180 | J66: Loss of Rs.60/- | K66: -60 | L66: -2.88% | O66: Unsuccessful | P66: 2019-11-20 | R66: H
A67: 26 | B67: 2019-11-08 | D67: RELIANCE | E67: Sell | F67: 1447.5 | G67: 1505 | H67: 1490.5 | I67: 1380-1350 | J67: Loss of Rs.43/- | K67: =F67-H67 -> -43 | L67: =K67/F67 -> -2.97% | O67: Unsuccessful | P67: 2019-11-19 | R67: H
A68: 27 | B68: 2019-11-08 | D68: COLPAL NOV FUT | E68: Buy | F68: 1574 | G68: 1556 | H68: 1586.5 | I68: 1600-1620 | J68: Profit of Rs.12.50/- | K68: =H68-F68 -> 12.5 | M68: =N68*K68 -> 8750 | N68: 700 | O68: Successful | P68: 2019-11-11 | R68: N
A69: 28 | B69: 2019-11-11 | D69: TATAGLOBAL | E69: Buy | F69: 294 | G69: 284 | H69: 301 | I69: 305-310 | J69: Profit of Rs.7/- | K69: 7 | L69: =K69/F69 -> 2.38% | O69: Successful | P69: 2019-11-15 | R69: H
A70: 29 | B70: 2019-11-11 | D70: TVSMOTOR NOV FUT | E70: Buy | F70: 443.5 | G70: 433 | H70: 448.5 | I70: 462 | J70: Profit of Rs.5/- | K70: =H70-F70 -> 5 | M70: =N70*K70 -> 5500 | N70: 1100 | O70: Successful | P70: 2019-11-13 | R70: R
A71: 30 | B71: 2019-11-11 | D71: APOLLOTYRE | E71: Buy | F71: 166.5 | G71: 162.2 | H71: 170 | I71: 173-176 | J71: Profit of Rs.3.50/- | K71: 3.5 | L71: =K71/F71 -> 2.10% | O71: Successful | P71: 2019-11-18 | R71: R
A72: 31 | B72: 2019-11-11 | D72: PIDILITIND NOV FUT | E72: Buy | F72: 1335 | G72: 1313 | H72: 1333 | I72: 1375 | J72: Loss of Rs.2/- | K72: =H72-F72 -> -2 | M72: =N72*K72 -> -1000 | N72: 500 | O72: Unsuccessful | P72: 2019-11-13 | R72: R
A73: 32 | B73: 2019-11-11 | D73: HAVELLS | E73: Buy | F73: 696.5 | G73: 677 | H73: 676.5 | I73: 725-735 | J73: Loss of Rs.20/- | K73: -20 | L73: =K73/F73 -> -2.87% | O73: Unsuccessful | P73: 2019-11-13 | R73: H
A74: 33 | B74: 2019-11-11 | D74: MFSL NOV FUT | E74: Buy | F74: 472 | G74: 461 | H74: 461.5 | I74: 493 | J74: Loss of Rs.10.50/- | K74: -10.5 | M74: =N74*K74 -> -12600 | N74: 1200 | O74: Unsuccessful | P74: 2019-11-13 | R74: N
A75: 34 | B75: 2019-11-11 | D75: TORNTPOWER NOV FUT | E75: Sell | F75: 298.5 | G75: 303 | H75: 303.5 | I75: 290 | J75: Loss of Rs.5/- | K75: =F75-H75 -> -5 | M75: =N75*K75 -> -15000 | N75: 3000 | O75: Unsuccessful | P75: 2019-11-13 | R75: N
A76: 35 | B76: 2019-11-13 | D76: CUMMINSIND NOV FUT | E76: Sell | F76: 569 | G76: 583.3 | H76: 559.5 | I76: 548 | J76: Profit of Rs.9.5/- | K76: =F76-H76 -> 9.5 | M76: =N76*K76 -> 6650 | N76: 700 | O76: Successful | P76: 2019-11-14 | R76: R
A77: 36 | B77: 2019-11-13 | D77: COLPAL NOV FUT | E77: Buy | F77: 1563 | G77: 1545 | H77: 1545 | I77: 1600 | J77: Loss of Rs.18/- | K77: =H77-F77 -> -18 | M77: =N77*K77 -> -12600 | N77: 700 | O77: Unsuccessful | P77: 2019-11-14 | R77: N
A78: 37 | B78: 2019-11-13 | D78: POWERGRID | E78: Buy | F78: 189.5 | G78: 184 | H78: 194.5 | I78: 200-205 | J78: Profit of Rs.5/- | K78: =H78-F78 -> 5 | L78: =K78/F78 -> 2.64% | O78: Successful | P78: 2019-11-19 | R78: H
A79: 38 | B79: 2019-11-13 | D79: SBIN | E79: Sell | F79: 313.5 | G79: 324.4 | H79: 306.5 | I79: 294-290 | J79: Profit of Rs.7/- | K79: =F79-H79 -> 7 | L79: =K79/F79 -> 2.23% | O79: Successful | P79: 2019-11-13 | R79: R
A80: 39 | B80: 2019-11-14 | D80: HINDPETRO | E80: Buy | F80: 291 | G80: 281.7 | H80: 297 | I80: 305-310 | J80: Profit of Rs.6/- | K80: =H80-F80 -> 6 | L80: 2.06% | O80: Successful | P80: 2019-11-20 | R80: R
A81: 40 | B81: 2019-11-14 | D81: SUNPHARMA | E81: Buy | F81: 413.5 | G81: 401 | H81: 423 | I81: 435-440 | J81: Profit of Rs.9.50/- | K81: =H81-F81 -> 9.5 | L81: =K81/F81 -> 2.30% | O81: Successful | P81: 2019-11-18 | R81: R
A82: 41 | B82: 2019-11-15 | D82: MCDOWELL-N NOV FUT | E82: Buy | F82: 623.5 | G82: 613 | H82: 613 | I82: 640 | J82: Loss of Rs.10.50/- | K82: =H82-F82 -> -10.5 | M82: =N82*K82 -> -13125 | N82: 1250 | O82: Unsuccessful | P82: 2019-11-19 | R82: R
A83: 42 | B83: 2019-11-15 | D83: GRASIM NOV FUT | E83: Buy | F83: 749.5 | G83: 733 | H83: 761 | I83: 775 | J83: Profit of Rs.11.5/- | K83: 11.5 | M83: =N83*K83 -> 8625 | N83: 750 | O83: Successful | P83: 2019-11-15 | R83: N
A84: 43 | B84: 2019-11-15 | D84: CESC NOV FUT | E84: Buy | F84: 754 | G84: 738 | H84: 764 | I84: 780 | J84: Profit of Rs.10/- | K84: =H84-F84 -> 10 | M84: =N84*K84 -> 8000 | N84: 800 | O84: Successful | P84: 2019-11-18 | R84: N
A85: 44 | B85: 2019-11-15 | D85: DLF | E85: Sell | F85: 215 | G85: 222.2 | H85: 211.25 | I85: 202-205 | J85: Profit of Rs.3.75/- | K85: =F85-H85 -> 3.75 | L85: =K85/F85 -> 1.74% | O85: Successful | P85: 2019-11-15 | R85: R
A86: 45 | B86: 2019-11-18 | D86: ICICIBANK | E86: Sell | F86: 497-500 | G86: 513 | I86: 480-470 | J86: Open | R86: H
A87: 46 | B87: 2019-11-18 | D87: TATAELXSI NOV FUT | E87: Buy | F87: 790 | G87: 766.6 | H87: 804.5 | I87: 825-830 | J87: Profit of Rs.14.50/- | K87: =H87-F87 -> 14.5 | M87: =N87*K87 -> 8700 | N87: 600 | O87: Successful | P87: 2019-11-19 | R87: R
A88: 47 | B88: 2019-11-18 | D88: DLF | E88: Sell | F88: 216.5 | G88: 223.2 | H88: 212.25 | I88: 205 | J88: Profit of Rs.4.25/- | K88: =F88-H88 -> 4.25 | L88: =K88/F88 -> 1.96% | O88: Successful | P88: 2019-11-19 | R88: R
A89: 48 | B89: 2019-11-19 | D89: GRASIM | E89: Sell | F89: 781-784 | G89: 803.3 | I89: 745-735 | J89: Open | R89: R
A90: 49 | B90: 2019-11-19 | D90: RADICO | E90: Buy | F90: 300 | G90: 291 | H90: 306.5 | I90: 315-318 | J90: Profit of Rs.6.5/- | K90: =H90-F90 -> 6.5 | L90: =K90/F90 -> 2.17% | O90: Successful | P90: 2019-11-19 | R90: R
A91: 50 | B91: 2019-11-19 | D91: AXISBANK NOV FUT | E91: Sell | F91: 737 | G91: 748.3 | H91: 748.3 | I91: 720 | J91: Loss of Rs.11.30/- | K91: =F91-H91 -> -11.3 | M91: =N91*K91 -> -13560 | N91: 1200 | O91: Unsuccessful | P91: 2019-11-19 | R91: R
A92: 51 | B92: 2019-11-19 | D92: MARICO | E92: Buy | F92: 355-357 | G92: 344.4 | I92: 375-380 | J92: Open | R92: R
A93: 52 | B93: 2019-11-19 | D93: DMART | E93: Buy | F93: 1850-1860 | G93: 1794 | I93: 1945-1965 | J93: Open | R93: R
A94: 53 | B94: 2019-11-19 | D94: AMBUJACEM NOV FUT | E94: Buy | F94: 200-201 | G94: 195 | I94: 210-212 | J94: Open | R94: N
A95: 54 | B95: 2019-11-19 | D95: CENTURYTEX NOV FUT | E95: Buy | F95: 439.5 | G95: 420 | H95: 449.5 | I95: 470 | J95: Profit of Rs.10/- | K95: =H95-F95 -> 10 | M95: =N95*K95 -> 6000 | N95: 600 | O95: Successful | P95: 2019-11-19 | R95: N
A96: 55 | B96: 2019-11-19 | D96: APOLLOHOSP NOV FUT | E96: Buy | F96: 1404.5 | G96: 1383.3 | H96: 1426 | I96: 1440-1445 | J96: Profit of Rs.21.50/- | K96: 21.5 | M96: =N96*K96 -> 10750 | N96: 500 | O96: Successful | P96: 2019-11-20 | R96: R
A97: 56 | B97: 2019-11-19 | D97: DABUR | E97: Buy | F97: 454 | G97: 439 | H97: 465.5 | I97: 475-480 | J97: Profit of Rs.11.5/- | K97: 11.5 | L97: =K97/F97 -> 2.53% | O97: Successful | P97: 2019-11-20 | R97: H
A98: 57 | B98: 2019-11-19 | D98: CESC NOV FUT | E98: Buy | F98: 747 | G98: 732 | H98: 757 | I98: 770 | J98: Profit of Rs.10/- | K98: =H98-F98 -> 10 | M98: =N98*K98 -> 8000 | N98: 800 | O98: Successful | P98: 2019-11-19 | R98: N
A99: 58 | B99: 2019-11-19 | D99: COLPAL NOV FUT | E99: Buy | F99: 1542 | G99: 1525 | H99: 1550 | I99: 1580 | J99: Profit of Rs.8/- | K99: 8 | M99: =N99*K99 -> 5600 | N99: 700 | O99: Successful | P99: 2019-11-20 | R99: N
A100: 59 | B100: 2019-11-20 | D100: DLF | E100: Sell | F100: 218.5 | G100: 222.2 | H100: 214 | I100: 210-207 | J100: Profit of Rs.4.5/- | K100: =F100-H100 -> 4.5 | L100: =K100/F100 -> 2.06% | O100: Successful | P100: 2019-11-20 | R100: R
A101: 60 | B101: 2019-11-20 | D101: HCLTECH | E101: Buy | F101: 1126-1132 | G101: 1095 | I101: 1170-1190 | J101: Open | R101: H
A102: 61 | B102: 2019-11-20 | D102: BATAINDIA NOV FUT | E102: Buy | F102: 1703 | G102: 1678 | H102: 1678 | I102: 1740 | J102: Loss of Rs.25/- | K102: =H102-F102 -> -25 | M102: =N102*K102 -> -13750 | N102: 550 | O102: Unsuccessful | P102: 2019-11-21 | R102: N
A103: 62 | B103: 2019-11-21 | D103: GAIL | E103: Buy | F103: 122-123 | G103: 118.5 | I103: 128-130 | J103: Open | R103: H
A104: 63 | B104: 2019-11-21 | D104: PVR | E104: Buy | F104: 1785 | G104: 1728.8 | H104: 1822.5 | I104: 1870-1900 | J104: Profit of Rs.37.5/- | K104: =H104-F104 -> 37.5 | L104: =K104/F104 -> 2.10% | O104: Successful | P104: 2019-11-22 | R104: R
A105: 64 | B105: 2019-11-21 | D105: EXIDEIND NOV FUT | E105: Buy | F105: 189.5 | G105: 184 | H105: 193.25 | I105: 200 | J105: Profit of Rs.3.75/- | K105: 3.75 | M105: =N105*K105 -> 9000 | N105: 2400 | O105: Successful | P105: 2019-11-22 | R105: N
A106: 65 | B106: 2019-11-21 | D106: COLPAL NOV FUT | E106: Buy | F106: 1525 | G106: 1508 | H106: 1508 | I106: 1560 | J106: Loss of Rs.17/- | K106: -17 | M106: =N106*K106 -> -11900 | N106: 700 | O106: Unsuccessful | P106: 2019-11-22 | R106: N
A107: 66 | B107: 2019-11-22 | D107: SBIN | E107: Sell | F107: 332-334 | G107: 343.7 | I107: 316-313 | J107: Open | R107: R
A108: 67 | B108: 2019-11-22 | D108: TATAELXSI NOV FUT | E108: Buy | F108: 785-786 | G108: 764.6 | I108: 820-825 | J108: Open | R108: R
A120: CLBS = Closing Basis ***
A121: Dividend adjusted <> | F121: Reinitiated $
F122: Revised stoploss #
A124: Master Trade High Risk
A125: Sr.no | B125: Date | D125: Company | E125: Rec | F125: Rec Price | G125: Stop Loss | H125: Call Closed At | I125: Target | J125: Remark | K125: Profit / Loss per share | L125: Gain / Loss per Lot | M125: Lot | N125: Status | O125: Closed Date
A126: 1 | B126: 2019-10-30 | D126: BAJAJ-AUTO NOV FUT | E126: Sell | F126: 3240 | G126: 3360 | H126: 3205 | I126: 3040 | J126: Profit of Rs.36.50/- | K126: =F126-H126 -> 35 | L126: =M126*36.5 -> 9125 | M126: 250 | N126: Successful | O126: 2019-11-04 | R126: H
D127: BAJAJ-AUTO 3100 PE NOV | E127: Sell | F127: 49.50 | H127: 48 | K127: =F127-H127 -> 1.5 | R127: H
A128: 2 | B128: 2019-10-30 | D128: LT NOV FUT | E128: Buy | F128: 1476.5 | G128: 1418 | H128: 1427.5 | I128: 1550 | J128: Loss of Rs.28/- | K128: =H128-F128 -> -49 | L128: =M128*-28 -> -10500 | M128: 375 | N128: Unsuccessful | O128: 2019-11-08 | R128: H
D129: LT 1520 CE NOV | E129: Sell | F129: 28 | H129: 7 | K129: =F129-H129 -> 21 | R129: H
A130: 3 | B130: 2019-10-30 | D130: HEROMOTOCO NOV FUT | E130: Buy | F130: 2715 | G130: 2640 | H130: 2747.5 | I130: 2900 | J130: Profit of Rs.27.50/- | K130: =H130-F130 -> 32.5 | L130: =M130*27.5 -> 5500 | M130: 200 | N130: Successful | O130: 2019-11-01 | R130: N
D131: HEROMOTOCO 2850 CE NOV | E131: Sell | F131: 55 | H131: 60 | K131: =F131-H131 -> -5 | R131: N
A132: 4 | B132: 2019-10-31 | D132: AXISBANK NOV FUT | E132: Buy | F132: 738 | G132: 718 | H132: 743.5 | I132: 760 | J132: Profit of Rs.5/- | K132: =H132-F132 -> 5.5 | L132: =M132*5 -> 6000 | M132: 1200 | N132: Successful | O132: 2019-11-01 | R132: H
D133: AXISBANK 760 CE NOV | E133: Sell | F133: 17.50 | H133: 18 | K133: =F133-H133 -> -0.5 | R133: H
A134: 5 | B134: 2019-11-01 | D134: NIFTY NOV FUT | E134: Sell | F134: 11907.5 | G134: 12060 | H134: 12060 | I134: 11700 | J134: Loss of Rs.82.50/- | K134: =F134-H134 -> -152.5 | L134: =M134*-82.5 -> -6187.5 | M134: 75 | N134: Unsuccessful | O134: 2019-11-08 | R134: H
D135: Nifty 11750 PE 14-NOV | E135: Sell | F135: 78 | H135: 8 | K135: =F135-H135 -> 70 | R135: H
A136: 6 | B136: 2019-11-05 | D136: HAVELLS NOV FUT | E136: Buy | F136: 687 | G136: 670 | H136: 696 | I136: 720-730 | J136: Profit of Rs.8.50/- | K136: =H136-F136 -> 9 | L136: =M136*8.5 -> 8500 | M136: 1000 | N136: Successful | O136: 2019-11-06 | R136: N
D137: HAVELLS 710 CE NOV | E137: Sell | F137: 13.50 | H137: 14 | K137: =F137-H137 -> -0.5 | R137: N
A138: 7 | B138: 2019-11-05 | D138: BATAINDIA NOV FUT | E138: Buy | F138: 1735 | G138: 1701 | H138: 1701 | I138: 1820 | J138: Loss of Rs.22.50/- | K138: =H138-F138 -> -34 | L138: =M138*-22.5 -> -12375 | M138: 550 | N138: Unsuccessful | O138: 2019-11-06 | R138: N
D139: BATAINDIA 1800 CE NOV | E139: Sell | F139: 35 | H139: 23.5 | K139: =F139-H139 -> 11.5 | R139: N
A140: 8 | B140: 2019-11-06 | D140: GRASIM NOV FUT | E140: Buy | F140: 775 | G140: 754 | H140: 788 | I140: 820 | J140: Profit of Rs.11/- | K140: =H140-F140 -> 13 | L140: =M140*11 -> 8250 | M140: 750 | N140: Successful | O140: 2019-11-08 | R140: N
D141: GRASIM 820 CE NOV | E141: Sell | F141: 15.5 | H141: 17.5 | K141: =F141-H141 -> -2 | R141: N
A142: 9 | B142: 2019-11-06 | D142: ULTRACEMCO NOV FUT | E142: Buy | F142: 4150 | G142: 4070 | H142: 4195 | I142: 4350 | J142: Profit of Rs.37.50/- | K142: =H142-F142 -> 45 | L142: =M142*37.5 -> 7500 | M142: 200 | N142: Successful | O142: 2019-11-07 | R142: N
D143: ULTRACEMCO 4300 CE NOV | E143: Sell | F143: 70 | H143: 77.5 | K143: =F143-H143 -> -7.5 | R143: N
A144: 10 | B144: 2019-11-07 | D144: BAJAJ-AUTO NOV FUT | E144: Sell | F144: 3240 | G144: 3355 | H144: 3212.5 | I144: 3100 | J144: Profit of Rs.32.50/- | K144: =F144-H144 -> 27.5 | L144: =M144*32.5 -> 8125 | M144: 250 | N144: Successful | O144: 2019-11-13 | R144: H
D145: BAJAJ-AUTO 3150 PE NOV | E145: Sell | F145: 47.50 | H145: 42.5 | K145: =F145-H145 -> 5 | R145: H
A146: 11 | B146: 2019-11-11 | D146: KOTAKBANK NOV FUT | E146: Buy | F146: 1600 | G146: 1560 | H146: 1617 | I146: 1660-1680 | J146: Profit of Rs.19/- | K146: =H146-F146 -> 17 | L146: =M146*19 -> 7600 | M146: 400 | N146: Successful | O146: 2019-11-15 | R146: N
D147: KOTAKBANK 1640 CE NOV | E147: Sell | F147: 22 | H147: 20 | K147: =F147-H147 -> 2 | R147: N
A148: 12 | B148: 2019-11-11 | D148: ULTRACEMCO NOV FUT | E148: Buy | F148: 4160 | G148: 4070 | H148: 4080 | I148: 4350 | J148: Loss of Rs.50/- | K148: =H148-F148 -> -80 | L148: =M148*-50 -> -10000 | M148: 200 | N148: Unsuccessful | O148: 2019-11-14 | R148: N
D149: ULTRACEMCO 4300 CE NOV | E149: Sell | F149: 62.50 | H149: 32.5 | K149: =F149-H149 -> 30 | R149: N
A150: 13 | B150: 2019-11-13 | D150: NIFTY NOV FUT | E150: Sell | F150: 11930 | G150: 12070 | H150: 11850 | I150: 11700 | J150: Profit of Rs.67.50/- | K150: =F150-H150 -> 80 | L150: =M150*67.5 -> 5062.5 | M150: 75 | N150: Successful | O150: 2019-11-14 | R150: H
D151: Nifty 11750 PE NOV | E151: Sell | F151: 80 | H151: 92.5 | K151: =F151-H151 -> -12.5 | R151: H
A152: 14 | B152: 2019-11-14 | D152: M&M NOV FUT | E152: Buy | F152: 577.5 | G152: 559 | H152: 589.25 | I152: 600 | J152: Profit of Rs.8.25/- | K152: =H152-F152 -> 11.75 | L152: =M152*8.25 -> 8250 | M152: 1000 | N152: Successful | O152: 2019-11-15 | R152: H
D153: M&M Nov 590 CE | E153: Sell | F153: 9.5 | H153: 13 | K153: =F153-H153 -> -3.5 | R153: H
A154: 15 | B154: 2019-11-14 | D154: ICICIBANK NOV FUT | E154: Sell | F154: 494.5 | G154: 507 | H154: 505.5 | I154: 480 | J154: Loss of Rs.8.5/- | K154: =F154-H154 -> -11 | L154: =M154*-8.5 -> -11687.5 | M154: 1375 | N154: Unsuccessful | O154: 2019-11-15 | R154: H
D155: ICICIBANK 480 PE NOV | E155: Sell | F155: 6.5 | H155: 4 | K155: =F155-H155 -> 2.5 | R155: H
A156: 16 | B156: 2019-11-15 | D156: HEROMOTOCO NOV FUT | E156: Buy | F156: 2592.5 | G156: 2518 | H156: 2515 | I156: 2700-2750 | J156: Loss of Rs.50.5/- | K156: =H156-F156 -> -77.5 | L156: =+-50.5*M156 -> -10100 | M156: 200 | N156: Unsuccessful | O156: 2019-11-18 | R156: H
D157: HEROMOTOCO Nov 2650 CE | E157: Sell | F157: 47.50 | H157: 20.5 | K157: =F157-H157 -> 27 | R157: H
A158: 17 | B158: 2019-11-18 | D158: HAVELLS NOV FUT | E158: Buy | F158: 665.5 | G158: 647 | H158: 675 | I158: 690 | J158: Profit of Rs.7.50/- | K158: =H158-F158 -> 9.5 | L158: =M158*7.5 -> 7500 | M158: 1000 | N158: Successful | O158: 2019-11-19 | R158: H
D159: HAVELLS NOV 680 CE | E159: Sell | F159: 9.50 | H159: 11.5 | K159: =F159-H159 -> -2 | R159: H
A160: 18 | B160: 2019-11-19 | D160: NIFTY NOV FUT | E160: Sell | F160: 11945 | G160: 12070 | H160: 11895 | I160: 11750-11700 | J160: Profit of Rs.50/- | K160: =F160-H160 -> 50 | L160: =K160*M160 -> 3750 | M160: 75 | N160: Successful | O160: 2019-11-22 | R160: H
A161: 19 | B161: 2019-11-19 | D161: HAVELLS OCT FUT | E161: Buy | F161: 667 | G161: 649 | H161: 649 | I161: 690 | J161: Loss of Rs.12.5/- | K161: =H161-F161 -> -18 | L161: =+-12.5*M161 -> -12500 | M161: 1000 | N161: Unsuccessful | O161: 2019-11-22 | R161: H
D162: HAVELLS 680 CE OCT | E162: Sell | F162: 9 | H162: 3.5 | K162: =F162-H162 -> 5.5 | R162: H
A163: 20 | B163: 2019-11-20 | D163: ASIANPAINT NOV FUT | E163: Buy | F163: 1741 | G163: 1708 | H163: 1708 | I163: 1780 | J163: Loss of Rs.21/- | K163: =H163-F163 -> -33 | L163: =+-21*M163 -> -12600 | M163: 600 | N163: Unsuccessful | O163: 2019-11-22 | R163: H
D164: ASIANPAINT 1760 CE NOV | E164: Sell | F164: 16.50 | H164: 4.5 | K164: =F164-H164 -> 12 | R164: H
A172: Master Trade Medium Risk
A173: Sr.no | B173: Date | D173: Company | E173: Rec | F173: Rec Price | G173: Stop Loss | H173: Call Closed At | I173: Target | J173: Remark | K173: Profit/ Loss per lot | L173: Gain / Loss per Lot | M173: Lot | N173: Status | O173: Closed Date
A174: 1 | B174: 2019-11-01 | D174: INFRATEL NOV 200 CE | E174: Buy | F174: 16.50 | H174: 21.5 | J174: Profit of Rs.2/- | K174: =H174-F174 -> 5 | L174: =2000*2 -> 4000 | M174: 2000 | N174: Successful | O174: 2019-11-04 | R174: H
D175: INFRATEL NOV 210 CE | E175: Sell | F175: 12.50 | H175: 15.5 | K175: =F175-H175 -> -3 | R175: H
A176: 2 | B176: 2019-11-01 | D176: MARUTI NOV 7500 PE | E176: Buy | F176: 200 | H176: 270 | J176: Profit of Rs.30/- | K176: =H176-F176 -> 70 | L176: =30*M176 -> 2250 | M176: 75 | N176: Successful | O176: 2019-11-05 | R176: N
D177: MARUTI NOV 7300 PE | E177: Sell | F177: 132.50 | H177: 172.5 | K177: =F177-H177 -> -40 | R177: N
A178: 3 | B178: 2019-11-01 | D178: BANKNIFTY 30000 PE 7-NOV | E178: Buy | F178: 250 | G178: 130 | H178: 130 | I178: 450-500 | J178: Loss of Rs.120/- | K178: =H178-F178 -> -120 | L178: =M178*K178 -> -2400 | M178: 20 | N178: Unsuccessful | O178: 2019-11-04 | R178: H
A179: 4 | B179: 2019-11-04 | D179: BANKNIFTY 14 NOV 30400 PE | E179: Buy | F179: 410 | H179: 0 | J179: Loss of Rs.110/- | K179: =H179-F179 -> -410 | L179: =M179*-110 -> -2200 | M179: 20 | N179: Unsuccessful | O179: 2019-11-15 | R179: H
D180: BANKNIFTY 14 NOV 30100 PE | E180: Sell | F180: 300 | H180: 0 | K180: =F180-H180 -> 300 | R180: H
A181: 5 | B181: 2019-11-04 | D181: MOTHERSUMI NOV 120 PE | E181: Buy | F181: 5.50-6.00 | J181: Open | R181: H
D182: MOTHERSUMI 115 PE | E182: Sell | F182: 4.00-4.20 | R182: H
A183: 6 | B183: 2019-11-13 | D183: ICICIBANK NOV 490 PE | E183: Buy | F183: 11.50 | H183: 14.5 | J183: Profit of Rs.2.10/- | K183: =H183-F183 -> 3 | L183: =2.1*M183 -> 2887.5 | M183: 1375 | N183: Successful | O183: 2019-11-14 | R183: H
D184: ICICIBANK NOV 475 PE | E184: Sell | F184: 6.50 | H184: 7.4 | K184: =F184-H184 -> -0.9 | R184: H
A185: 7 | B185: 2019-11-14 | D185: BANKBARODA NOV 95 CE | E185: Buy | F185: 1.9 | H185: 3 | J185: Profit of Rs.0.60/- | K185: =H185-F185 -> 1.1 | L185: =0.6*M185 -> 2700 | M185: 4500 | N185: Successful | O185: 2019-11-15 | R185: H
D186: BANKBARODA NOV 100 CE | E186: Sell | F186: 1 | H186: 1.5 | K186: =F186-H186 -> -0.5 | R186: H
A187: 8 | B187: 2019-11-14 | D187: HINDUNILVR NOV 2100 CE | E187: Buy | F187: 25-27 | J187: Open | R187: N
D188: HINDUNILVR NOV 2140 CE | E188: Sell | F188: 13-15 | R188: N
A189: 9 | B189: 2019-11-18 | D189: LT NOV 1380 PE | E189: Buy | F189: 18 | G189: 5 | H189: 24 | I189: 40 | J189: Profit of Rs.6/- | K189: =H189-F189 -> 6 | L189: =M189*K189 -> 2250 | M189: 375 | N189: Successful | O189: 2019-11-18 | R189: H
A190: 10 | B190: 2019-11-18 | D190: UPL NOV 530 PE | E190: Buy | F190: 11-13 | J190: Open | R190: N
D191: UPL 510 PE | E191: Sell | F191: 5.50-6.50 | R191: N
A192: 11 | B192: 2019-11-18 | D192: LT NOV 1380 PE | E192: Buy | F192: 25 | H192: 31.5 | J192: Profit of Rs.4/- | K192: =H192-F192 -> 6.5 | L192: =4*M192 -> 1500 | M192: 375 | N192: Successful | O192: 2019-11-18 | R192: H
D193: LT NOV 1340 PE | E193: Sell | F193: 11 | H193: 13.5 | K193: =F193-H193 -> -2.5 | R193: H
A194: 12 | B194: 2019-11-18 | D194: BHARTIARTL NOV 410 PE | E194: Buy | F194: 12-13 | J194: Open | R194: H
D195: BHARTIARTL NOV 395 PE | E195: Sell | F195: 7.50-8.50 | R195: H
A196: 13 | B196: 2019-11-18 | D196: AXISBANK NOV 730 CE | E196: Buy | F196: 11.25 | G196: 6 | H196: 13 | I196: 16-18 | J196: Profit of Rs.1.75/- | K196: =H196-F196 -> 1.75 | L196: =M196*K196 -> 2100 | M196: 1200 | N196: Successful | O196: 2019-11-18 | R196: N
A197: 14 | B197: 2019-11-19 | D197: KOTAKBANK NOV 1620 CE | E197: Buy | F197: 25 | G197: 14 | H197: 29.5 | I197: 35-40 | J197: Profit of Rs.4.50/- | K197: =H197-F197 -> 4.5 | L197: =M197*K197 -> 1800 | M197: 400 | N197: Successful | O197: 2019-11-19 | R197: N
A198: 15 | B198: 2019-11-19 | D198: LT NOV 1380 PE | E198: Buy | F198: 24 | H198: 26 | J198: Profit of Rs.3/- | K198: =H198-F198 -> 2 | L198: =3*M198 -> 1125 | M198: 375 | N198: Successful | O198: 2019-11-22 | R198: H
D199: LT NOV 1340 PE | E199: Sell | F199: 10 | H199: 9 | K199: =F199-H199 -> 1 | R199: H
A200: 16 | B200: 2019-11-19 | D200: BHARATFORG NOV 440 PE | E200: Buy | F200: 8-8.50 | J200: Open | R200: N
D201: BHARATFORG NOV 430 PE | E201: Sell | F201: 5-5.50 | R201: N
A202: 17 | B202: 2019-11-19 | D202: M&M NOV 570 CE | E202: Buy | F202: 9.50-10.50 | J202: Open | R202: H
D203: M&M NOV 580 C | E203: Sell | F203: 6.50-7.50 | R203: H
A204: 18 | B204: 2019-11-20 | D204: KOTAKBANK NOV 1620 CE | E204: Buy | F204: 22 | G204: 13 | H204: 13 | I204: 35-40 | J204: Loss of Rs.9/- | K204: =H204-F204 -> -9 | L204: =M204*K204 -> -3600 | M204: 400 | N204: Unsuccessful | O204: 2019-11-21 | R204: N
A205: 19 | B205: 2019-11-20 | D205: NIFTY 21-NOV 12000 PE | E205: Buy | F205: 36 | H205: 48 | I205: 80 | J205: Profit of Rs.12/- | K205: =H205-F205 -> 12 | L205: =M205*K205 -> 900 | M205: 75 | N205: Successful | O205: 2019-11-20 | R205: R
A206: 20 | B206: 2019-11-20 | D206: ITC NOV 255 CE | E206: Buy | F206: 2-2.5 | I206: 5.00-6.00 | R206: H
A207: 21 | B207: 2019-11-21 | D207: NIFTY 21-NOV 12000 PE | E207: Buy | F207: 34 | H207: 31 | I207: 80 | J207: Loss of Rs.120/- | K207: =H207-F207 -> -3 | L207: =M207*K207 -> -225 | M207: 75 | N207: Neutral | O207: 2019-11-21 | R207: R
A209: Techno -Funda (positional)
A210: Sr.no | B210: Date | D210: Company | E210: Rec | F210: Rec Price | G210: Stop Loss*** | H210: Call Closed At | I210: Target | J210: Remark | K210: Profit / Loss per Share | L210: Gain / Loss % | M210: Status | N210: Closed Date | O210: NSE Closed Price
A211: 1 | B211: 2019-08-13 | D211: ITC | E211: Buy | F211: 247 | G211: 228 | H211: 262.5 | I211: 290-300 | J211: Part Profit of Rs.15.5/- | K211: =H211-F211 -> 15.5 | L211: =K211/F211 -> 6.28% | M211: Successful | N211: 2019-10-01 | O211: =VLOOKUP(D211,Sheet2!A131:M1770,6,0) -> 247.65 | R211: H
A215: CLBS = Closing Basis *** | F215: Reinitiated $
A216: Dividend adjusted <> | F216: Revised stoploss #
B221: Investment Idea
A222: Sr.no | B222: Date | D222: Company | E222: Rec | F222: Rec Price | G222: Point of Review | H222: Close Rate | I222: Target | J222: Remark | K222: Profit / Loss per Share | L222: Gain / Loss % | M222: Status | N222: Closed Date
A223: 1 | B223: 2013-11-01 | D223: L&T Finance Holding | E223: Accu | F223: 82.00 | G223: - | H223: 100 | I223: 100.00 | J223: Target Achieved | K223: =H223-F223 -> 18.00 | L223: =K223/F223 -> 21.95% | M223: Successful | N223: 2016-10-14
A224: 2 | B224: 2014-06-04 | D224: Finolex Inds | E224: Buy | F224: 257.00 | G224: - | H224: 300 | I224: 300.00 | J224: Target Achieved | K224: 43.00 | L224: 16.73% | M224: Successful | N224: 2014-07-02
A225: 3 | B225: 2014-07-08 | D225: JK Cement | E225: Buy | F225: 393.00 | G225: - | H225: 468 | I225: 468.00 | J225: Target Achieved | K225: 75.00 | L225: 19.08% | M225: Successful | N225: 2014-08-12
A226: 4 | B226: 2014-08-06 | D226: Finolex Cables | E226: Buy | F226: 205.00 | G226: - | H226: 275 | I226: 250.00 | J226: Target Achieved | K226: 70.00 | L226: 34.15% | M226: Successful | N226: 2014-11-19
A227: 5 | B227: 2014-09-04 | D227: Exide Inds | E227: Buy | F227: 162.00 | G227: - | H227: 190 | I227: 190.00 | J227: Target Achieved | K227: 28.00 | L227: 17.28% | M227: Successful | N227: 2015-01-02
A228: 6 | B228: 2014-09-04 | D228: Deepak Nitrite | E228: Buy | F228: 75.00 | G228: - | H228: 91.5 | I228: 95-100 | J228: Profit of Rs.16.50/- | K228: 16.50 | L228: 22.00% | M228: Successful | N228: 2014-11-11
A229: 7 | B229: 2014-10-01 | D229: Mercks | E229: Buy | F229: 850.00 | G229: - | H229: 982.5 | I229: 1050.00 | J229: Profit of Rs.132.50/- | K229: 132.50 | L229: 15.59% | M229: Successful | N229: 2015-02-04
A230: 8 | B230: 2014-10-01 | D230: Grindwell Norton | E230: Buy | F230: 475.00 | G230: - | H230: 515 | I230: 600.00 | J230: Profit of Rs.40/- | K230: 40.00 | L230: 8.42% | M230: Successful | N230: 2014-10-27
A231: 9 | B231: 2014-10-01 | D231: Snowman Logistics | E231: Buy | F231: 86.00 | G231: - | H231: 99 | I231: 140.00 | J231: Profit of Rs.13.00/- | K231: 13.00 | L231: 15.12% | M231: Successful | N231: 2014-10-27
A232: 10 | B232: 2014-10-14 | D232: Birla Corp | E232: Buy | F232: 496.60 | G232: - | H232: 621 | I232: 580.00 | J232: Target Achieved | K232: 124.40 | L232: 25.05% | M232: Successful | N232: 2016-08-23
A233: 11 | B233: 2014-10-14 | D233: Ultratech Cem | E233: Buy | F233: 2481.90 | G233: - | H233: 2840 | I233: 2870.00 | J233: Profit of Rs.358.10/- | K233: 358.10 | L233: 14.43% | M233: Successful | N233: 2015-01-13
A234: 12 | B234: 2014-10-16 | D234: Sintex Inds | E234: Buy | F234: 84.50 | G234: - | H234: 93 | I234: 110.00 | J234: Profit of Rs.8.50/- | K234: 8.50 | L234: 10.06% | M234: Successful | N234: 2014-10-27
... 141 more rows

Sheet Sheet2 (hidden)
A1: SYMBOL | B1: SERIES | C1: OPEN | D1: HIGH | E1: LOW | F1: CLOSE | G1: LAST | H1: PREVCLOSE | I1: TOTTRDQTY | J1: TOTTRDVAL | K1: TIMESTAMP | L1: TOTALTRADES | M1: ISIN | N1: ISIN
A2: 20MICRONS | B2: EQ | C2: 34.75 | D2: 34.75 | E2: 32.85 | F2: 33.1 | G2: 33 | H2: 34 | I2: 48791 | J2: 1628632.75 | K2: 2019-11-22 | L2: 535 | M2: INE144J01027
A3: 21STCENMGM | B3: EQ | C3: 13.85 | D3: 13.85 | E3: 13.6 | F3: 13.6 | G3: 13.6 | H3: 13.85 | I3: 502 | J3: 6827.7 | K3: 2019-11-22 | L3: 3 | M3: INE253B01015
A4: 3IINFOTECH | B4: EQ | C4: 1.95 | D4: 2 | E4: 1.9 | F4: 1.95 | G4: 2 | H4: 1.95 | I4: 495766 | J4: 973299.45 | K4: 2019-11-22 | L4: 521 | M4: INE748C01020
A5: 3MINDIA | B5: EQ | C5: 22645 | D5: 22800 | E5: 22359.75 | F5: 22415.3 | G5: 22401 | H5: 22598.55 | I5: 1335 | J5: 30126468.25 | K5: 2019-11-22 | L5: 668 | M5: INE470A01017
A6: 3PLAND | B6: EQ | C6: 6.2 | D6: 6.5 | E6: 6.2 | F6: 6.5 | G6: 6.5 | H6: 6.2 | I6: 1854 | J6: 11750.4 | K6: 2019-11-22 | L6: 10 | M6: INE105C01023
A7: 5PAISA | B7: EQ | C7: 152.7 | D7: 156 | E7: 151.95 | F7: 153.45 | G7: 153.5 | H7: 151.85 | I7: 5672 | J7: 870763.3 | K7: 2019-11-22 | L7: 247 | M7: INE618L01018
A8: 63MOONS | B8: EQ | C8: 115 | D8: 120.4 | E8: 113.05 | F8: 115.5 | G8: 113.65 | H8: 109.5 | I8: 532261 | J8: 62469280.3 | K8: 2019-11-22 | L8: 8349 | M8: INE111B01023
A9: A2ZINFRA | B9: EQ | C9: 8.85 | D9: 9.55 | E9: 8.75 | F9: 9.15 | G9: 9.2 | H9: 8.9 | I9: 185823 | J9: 1675218.4 | K9: 2019-11-22 | L9: 319 | M9: INE619I01012
A10: AARTIDRUGS | B10: EQ | C10: 527 | D10: 527 | E10: 518.15 | F10: 520.1 | G10: 520.55 | H10: 524.45 | I10: 12212 | J10: 6367079.25 | K10: 2019-11-22 | L10: 1710 | M10: INE767A01016
A11: AARTIIND | B11: EQ | C11: 848.9 | D11: 851 | E11: 823 | F11: 825.55 | G11: 824 | H11: 843.5 | I11: 46056 | J11: 38322140.8 | K11: 2019-11-22 | L11: 3229 | M11: INE769A01020
A12: AARVEEDEN | B12: EQ | C12: 13.25 | D12: 13.25 | E12: 12.5 | F12: 12.85 | G12: 13 | H12: 12.7 | I12: 4484 | J12: 56882.95 | K12: 2019-11-22 | L12: 67 | M12: INE273D01019
A13: AAVAS | B13: EQ | C13: 1601 | D13: 1729.8 | E13: 1601 | F13: 1723.25 | G13: 1725 | H13: 1696.65 | I13: 175115 | J13: 297202295.6 | K13: 2019-11-22 | L13: 16317 | M13: INE216P01012
A14: ABAN | B14: BE | C14: 28.6 | D14: 28.65 | E14: 26.7 | F14: 27.5 | G14: 27.7 | H14: 27.6 | I14: 18601 | J14: 512284.2 | K14: 2019-11-22 | L14: 235 | M14: INE421A01028
A15: ABB | B15: EQ | C15: 1439.95 | D15: 1439.95 | E15: 1404 | F15: 1410.05 | G15: 1408.5 | H15: 1439.2 | I15: 38441 | J15: 54453843 | K15: 2019-11-22 | L15: 4469 | M15: INE117A01022
A16: ABBOTINDIA | B16: EQ | C16: 12460 | D16: 12619 | E16: 12270.05 | F16: 12573.4 | G16: 12600 | H16: 12392.3 | I16: 7693 | J16: 95707436.25 | K16: 2019-11-22 | L16: 2705 | M16: INE358A01014
A17: ABCAPITAL | B17: EQ | C17: 95.1 | D17: 101.3 | E17: 92.5 | F17: 100.15 | G17: 100.7 | H17: 95.75 | I17: 14051512 | J17: 1369230078 | K17: 2019-11-22 | L17: 81598 | M17: INE674K01013
A18: ABFRL | B18: EQ | C18: 210 | D18: 224.9 | E18: 207 | F18: 219.45 | G18: 217.55 | H18: 210.05 | I18: 769914 | J18: 166833081.8 | K18: 2019-11-22 | L18: 19784 | M18: INE647O01011
A19: ABSLBANETF | B19: EQ | C19: 310.66 | D19: 314.14 | E19: 310.66 | F19: 314.06 | G19: 314.14 | H19: 315.75 | I19: 116 | J19: 36377.36 | K19: 2019-11-22 | L19: 3 | M19: INF209KB1O58
A20: ABSLNN50ET | B20: EQ | C20: 284.38 | D20: 284.38 | E20: 284.38 | F20: 284.38 | G20: 284.38 | H20: 284.01 | I20: 1 | J20: 284.38 | K20: 2019-11-22 | L20: 1 | M20: INF209KB1B87
A21: ACC | B21: EQ | C21: 1473 | D21: 1482.65 | E21: 1462.2 | F21: 1469.9 | G21: 1470 | H21: 1473.35 | I21: 501614 | J21: 738687585.4 | K21: 2019-11-22 | L21: 16060 | M21: INE012A01025
A22: ACCELYA | B22: EQ | C22: 964.7 | D22: 979.2 | E22: 941.05 | F22: 946.65 | G22: 949.9 | H22: 964.7 | I22: 15641 | J22: 14971534.35 | K22: 2019-11-22 | L22: 1808 | M22: INE793A01012
A23: ACE | B23: EQ | C23: 79 | D23: 80.2 | E23: 75.1 | F23: 75.85 | G23: 75.5 | H23: 79.7 | I23: 78823 | J23: 6076080.7 | K23: 2019-11-22 | L23: 1152 | M23: INE731H01025
A24: ADANIENT | B24: EQ | C24: 204.75 | D24: 206.3 | E24: 200.1 | F24: 203.45 | G24: 202 | H24: 205.5 | I24: 2545651 | J24: 517367034.1 | K24: 2019-11-22 | L24: 16109 | M24: INE423A01024
A25: ADANIGAS | B25: EQ | C25: 146.9 | D25: 147.4 | E25: 145.95 | F25: 146.25 | G25: 146.15 | H25: 146.3 | I25: 709471 | J25: 103876180 | K25: 2019-11-22 | L25: 2959 | M25: INE399L01023
A26: ADANIGREEN | B26: EQ | C26: 97.45 | D26: 106.7 | E26: 95.3 | F26: 106.7 | G26: 106.7 | H26: 97 | I26: 4228833 | J26: 435549102.1 | K26: 2019-11-22 | L26: 24214 | M26: INE364U01010
A27: ADANIPORTS | B27: EQ | C27: 372.25 | D27: 375.55 | E27: 370.45 | F27: 371.45 | G27: 371 | H27: 372.1 | I27: 3679373 | J27: 1371995974 | K27: 2019-11-22 | L27: 40277 | M27: INE742F01042
A28: ADANIPOWER | B28: EQ | C28: 61.7 | D28: 62.3 | E28: 59.7 | F28: 60.5 | G28: 60.25 | H28: 61.5 | I28: 8690224 | J28: 528524627.2 | K28: 2019-11-22 | L28: 27178 | M28: INE814H01011
A29: ADANITRANS | B29: EQ | C29: 266.2 | D29: 269.7 | E29: 261 | F29: 263.35 | G29: 264 | H29: 263.45 | I29: 166449 | J29: 44049610.45 | K29: 2019-11-22 | L29: 5108 | M29: INE931S01010
A30: ADFFOODS | B30: EQ | C30: 292.55 | D30: 294.45 | E30: 291.25 | F30: 292.75 | G30: 292.5 | H30: 292.55 | I30: 10044 | J30: 2938952.6 | K30: 2019-11-22 | L30: 264 | M30: INE982B01019
A31: ADHUNIKIND | B31: EQ | C31: 112 | D31: 115 | E31: 111.25 | F31: 113.15 | G31: 113.45 | H31: 112.8 | I31: 112200 | J31: 12652278.4 | K31: 2019-11-22 | L31: 790 | M31: INE452L01012
A32: ADLABS | B32: BE | C32: 3.35 | D32: 3.45 | E32: 3.15 | F32: 3.4 | G32: 3.4 | H32: 3.3 | I32: 22053 | J32: 74781 | K32: 2019-11-22 | L32: 87 | M32: INE172N01012
A33: ADORWELD | B33: EQ | C33: 306.5 | D33: 323.4 | E33: 306.5 | F33: 310.55 | G33: 312 | H33: 306.1 | I33: 17488 | J33: 5501366.9 | K33: 2019-11-22 | L33: 1157 | M33: INE045A01017
A34: ADROITINFO | B34: BE | C34: 9.5 | D34: 9.5 | E34: 9.5 | F34: 9.5 | G34: 9.5 | H34: 9.5 | I34: 102 | J34: 969 | K34: 2019-11-22 | L34: 3 | M34: INE737B01033
A35: ADSL | B35: EQ | C35: 16.55 | D35: 16.9 | E35: 16.2 | F35: 16.8 | G35: 16.85 | H35: 16.5 | I35: 63789 | J35: 1053236.35 | K35: 2019-11-22 | L35: 172 | M35: INE102I01027
A36: ADVANIHOTR | B36: EQ | C36: 55.2 | D36: 59.9 | E36: 54.5 | F36: 55.1 | G36: 54.5 | H36: 55.4 | I36: 7753 | J36: 432414.8 | K36: 2019-11-22 | L36: 186 | M36: INE199C01026
A37: ADVENZYMES | B37: EQ | C37: 175.9 | D37: 175.9 | E37: 164.05 | F37: 167.95 | G37: 167.65 | H37: 175.05 | I37: 86392 | J37: 14582912.05 | K37: 2019-11-22 | L37: 2321 | M37: INE837H01020
A38: AEGISCHEM | B38: EQ | C38: 189.9 | D38: 193.9 | E38: 181.15 | F38: 184.8 | G38: 184.1 | H38: 184.7 | I38: 350811 | J38: 66222457.8 | K38: 2019-11-22 | L38: 6554 | M38: INE208C01025
A39: AFFLE | B39: EQ | C39: 1702.9 | D39: 1739 | E39: 1674 | F39: 1689.15 | G39: 1678.8 | H39: 1689.55 | I39: 286764 | J39: 488707717.4 | K39: 2019-11-22 | L39: 16913 | M39: INE00WC01019
A40: AGARIND | B40: EQ | C40: 107 | D40: 111.95 | E40: 105.9 | F40: 108.45 | G40: 108.05 | H40: 105.2 | I40: 6358 | J40: 685264.15 | K40: 2019-11-22 | L40: 101 | M40: INE204E01012
A41: AGCNET | B41: BE | C41: 120.5 | D41: 128.6 | E41: 117.5 | F41: 118.7 | G41: 124.9 | H41: 123.05 | I41: 2859 | J41: 341210.8 | K41: 2019-11-22 | L41: 23 | M41: INE676A01019
A42: AGRITECH | B42: EQ | C42: 42.05 | D42: 47.95 | E42: 42 | F42: 45 | G42: 45.1 | H42: 42 | I42: 18309 | J42: 814013.7 | K42: 2019-11-22 | L42: 514 | M42: INE449G01018
A43: AGROPHOS | B43: EQ | C43: 127.2 | D43: 127.95 | E43: 127.2 | F43: 127.8 | G43: 127.9 | H43: 127.15 | I43: 752376 | J43: 95970189.05 | K43: 2019-11-22 | L43: 8240 | M43: INE740V01019
A44: AHLEAST | B44: EQ | C44: 174 | D44: 178.8 | E44: 172.05 | F44: 174.75 | G44: 177.95 | H44: 173.8 | I44: 1979 | J44: 342670.1 | K44: 2019-11-22 | L44: 96 | M44: INE926K01017
A45: AHLUCONT | B45: EQ | C45: 273.35 | D45: 273.4 | E45: 270 | F45: 270.65 | G45: 270 | H45: 273.1 | I45: 1506 | J45: 408890.7 | K45: 2019-11-22 | L45: 113 | M45: INE758C01029
A46: AHLWEST | B46: EQ | C46: 326.75 | D46: 349 | E46: 301.3 | F46: 338.15 | G46: 332 | H46: 319.65 | I46: 12138 | J46: 3932153.2 | K46: 2019-11-22 | L46: 547 | M46: INE915K01010
A47: AIAENG | B47: EQ | C47: 1630 | D47: 1644 | E47: 1616 | F47: 1635.6 | G47: 1644 | H47: 1632.3 | I47: 10024 | J47: 16266713.5 | K47: 2019-11-22 | L47: 1814 | M47: INE212H01026
A48: AIONJSW | B48: EQ | C48: 10.25 | D48: 10.25 | E48: 9.9 | F48: 10 | G48: 9.95 | H48: 10 | I48: 121539 | J48: 1215677.2 | K48: 2019-11-22 | L48: 389 | M48: INE743C01021
A49: AIRAN | B49: EQ | C49: 11.3 | D49: 11.45 | E49: 10.75 | F49: 11.05 | G49: 11.05 | H49: 10.95 | I49: 62721 | J49: 701361.45 | K49: 2019-11-22 | L49: 122 | M49: INE645W01026
A50: AJANTPHARM | B50: EQ | C50: 1010.6 | D50: 1021 | E50: 992.05 | F50: 1000.5 | G50: 1000 | H50: 1007.7 | I50: 42276 | J50: 42447858.95 | K50: 2019-11-22 | L50: 3551 | M50: INE031B01049
A51: AJMERA | B51: EQ | C51: 121.15 | D51: 121.3 | E51: 117.45 | F51: 118 | G51: 118.25 | H51: 120.55 | I51: 16906 | J51: 2016306.45 | K51: 2019-11-22 | L51: 662 | M51: INE298G01027
A52: AKASH | B52: EQ | C52: 61.55 | D52: 61.75 | E52: 61.55 | F52: 61.7 | G52: 61.7 | H52: 61.5 | I52: 2011 | J52: 124011.2 | K52: 2019-11-22 | L52: 11 | M52: INE737W01013
A53: AKSHARCHEM | B53: EQ | C53: 198 | D53: 203 | E53: 192.35 | F53: 202.25 | G53: 202.9 | H53: 199.6 | I53: 2494 | J53: 490771.9 | K53: 2019-11-22 | L53: 174 | M53: INE542B01011
A54: AKSHOPTFBR | B54: EQ | C54: 6.8 | D54: 6.8 | E54: 6.6 | F54: 6.8 | G54: 6.8 | H54: 6.5 | I54: 320610 | J54: 2174336.55 | K54: 2019-11-22 | L54: 359 | M54: INE523B01011
A55: AKZOINDIA | B55: EQ | C55: 1949.95 | D55: 1965 | E55: 1920 | F55: 1929.95 | G55: 1920.05 | H55: 1951.35 | I55: 10049 | J55: 19392040 | K55: 2019-11-22 | L55: 817 | M55: INE133A01011
A56: ALANKIT | B56: EQ | C56: 14.5 | D56: 15.45 | E56: 14.3 | F56: 14.6 | G56: 14.65 | H56: 14.8 | I56: 32446 | J56: 475803.5 | K56: 2019-11-22 | L56: 175 | M56: INE914E01040
A57: ALBERTDAVD | B57: EQ | C57: 402.25 | D57: 410 | E57: 401 | F57: 403.25 | G57: 405.05 | H57: 402.1 | I57: 3274 | J57: 1329016.75 | K57: 2019-11-22 | L57: 274 | M57: INE155C01010
A58: ALBK | B58: EQ | C58: 24.25 | D58: 24.45 | E58: 23.8 | F58: 24.05 | G58: 24.2 | H58: 24.25 | I58: 2039847 | J58: 49026098.75 | K58: 2019-11-22 | L58: 7398 | M58: INE428A01015
A59: ALCHEM | B59: BE | C59: 0.95 | D59: 0.95 | E59: 0.85 | F59: 0.9 | G59: 0.9 | H59: 0.9 | I59: 17485 | J59: 16319.7 | K59: 2019-11-22 | L59: 16 | M59: INE964B01033
A60: ALEMBICLTD | B60: EQ | C60: 52 | D60: 53.1 | E60: 51.6 | F60: 51.75 | G60: 51.65 | H60: 51.55 | I60: 101824 | J60: 5321332.05 | K60: 2019-11-22 | L60: 2601 | M60: INE426A01027
A61: ALICON | B61: EQ | C61: 374.1 | D61: 378.95 | E61: 366.4 | F61: 377.6 | G61: 378.7 | H61: 370.1 | I61: 972 | J61: 361674.2 | K61: 2019-11-22 | L61: 305 | M61: INE062D01024
A62: ALKALI | B62: EQ | C62: 41 | D62: 41 | E62: 40 | F62: 40.1 | G62: 40.45 | H62: 41.25 | I62: 2405 | J62: 96765.65 | K62: 2019-11-22 | L62: 50 | M62: INE773I01017
A63: ALKEM | B63: EQ | C63: 2100 | D63: 2117.8 | E63: 2056 | F63: 2078.8 | G63: 2070 | H63: 2091 | I63: 20939 | J63: 43468128 | K63: 2019-11-22 | L63: 3075 | M63: INE540L01014
A64: ALKYLAMINE | B64: EQ | C64: 1017 | D64: 1024.8 | E64: 1011.1 | F64: 1017.4 | G64: 1011.1 | H64: 1016.45 | I64: 15369 | J64: 15673734.95 | K64: 2019-11-22 | L64: 515 | M64: INE150B01021
A65: ALLCARGO | B65: EQ | C65: 96.65 | D65: 98.4 | E65: 94.1 | F65: 94.6 | G65: 94.35 | H65: 95.45 | I65: 96250 | J65: 9218756.7 | K65: 2019-11-22 | L65: 1636 | M65: INE418H01029
A66: ALLSEC | B66: EQ | C66: 276.35 | D66: 283.9 | E66: 276.2 | F66: 277 | G66: 277 | H66: 279.25 | I66: 997 | J66: 276959.35 | K66: 2019-11-22 | L66: 107 | M66: INE835G01018
A67: ALMONDZ | B67: EQ | C67: 9.45 | D67: 9.65 | E67: 8.75 | F67: 9.5 | G67: 9.65 | H67: 9.2 | I67: 1438 | J67: 13627.6 | K67: 2019-11-22 | L67: 10 | M67: INE326B01027
A68: ALOKTEXT | B68: EQ | C68: 2.5 | D68: 2.5 | E68: 2.5 | F68: 2.5 | G68: 2.5 | H68: 2.4 | I68: 804449 | J68: 2011122.5 | K68: 2019-11-22 | L68: 265 | M68: INE270A01011
A69: ALPA | B69: EQ | C69: 15.8 | D69: 15.95 | E69: 15.6 | F69: 15.6 | G69: 15.6 | H69: 15.8 | I69: 2377 | J69: 37309.2 | K69: 2019-11-22 | L69: 52 | M69: INE385I01010
A70: ALPHAGEO | B70: EQ | C70: 164 | D70: 164.85 | E70: 157.05 | F70: 161.25 | G70: 163.85 | H70: 157 | I70: 17621 | J70: 2842506.25 | K70: 2019-11-22 | L70: 651 | M70: INE137C01018
A71: ALPSINDUS | B71: BE | C71: 0.95 | D71: 0.95 | E71: 0.95 | F71: 0.95 | G71: 0.95 | H71: 0.9 | I71: 12096 | J71: 11491.2 | K71: 2019-11-22 | L71: 27 | M71: INE093B01015
A72: AMARAJABAT | B72: EQ | C72: 745.4 | D72: 757.2 | E72: 735.4 | F72: 741.7 | G72: 739 | H72: 745.7 | I72: 831747 | J72: 620505356.2 | K72: 2019-11-22 | L72: 24626 | M72: INE885A01032
A73: AMBER | B73: EQ | C73: 997 | D73: 999.85 | E73: 980.15 | F73: 984.95 | G73: 985 | H73: 988.75 | I73: 20945 | J73: 20750192.4 | K73: 2019-11-22 | L73: 1164 | M73: INE371P01015
A74: AMBIKCO | B74: EQ | C74: 876.95 | D74: 876.95 | E74: 860 | F74: 867.5 | G74: 867.75 | H74: 865.45 | I74: 2172 | J74: 1879098.95 | K74: 2019-11-22 | L74: 234 | M74: INE540G01014
A75: AMBUJACEM | B75: EQ | C75: 200.7 | D75: 202.2 | E75: 198.1 | F75: 200.8 | G75: 199.7 | H75: 201.05 | I75: 4861070 | J75: 970881669.3 | K75: 2019-11-22 | L75: 17581 | M75: INE079A01024
A76: AMDIND | B76: EQ | C76: 15.6 | D76: 16.5 | E76: 15.4 | F76: 15.7 | G76: 15.7 | H76: 15.6 | I76: 4125 | J76: 65898.1 | K76: 2019-11-22 | L76: 49 | M76: INE005I01014
A77: AMJLAND | B77: EQ | C77: 18.7 | D77: 19.3 | E77: 18.65 | F77: 18.95 | G77: 19.1 | H77: 18.9 | I77: 8915 | J77: 169572.65 | K77: 2019-11-22 | L77: 33 | M77: INE606A01024
A78: AMRUTANJAN | B78: EQ | C78: 451 | D78: 464.7 | E78: 445.55 | F78: 455.4 | G78: 453.55 | H78: 447.95 | I78: 35143 | J78: 16006432.45 | K78: 2019-11-22 | L78: 3220 | M78: INE098F01031
A79: ANANTRAJ | B79: EQ | C79: 34.5 | D79: 34.6 | E79: 33.3 | F79: 34.05 | G79: 34.3 | H79: 34.35 | I79: 174659 | J79: 5899957 | K79: 2019-11-22 | L79: 841 | M79: INE242C01024
A80: ANDHRABANK | B80: EQ | C80: 19.05 | D80: 19.2 | E80: 18.55 | F80: 18.8 | G80: 18.8 | H80: 19 | I80: 834513 | J80: 15674681.9 | K80: 2019-11-22 | L80: 2437 | M80: INE434A01013
A81: ANDHRACEMT | B81: BE | C81: 2.5 | D81: 2.6 | E81: 2.4 | F81: 2.5 | G81: 2.5 | H81: 2.5 | I81: 50344 | J81: 126625.2 | K81: 2019-11-22 | L81: 84 | M81: INE666E01012
A82: ANDHRSUGAR | B82: EQ | C82: 289.25 | D82: 292 | E82: 289 | F82: 289.8 | G82: 289.1 | H82: 289.15 | I82: 8096 | J82: 2343158.3 | K82: 2019-11-22 | L82: 356 | M82: INE715B01013
A83: ANIKINDS | B83: BE | C83: 8.6 | D83: 9 | E83: 8.25 | F83: 8.8 | G83: 8.8 | H83: 8.6 | I83: 532 | J83: 4622.1 | K83: 2019-11-22 | L83: 17 | M83: INE087B01017
A84: ANKITMETAL | B84: BE | C84: 0.85 | D84: 0.85 | E84: 0.8 | F84: 0.85 | G84: 0.85 | H84: 0.8 | I84: 136726 | J84: 115867.1 | K84: 2019-11-22 | L84: 145 | M84: INE106I01010
A85: ANSALAPI | B85: EQ | C85: 4.8 | D85: 5 | E85: 4.75 | F85: 4.8 | G85: 4.9 | H85: 4.95 | I85: 35964 | J85: 174708.95 | K85: 2019-11-22 | L85: 115 | M85: INE436A01026
A86: ANSALHSG | B86: BE | C86: 6 | D86: 6 | E86: 6 | F86: 6 | G86: 6 | H86: 6.3 | I86: 44091 | J86: 264546 | K86: 2019-11-22 | L86: 99 | M86: INE880B01015
A87: ANTGRAPHIC | B87: BE | C87: 0.55 | D87: 0.65 | E87: 0.55 | F87: 0.6 | G87: 0.65 | H87: 0.6 | I87: 75150 | J87: 44139.65 | K87: 2019-11-22 | L87: 35 | M87: INE414B01021
A88: ANUP | B88: EQ | C88: 455 | D88: 455 | E88: 444 | F88: 452.1 | G88: 454 | H88: 456.65 | I88: 12338 | J88: 5538818.25 | K88: 2019-11-22 | L88: 574 | M88: INE294Z01018
A89: APARINDS | B89: EQ | C89: 466.2 | D89: 472.4 | E89: 452.15 | F89: 456.7 | G89: 459 | H89: 466.05 | I89: 6548 | J89: 3000611.3 | K89: 2019-11-22 | L89: 839 | M89: INE372A01015
A90: APCL | B90: EQ | C90: 146.15 | D90: 147.9 | E90: 143.6 | F90: 145.65 | G90: 146.05 | H90: 145.8 | I90: 3645 | J90: 529274.25 | K90: 2019-11-22 | L90: 101 | M90: INE071F01012
A91: APCOTEXIND | B91: EQ | C91: 163.1 | D91: 164 | E91: 160.3 | F91: 160.85 | G91: 160.3 | H91: 163.6 | I91: 10194 | J91: 1652366.6 | K91: 2019-11-22 | L91: 286 | M91: INE116A01032
A92: APEX | B92: EQ | C92: 291.5 | D92: 307 | E92: 291.15 | F92: 302.05 | G92: 302.3 | H92: 292.15 | I92: 321826 | J92: 96501410.75 | K92: 2019-11-22 | L92: 6940 | M92: INE346W01013
A93: APLAPOLLO | B93: EQ | C93: 1571 | D93: 1575 | E93: 1544 | F93: 1555.2 | G93: 1555 | H93: 1551.5 | I93: 14278 | J93: 22217055.25 | K93: 2019-11-22 | L93: 1311 | M93: INE702C01019
A94: APLLTD | B94: EQ | C94: 551 | D94: 560 | E94: 542.55 | F94: 545.4 | G94: 545 | H94: 547.8 | I94: 97118 | J94: 53490315.05 | K94: 2019-11-22 | L94: 6956 | M94: INE901L01018
A95: APOLLO | B95: EQ | C95: 73 | D95: 74 | E95: 71.5 | F95: 73.5 | G95: 73.2 | H95: 72.55 | I95: 35377 | J95: 2574051.7 | K95: 2019-11-22 | L95: 653 | M95: INE713T01010
A96: APOLLOHOSP | B96: EQ | C96: 1459.65 | D96: 1475.05 | E96: 1440.65 | F96: 1451.6 | G96: 1448 | H96: 1455.45 | I96: 882624 | J96: 1290121252 | K96: 2019-11-22 | L96: 33166 | M96: INE437A01024
A97: APOLLOPIPE | B97: EQ | C97: 358.6 | D97: 370 | E97: 355 | F97: 365.75 | G97: 365 | H97: 358.6 | I97: 5841 | J97: 2125498.35 | K97: 2019-11-22 | L97: 671 | M97: INE126J01016
A98: APOLLOTYRE | B98: EQ | C98: 165 | D98: 168.4 | E98: 162.5 | F98: 167.9 | G98: 167.65 | H98: 165.45 | I98: 2546788 | J98: 424713398.5 | K98: 2019-11-22 | L98: 32278 | M98: INE438A01022
A99: APOLSINHOT | B99: EQ | C99: 704 | D99: 712.95 | E99: 671 | F99: 702.85 | G99: 704 | H99: 699.55 | I99: 824 | J99: 574837.9 | K99: 2019-11-22 | L99: 87 | M99: INE451F01024
A100: APTECHT | B100: EQ | C100: 160.95 | D100: 161.9 | E100: 157.5 | F100: 158 | G100: 158 | H100: 160.05 | I100: 78559 | J100: 12491479.95 | K100: 2019-11-22 | L100: 2116 | M100: INE266F01018
A101: ARCHIDPLY | B101: EQ | C101: 25.75 | D101: 26.9 | E101: 25.4 | F101: 26.7 | G101: 26.8 | H101: 25.5 | I101: 10961 | J101: 285111.7 | K101: 2019-11-22 | L101: 127 | M101: INE877I01016
A102: ARCHIES | B102: BE | C102: 19.6 | D102: 19.6 | E102: 19.25 | F102: 19.45 | G102: 19.3 | H102: 19.2 | I102: 12469 | J102: 242576.8 | K102: 2019-11-22 | L102: 57 | M102: INE731A01020
A103: ARCOTECH | B103: BE | C103: 3 | D103: 3 | E103: 3 | F103: 3 | G103: 3 | H103: 2.9 | I103: 29810 | J103: 89430 | K103: 2019-11-22 | L103: 39 | M103: INE574I01035
A104: ARIES | B104: EQ | C104: 66.35 | D104: 67.05 | E104: 64.3 | F104: 65.25 | G104: 65 | H104: 66.75 | I104: 9269 | J104: 607753 | K104: 2019-11-22 | L104: 390 | M104: INE298I01015
A105: ARIHANT | B105: EQ | C105: 22.65 | D105: 24.8 | E105: 22.6 | F105: 24.1 | G105: 24.2 | H105: 23.75 | I105: 5754 | J105: 133714.15 | K105: 2019-11-22 | L105: 106 | M105: INE413D01011
A106: ARIHANTSUP | B106: BE | C106: 25.05 | D106: 26 | E106: 23.95 | F106: 25.55 | G106: 25.8 | H106: 25.05 | I106: 1135 | J106: 28188.55 | K106: 2019-11-22 | L106: 24 | M106: INE643K01018
A107: ARMANFIN | B107: EQ | C107: 539 | D107: 548.6 | E107: 531.8 | F107: 537.85 | G107: 535 | H107: 538.3 | I107: 2333 | J107: 1262245.85 | K107: 2019-11-22 | L107: 214 | M107: INE109C01017
A108: AROGRANITE | B108: EQ | C108: 36.6 | D108: 38 | E108: 35.8 | F108: 37.45 | G108: 37.2 | H108: 37.15 | I108: 12726 | J108: 463188.1 | K108: 2019-11-22 | L108: 221 | M108: INE210C01013
A109: ARROWGREEN | B109: EQ | C109: 53.2 | D109: 53.2 | E109: 51.15 | F109: 52.1 | G109: 52 | H109: 52 | I109: 3884 | J109: 203961.85 | K109: 2019-11-22 | L109: 127 | M109: INE570D01018
A110: ARROWTEX | B110: EQ | C110: 9.3 | D110: 9.85 | E110: 9.3 | F110: 9.5 | G110: 9.6 | H110: 9.55 | I110: 10981 | J110: 104875.2 | K110: 2019-11-22 | L110: 58 | M110: INE933J01015
A111: ARSHIYA | B111: EQ | C111: 16.4 | D111: 16.8 | E111: 15.85 | F111: 16 | G111: 15.85 | H111: 16 | I111: 60084 | J111: 978240.4 | K111: 2019-11-22 | L111: 123 | M111: INE968D01022
A112: ARSSINFRA | B112: EQ | C112: 23.5 | D112: 23.5 | E112: 22.3 | F112: 22.7 | G112: 22.85 | H112: 22.75 | I112: 13756 | J112: 312206.4 | K112: 2019-11-22 | L112: 266 | M112: INE267I01010
A113: ARVIND | B113: EQ | C113: 48.25 | D113: 48.7 | E113: 47.5 | F113: 47.85 | G113: 47.7 | H113: 48.35 | I113: 549621 | J113: 26335216.1 | K113: 2019-11-22 | L113: 3247 | M113: INE034A01011
A114: ARVINDFASN | B114: EQ | C114: 367 | D114: 367.2 | E114: 357.85 | F114: 361.9 | G114: 361.5 | H114: 365.8 | I114: 61224 | J114: 22121432.7 | K114: 2019-11-22 | L114: 7768 | M114: INE955V01021
A115: ARVSMART | B115: EQ | C115: 88.45 | D115: 89.55 | E115: 87.35 | F115: 88.45 | G115: 88.5 | H115: 88.15 | I115: 12897 | J115: 1139790.1 | K115: 2019-11-22 | L115: 274 | M115: INE034S01021
A116: ASAHIINDIA | B116: EQ | C116: 200 | D116: 203.05 | E116: 199.65 | F116: 200.1 | G116: 200 | H116: 199.95 | I116: 7957 | J116: 1597462.5 | K116: 2019-11-22 | L116: 525 | M116: INE439A01020
A117: ASAHISONG | B117: EQ | C117: 141.25 | D117: 147.95 | E117: 141.25 | F117: 143.3 | G117: 143 | H117: 142.4 | I117: 1556 | J117: 224303.05 | K117: 2019-11-22 | L117: 67 | M117: INE228I01012
A118: ASAL | B118: EQ | C118: 31.4 | D118: 31.85 | E118: 30.6 | F118: 31.55 | G118: 31.85 | H118: 31.4 | I118: 1261 | J118: 39467.4 | K118: 2019-11-22 | L118: 33 | M118: INE900C01027
A119: ASHAPURMIN | B119: BE | C119: 23.25 | D119: 25.3 | E119: 23.2 | F119: 24.55 | G119: 25.3 | H119: 24.4 | I119: 22465 | J119: 533702.05 | K119: 2019-11-22 | L119: 120 | M119: INE348A01023
A120: ASHIANA | B120: EQ | C120: 97.55 | D120: 98 | E120: 94.15 | F120: 94.6 | G120: 94.95 | H120: 95.55 | I120: 45610 | J120: 4343027.35 | K120: 2019-11-22 | L120: 673 | M120: INE365D01021
A121: ASHIMASYN | B121: EQ | C121: 6.85 | D121: 7.05 | E121: 6.55 | F121: 6.6 | G121: 6.7 | H121: 6.8 | I121: 38651 | J121: 262041 | K121: 2019-11-22 | L121: 177 | M121: INE440A01010
A122: ASHOKA | B122: EQ | C122: 94 | D122: 94.4 | E122: 92.4 | F122: 93.2 | G122: 93.9 | H122: 93.95 | I122: 607852 | J122: 56660801.8 | K122: 2019-11-22 | L122: 7314 | M122: INE442H01029
A123: ASHOKLEY | B123: EQ | C123: 82.45 | D123: 82.75 | E123: 80.7 | F123: 81.35 | G123: 81.65 | H123: 82.5 | I123: 17038464 | J123: 1389520655 | K123: 2019-11-22 | L123: 64301 | M123: INE208A01029
A124: ASIANHOTNR | B124: EQ | C124: 99 | D124: 102.9 | E124: 97.3 | F124: 100.25 | G124: 101 | H124: 98.5 | I124: 2078 | J124: 205447.65 | K124: 2019-11-22 | L124: 229 | M124: INE363A01022
A125: ASIANPAINT | B125: EQ | C125: 1710 | D125: 1713.95 | E125: 1676 | F125: 1682.75 | G125: 1682.8 | H125: 1720.35 | I125: 1275334 | J125: 2158137178 | K125: 2019-11-22 | L125: 72412 | M125: INE021A01026
A126: ASIANTILES | B126: EQ | C126: 238.2 | D126: 243 | E126: 234.2 | F126: 239.9 | G126: 238 | H126: 235.7 | I126: 126425 | J126: 30367757.3 | K126: 2019-11-22 | L126: 4049 | M126: INE022I01019
A127: ASPINWALL | B127: EQ | C127: 139.95 | D127: 142.8 | E127: 138 | F127: 140.95 | G127: 142.8 | H127: 141.4 | I127: 1420 | J127: 198589.8 | K127: 2019-11-22 | L127: 68 | M127: INE991I01015
A128: ASTEC | B128: EQ | C128: 404 | D128: 408.95 | E128: 375.25 | F128: 392.85 | G128: 395 | H128: 397.9 | I128: 13319 | J128: 5196925.2 | K128: 2019-11-22 | L128: 880 | M128: INE563J01010
A129: ASTERDM | B129: EQ | C129: 146.8 | D129: 146.8 | E129: 140.3 | F129: 144.95 | G129: 144.7 | H129: 145.3 | I129: 103227 | J129: 14879536.5 | K129: 2019-11-22 | L129: 4558 | M129: INE914M01019
A130: ASTRAL | B130: EQ | C130: 1065.1 | D130: 1088.8 | E130: 1043.05 | F130: 1084.65 | G130: 1085.3 | H130: 1063.05 | I130: 65253 | J130: 69945075.3 | K130: 2019-11-22 | L130: 4363 | M130: INE006I01046
A131: ASTRAMICRO | B131: EQ | C131: 90.1 | D131: 92 | E131: 88.15 | F131: 90.85 | G131: 91.2 | H131: 89.65 | I131: 360643 | J131: 32807866.3 | K131: 2019-11-22 | L131: 2485 | M131: INE386C01029
A132: ASTRAZEN | B132: EQ | C132: 2673 | D132: 2707 | E132: 2616.05 | F132: 2626.7 | G132: 2625 | H132: 2689.8 | I132: 13115 | J132: 34762383.8 | K132: 2019-11-22 | L132: 1511 | M132: INE203A01020
A133: ASTRON | B133: EQ | C133: 40.6 | D133: 40.6 | E133: 37.9 | F133: 39.2 | G133: 39 | H133: 39.85 | I133: 150635 | J133: 5876785.65 | K133: 2019-11-22 | L133: 662 | M133: INE646X01014
A134: ATFL | B134: EQ | C134: 584.15 | D134: 588.75 | E134: 576.85 | F134: 580.05 | G134: 576.95 | H134: 584.2 | I134: 3818 | J134: 2216984.3 | K134: 2019-11-22 | L134: 367 | M134: INE209A01019
A135: ATLANTA | B135: BE | C135: 6.65 | D135: 7.2 | E135: 6.65 | F135: 6.95 | G135: 7.1 | H135: 7 | I135: 9639 | J135: 65841.95 | K135: 2019-11-22 | L135: 54 | M135: INE285H01022
A136: ATLASCYCLE | B136: BE | C136: 51.5 | D136: 52.9 | E136: 50 | F136: 51.4 | G136: 52 | H136: 51.8 | I136: 2416 | J136: 123948.1 | K136: 2019-11-22 | L136: 34 | M136: INE446A01025
A137: ATUL | B137: EQ | C137: 4182 | D137: 4182 | E137: 4071 | F137: 4116.85 | G137: 4131.05 | H137: 4159.25 | I137: 8474 | J137: 34835039.1 | K137: 2019-11-22 | L137: 1504 | M137: INE100A01010
A138: ATULAUTO | B138: EQ | C138: 225.3 | D138: 229 | E138: 221.15 | F138: 223.5 | G138: 226 | H138: 223.5 | I138: 17278 | J138: 3894073.1 | K138: 2019-11-22 | L138: 626 | M138: INE951D01028
A139: AUBANK | B139: EQ | C139: 822 | D139: 822 | E139: 796 | F139: 802.3 | G139: 800 | H139: 817 | I139: 373463 | J139: 301038535.3 | K139: 2019-11-22 | L139: 6580 | M139: INE949L01017
A140: AURIONPRO | B140: EQ | C140: 72.65 | D140: 74.2 | E140: 69.6 | F140: 72.6 | G140: 71.95 | H140: 72.45 | I140: 1721 | J140: 123759.05 | K140: 2019-11-22 | L140: 146 | M140: INE132H01018
A141: AUROPHARMA | B141: EQ | C141: 432.1 | D141: 449.7 | E141: 421.5 | F141: 428.85 | G141: 428.5 | H141: 429.7 | I141: 11028958 | J141: 4783576691 | K141: 2019-11-22 | L141: 124991 | M141: INE406A01037
A142: AUSOMENT | B142: EQ | C142: 44.8 | D142: 45.5 | E142: 42.15 | F142: 44.85 | G142: 44.35 | H142: 43.6 | I142: 39902 | J142: 1760712.1 | K142: 2019-11-22 | L142: 188 | M142: INE218C01016
A143: AUTOAXLES | B143: EQ | C143: 827.9 | D143: 827.9 | E143: 794 | F143: 803.4 | G143: 801.95 | H143: 807.85 | I143: 8624 | J143: 6924166.75 | K143: 2019-11-22 | L143: 684 | M143: INE449A01011
A144: AUTOIND | B144: EQ | C144: 26.5 | D144: 26.5 | E144: 24.85 | F144: 25.1 | G144: 25 | H144: 25.65 | I144: 25596 | J144: 648064.8 | K144: 2019-11-22 | L144: 145 | M144: INE718H01014
A145: AUTOLITIND | B145: EQ | C145: 20.1 | D145: 21.05 | E145: 20.05 | F145: 20.55 | G145: 20.75 | H145: 20.4 | I145: 1212 | J145: 24601.85 | K145: 2019-11-22 | L145: 60 | M145: INE448A01013
A146: AVADHSUGAR | B146: EQ | C146: 245.1 | D146: 245.4 | E146: 238.2 | F146: 239.6 | G146: 238.2 | H146: 245.4 | I146: 33734 | J146: 8126390.65 | K146: 2019-11-22 | L146: 1160 | M146: INE349W01017
A147: AVANTIFEED | B147: EQ | C147: 527 | D147: 534.7 | E147: 521 | F147: 528.45 | G147: 528.95 | H147: 523.95 | I147: 324828 | J147: 171166447.8 | K147: 2019-11-22 | L147: 11961 | M147: INE871C01038
A148: AVTNPL | B148: EQ | C148: 30.25 | D148: 30.65 | E148: 29.65 | F148: 30.2 | G148: 30.45 | H148: 30.15 | I148: 49369 | J148: 1493262.3 | K148: 2019-11-22 | L148: 420 | M148: INE488D01021
A149: AXISBANK | B149: EQ | C149: 737.4 | D149: 740 | E149: 727.5 | F149: 732.1 | G149: 730.6 | H149: 737.4 | I149: 4889776 | J149: 3583179391 | K149: 2019-11-22 | L149: 135894 | M149: INE238A01034
A150: AXISCADES | B150: EQ | C150: 63.8 | D150: 68.95 | E150: 63.7 | F150: 67.35 | G150: 66.85 | H150: 64.1 | I150: 244931 | J150: 16485544.75 | K150: 2019-11-22 | L150: 1697 | M150: INE555B01013
A151: AXISGOLD | B151: EQ | C151: 3373 | D151: 3373 | E151: 3347.1 | F151: 3359.7 | G151: 3351.05 | H151: 3358 | I151: 123 | J151: 413702.65 | K151: 2019-11-22 | L151: 55 | M151: INF846K01347
A152: AXISNIFTY | B152: EQ | C152: 1235.59 | D152: 1235.59 | E152: 1233.41 | F152: 1233.41 | G152: 1233.41 | H152: 1238.91 | I152: 4 | J152: 4938.68 | K152: 2019-11-22 | L152: 4 | M152: INF846K01ZL0
A153: AYMSYNTEX | B153: EQ | C153: 32 | D153: 32.7 | E153: 29.85 | F153: 31.75 | G153: 31.75 | H153: 30.15 | I153: 5047 | J153: 159550.85 | K153: 2019-11-22 | L153: 82 | M153: INE193B01039
A154: BAGFILMS | B154: BE | C154: 2.05 | D154: 2.1 | E154: 1.95 | F154: 2.1 | G154: 2.1 | H154: 2 | I154: 85186 | J154: 174709.35 | K154: 2019-11-22 | L154: 133 | M154: INE116D01028
A155: BAJAJ-AUTO | B155: EQ | C155: 3180 | D155: 3186 | E155: 3133.5 | F155: 3152.35 | G155: 3150 | H155: 3188.35 | I155: 285777 | J155: 901147418 | K155: 2019-11-22 | L155: 16211 | M155: INE917I01010
A156: BAJAJCON | B156: EQ | C156: 236.15 | D156: 239.25 | E156: 234.95 | F156: 236.85 | G156: 237.4 | H156: 235.55 | I156: 95744 | J156: 22688248.7 | K156: 2019-11-22 | L156: 2143 | M156: INE933K01021
A157: BAJAJELEC | B157: EQ | C157: 311.9 | D157: 324 | E157: 311.7 | F157: 322.05 | G157: 322.5 | H157: 309.8 | I157: 246530 | J157: 78757628.85 | K157: 2019-11-22 | L157: 6971 | M157: INE193E01025
A158: BAJAJFINSV | B158: EQ | C158: 9059.8 | D158: 9080 | E158: 8981 | F158: 9039.3 | G158: 9074 | H158: 9055.1 | I158: 155772 | J158: 1405883499 | K158: 2019-11-22 | L158: 15923 | M158: INE918I01018
A159: BAJAJHIND | B159: EQ | C159: 6.55 | D159: 6.8 | E159: 6.5 | F159: 6.5 | G159: 6.55 | H159: 6.65 | I159: 1856117 | J159: 12212676.45 | K159: 2019-11-22 | L159: 1754 | M159: INE306A01021
A160: BAJAJHLDNG | B160: EQ | C160: 3676 | D160: 3735 | E160: 3676 | F160: 3691.3 | G160: 3692 | H160: 3687.8 | I160: 9917 | J160: 36770501.75 | K160: 2019-11-22 | L160: 1994 | M160: INE118A01012
A161: BAJFINANCE | B161: EQ | C161: 4130 | D161: 4143.8 | E161: 4041 | F161: 4078.3 | G161: 4080 | H161: 4123.65 | I161: 1222615 | J161: 4996233101 | K161: 2019-11-22 | L161: 62793 | M161: INE296A01024
A162: BALAJITELE | B162: EQ | C162: 59.95 | D162: 61.3 | E162: 58.5 | F162: 59.55 | G162: 58.95 | H162: 59 | I162: 222865 | J162: 13200191 | K162: 2019-11-22 | L162: 1036 | M162: INE794B01026
A163: BALAMINES | B163: EQ | C163: 343.7 | D163: 354.6 | E163: 336.1 | F163: 339.15 | G163: 337.05 | H163: 340.75 | I163: 31803 | J163: 10905365.05 | K163: 2019-11-22 | L163: 1763 | M163: INE050E01027
A164: BALAXI | B164: EQ | C164: 66.55 | D164: 71 | E164: 66.55 | F164: 70 | G164: 70 | H164: 69.95 | I164: 64 | J164: 4526.55 | K164: 2019-11-22 | L164: 5 | M164: INE618N01014
A165: BALKRISHNA | B165: BE | C165: 16.95 | D165: 16.95 | E165: 16 | F165: 16.3 | G165: 16.2 | H165: 16.25 | I165: 7035 | J165: 114907.6 | K165: 2019-11-22 | L165: 47 | M165: INE875R01011
A166: BALKRISIND | B166: EQ | C166: 842.4 | D166: 849.95 | E166: 833.4 | F166: 843.7 | G166: 841.95 | H166: 843.9 | I166: 246911 | J166: 207597415.9 | K166: 2019-11-22 | L166: 6837 | M166: INE787D01026
A167: BALLARPUR | B167: EQ | C167: 0.55 | D167: 0.55 | E167: 0.5 | F167: 0.55 | G167: 0.55 | H167: 0.5 | I167: 677968 | J167: 350763 | K167: 2019-11-22 | L167: 190 | M167: INE294A01037
A168: BALMLAWRIE | B168: EQ | C168: 194.25 | D168: 196 | E168: 194.05 | F168: 194.85 | G168: 195.3 | H168: 194.25 | I168: 46920 | J168: 9144869.35 | K168: 2019-11-22 | L168: 1382 | M168: INE164A01016
A169: BALPHARMA | B169: EQ | C169: 40.85 | D169: 41.5 | E169: 40.35 | F169: 40.65 | G169: 40.55 | H169: 40.75 | I169: 2711 | J169: 110492.7 | K169: 2019-11-22 | L169: 48 | M169: INE083D01012
A170: BALRAMCHIN | B170: EQ | C170: 145.5 | D170: 146.55 | E170: 141.4 | F170: 142.4 | G170: 142.4 | H170: 146.05 | I170: 599846 | J170: 85567471.9 | K170: 2019-11-22 | L170: 12239 | M170: INE119A01028
A171: BANARBEADS | B171: EQ | C171: 29.4 | D171: 31.05 | E171: 29.4 | F171: 30.4 | G171: 30.4 | H171: 30.5 | I171: 1411 | J171: 42207.65 | K171: 2019-11-22 | L171: 31 | M171: INE655B01011
A172: BANARISUG | B172: EQ | C172: 1190.95 | D172: 1190.95 | E172: 1160 | F172: 1186 | G172: 1186 | H172: 1192.4 | I172: 289 | J172: 338730.65 | K172: 2019-11-22 | L172: 147 | M172: INE459A01010
A173: BANCOINDIA | B173: EQ | C173: 96.4 | D173: 96.4 | E173: 94 | F173: 95.55 | G173: 95.6 | H173: 95 | I173: 41604 | J173: 3958350.05 | K173: 2019-11-22 | L173: 1437 | M173: INE213C01025
A174: BANDHANBNK | B174: EQ | C174: 535.15 | D174: 538 | E174: 523.5 | F174: 526.75 | G174: 525.25 | H174: 533.95 | I174: 2485274 | J174: 1319924552 | K174: 2019-11-22 | L174: 34108 | M174: INE545U01014
A175: BANG | B175: EQ | C175: 16.05 | D175: 16.95 | E175: 15.5 | F175: 16.45 | G175: 16.1 | H175: 16.6 | I175: 4087 | J175: 66145.45 | K175: 2019-11-22 | L175: 261 | M175: INE863I01016
A176: BANKBARODA | B176: EQ | C176: 99 | D176: 99.8 | E176: 98.4 | F176: 99.1 | G176: 99.1 | H176: 98.6 | I176: 19122025 | J176: 1892591710 | K176: 2019-11-22 | L176: 51119 | M176: INE028A01039
A177: BANKBEES | B177: EQ | C177: 3184 | D177: 3193.06 | E177: 3163.6 | F177: 3168.8 | G177: 3169.8 | H177: 3192.48 | I177: 4813 | J177: 15289904.94 | K177: 2019-11-22 | L177: 615 | M177: INF732E01078
A178: BANKINDIA | B178: EQ | C178: 73.25 | D178: 74.15 | E178: 72.25 | F178: 73.05 | G178: 72.9 | H178: 73.15 | I178: 9925433 | J178: 725743839.6 | K178: 2019-11-22 | L178: 20787 | M178: INE084A01016
A179: BANSWRAS | B179: EQ | C179: 89.5 | D179: 90.95 | E179: 88 | F179: 88.9 | G179: 90.95 | H179: 89 | I179: 5247 | J179: 466865.2 | K179: 2019-11-22 | L179: 148 | M179: INE629D01012
A180: BARTRONICS | B180: BE | C180: 1.55 | D180: 1.6 | E180: 1.5 | F180: 1.6 | G180: 1.6 | H180: 1.55 | I180: 3320 | J180: 5190 | K180: 2019-11-22 | L180: 16 | M180: INE855F01034
A181: BASF | B181: EQ | C181: 947 | D181: 965 | E181: 947 | F181: 951.2 | G181: 954.4 | H181: 945.7 | I181: 11100 | J181: 10615675.65 | K181: 2019-11-22 | L181: 1010 | M181: INE373A01013
A182: BASML | B182: EQ | C182: 124.95 | D182: 125 | E182: 121.25 | F182: 124.5 | G182: 124.5 | H182: 123.9 | I182: 3093 | J182: 383017.65 | K182: 2019-11-22 | L182: 86 | M182: INE186H01014
A183: BATAINDIA | B183: EQ | C183: 1636 | D183: 1649.9 | E183: 1617 | F183: 1642.7 | G183: 1645 | H183: 1638.55 | I183: 668209 | J183: 1089849782 | K183: 2019-11-22 | L183: 27123 | M183: INE176A01028
A184: BAYERCROP | B184: EQ | C184: 3794.25 | D184: 3794.25 | E184: 3668.25 | F184: 3697.15 | G184: 3700 | H184: 3794.2 | I184: 14635 | J184: 54203749.5 | K184: 2019-11-22 | L184: 1630 | M184: INE462A01022
A185: BBL | B185: EQ | C185: 829.9 | D185: 841.75 | E185: 829.9 | F185: 832.35 | G185: 834 | H185: 831.95 | I185: 3043 | J185: 2541416.05 | K185: 2019-11-22 | L185: 287 | M185: INE464A01028
A186: BBTC | B186: EQ | C186: 1102.95 | D186: 1104.35 | E186: 1072.2 | F186: 1077 | G186: 1076.9 | H186: 1098.7 | I186: 68784 | J186: 74642510.1 | K186: 2019-11-22 | L186: 3897 | M186: INE050A01025
A187: BCG | B187: EQ | C187: 4.2 | D187: 4.2 | E187: 4.2 | F187: 4.2 | G187: 4.2 | H187: 4 | I187: 98635 | J187: 414267 | K187: 2019-11-22 | L187: 43 | M187: INE425B01027
A188: BCP | B188: EQ | C188: 9.8 | D188: 9.8 | E188: 9.5 | F188: 9.5 | G188: 9.5 | H188: 9.65 | I188: 415412 | J188: 4009426.45 | K188: 2019-11-22 | L188: 88 | M188: INE905P01028
A189: BDL | B189: EQ | C189: 351.6 | D189: 359.8 | E189: 345.3 | F189: 349.45 | G189: 350.5 | H189: 349.65 | I189: 102795 | J189: 36156558.95 | K189: 2019-11-22 | L189: 4861 | M189: INE171Z01018
A190: BEARDSELL | B190: EQ | C190: 10.05 | D190: 10.05 | E190: 9.6 | F190: 9.95 | G190: 9.95 | H190: 9.95 | I190: 2416 | J190: 23842.3 | K190: 2019-11-22 | L190: 43 | M190: INE520H01022
A191: BEDMUTHA | B191: EQ | C191: 14.6 | D191: 14.6 | E191: 13 | F191: 13.5 | G191: 13.5 | H191: 13.3 | I191: 1367 | J191: 18599 | K191: 2019-11-22 | L191: 20 | M191: INE844K01012
A192: BEL | B192: EQ | C192: 110.2 | D192: 110.8 | E192: 108 | F192: 109.45 | G192: 109.25 | H192: 110.4 | I192: 5757149 | J192: 630819221.1 | K192: 2019-11-22 | L192: 19726 | M192: INE263A01024
A193: BEML | B193: EQ | C193: 954 | D193: 954.9 | E193: 935.2 | F193: 940.4 | G193: 937.05 | H193: 952.3 | I193: 319338 | J193: 300513651.9 | K193: 2019-11-22 | L193: 10807 | M193: INE258A01016
A194: BEPL | B194: EQ | C194: 47 | D194: 47.65 | E194: 46.25 | F194: 46.7 | G194: 46.75 | H194: 46.8 | I194: 309326 | J194: 14467322.45 | K194: 2019-11-22 | L194: 1259 | M194: INE922A01025
A195: BERGEPAINT | B195: EQ | C195: 480 | D195: 482.95 | E195: 472 | F195: 476.9 | G195: 476 | H195: 481.55 | I195: 1547853 | J195: 738922724.5 | K195: 2019-11-22 | L195: 42493 | M195: INE463A01038
A196: BFINVEST | B196: EQ | C196: 327.9 | D196: 332.65 | E196: 320 | F196: 326.6 | G196: 326.2 | H196: 326.65 | I196: 77242 | J196: 25216361.85 | K196: 2019-11-22 | L196: 2498 | M196: INE878K01010
A197: BFUTILITIE | B197: EQ | C197: 272.05 | D197: 279.9 | E197: 267.6 | F197: 274.2 | G197: 275 | H197: 273.2 | I197: 215471 | J197: 59021509.15 | K197: 2019-11-22 | L197: 4561 | M197: INE243D01012
A198: BGLOBAL | B198: BE | C198: 1.9 | D198: 1.9 | E198: 1.8 | F198: 1.85 | G198: 1.9 | H198: 1.85 | I198: 3564 | J198: 6606.6 | K198: 2019-11-22 | L198: 14 | M198: INE224M01013
A199: BGRENERGY | B199: EQ | C199: 29.8 | D199: 30.7 | E199: 28.85 | F199: 29.75 | G199: 29.65 | H199: 29.6 | I199: 111943 | J199: 3341463.25 | K199: 2019-11-22 | L199: 1562 | M199: INE661I01014
A200: BHAGERIA | B200: EQ | C200: 98.95 | D200: 101.2 | E200: 96.5 | F200: 96.85 | G200: 96.5 | H200: 98.35 | I200: 23312 | J200: 2285105.6 | K200: 2019-11-22 | L200: 476 | M200: INE354C01027
... 1491 more rows

Sheet Sheet1 (hidden)

Sheet Sheet3 (hidden)

Sheet Sheet4 (hidden)

Sheet Sheet5 (hidden)
